Workbook

Sheet Data_Main (hidden)
B4: Year | C4: 2020 | D4: Enter
B5: Year_Long | C5: =m_year&"/"&m_year+1 -> 2020/2021 | D5: Calculated
B6: Year_Short | C6: =RIGHT(m_year,2)&"/"&RIGHT(m_year,2)+1 -> 20/21 | D6: Calculated
B9: MODEL VERSION | C9: 5
B11: show_disclaimer | C11: TRUE | D11: Calculated

Sheet Data_Sheets (hidden)
B10: Sheet | C10: State(show to keep sheet visible or blank to hide)
B11: Data_Main
B12: Data_Sheets
B13: DV_TABLES
B14: Instructions | C14: Show
B15: Main | C15: Show
B16: Summary | C16: Show
B17: Prime Lambs Input
B18: Prime Lambs
B19: Prime Lambs Merino Ewes Input
B20: Prime Lambs Merino Ewes
B21: Lamb Trading Input
B22: Lamb Trading
B23: GM_INFO
B24: Merino SR Input
B25: Merino SR
B26: Wethers Input
B27: Wethers
B28: Cleanskin Sheep Input
B29: Cleanskin Sheep
B30: Beef Input
B31: Beef
B32: Beef Trading Input
B33: Beef Trading
B34: Beef Feed Lot Input
B35: Beef Feed Lot

Sheet DV_TABLES (hidden)

Sheet Instructions
B7: ="Livestock Farm Gross Margin Guide -"&TEXT(m_year,"0000") -> Livestock Farm Gross Margin Guide -2020
B8: This spreadsheet can take a few moments to load
B9: PLEASE NOTE:THIS VERSION WILL ONLY WORK WITH EXCEL VERSIONS 2007 & ABOVE FOR WINDOWS ONLY. It will not work with Excel for Mac, Ipad, Android, tablets etc.
B11: Before You Start
B12: Before you start you will need to enable macros.
B13: This may appear as a Security Warning at the top of your page. To do this, click on “Enable Content”.
B14: Clicking “Enable Content” allows you to enter data into the Excel Worksheet.
B22: You may also see a message about "PROTECTED VIEW". Please click "Enable Editing".
B29: Yellow cells = data entry (some yellow cells contain formulas, these usually represent default
B30: values but may be over written. To revert back to the default value formula click the blue 'Reset…'
B31: link next to the cell.
B32: Blue cells contain formulas, are protected and can not be overwritten.
B46: Start in the “Main” sheet and select “Livestock types” you want to use:
B74: Pasture costs are not included as part of the Gross Margins. To include pasture and overhead costs,
B75: download the “RSA Crops Gross Margin Guide” and select the appropriate pasture types.
B76: The Livestock Gross Margin figures can be input as the “Income” for the Pasture Gross Margins.
B79: For technical support or to report errors/omissions regarding this spreadsheet please
B80: email Barry Mudge at:
C81: theoaks5@bigpond.com

Sheet Main
C3: ="FARM GROSS MARGIN GUIDE - "&TEXT(m_year,"0000") -> FARM GROSS MARGIN GUIDE - 2020 | G3: ="Version-"&TEXT(MODEL_VERSION,"0.0") -> Version-5.0
C6: by clicking checkboxes or All or None buttons
B7: FALSE | C7: Prime Lambs 1st Cross Ewes
B8: FALSE | C8: Prime Lambs Merino Ewes
B9: FALSE | C9: Lamb Trading High Rainfall
B10: FALSE | C10: Merino SR
B11: FALSE | C11: Wethers
B12: FALSE | C12: Cleanskin Sheep
B13: FALSE | C13: Beef
B14: FALSE | C14: Beef Trading
B15: FALSE | C15: Beef Feed Lot

Sheet GM_INFO (hidden)
A1: G.M. LINK SHEET
A3: COMMENT: spreadsheet is protected EXCEPT for highlighted cells,
A4: i.e. those cells which can be changed.
A6: DATE | B6: =m_year -> 2020
A10: _______________________________________________________________________________________________________________________
A11: Todays Date: | B11: =NOW() -> 2020-02-28T09:37:55
A14: ="FARM COSTS - "&m_year -> FARM COSTS - 2020
A17: SHEEP
A18: Lice Control | B18: Avenge | C18: 20 | D18: /litre
C19: 1.6 | D19: /80ml dose
A20: Drench | B20: Triguard | C20: 38 | D20: /litre
C21: 0.456 | D21: /10ml dose
A22: Vaccine | B22: Glanvac 3 | C22: 62 | D22: /250ml
C23: 0.248 | D23: /1ml dose
B24: Glanvac 6 | C24: 85 | D24: 250ml
C25: 0.34 | D25: /1ml dose
A26: Blowfly Control | B26: Clik | C26: 58 | D26: /litre
C27: 1.392 | D27: /24 ml dose
A28: Wool packs | B28: nylon | C28: 12.4 | D28: ea
A30: Shearing | B30: Sheep | C30: 318.62 | D30: /100
B31: rams | C31: 637.24 | D31: /100
B32: shed labour | C32: 241.12 | D32: /day
B33: wool classer | C33: 306.75 | D33: day
B34: superannuation | C34: 0.095 | D34: wages
B35: Work Cover-Allow | C35: 0.04 | D35: total
B36: shed sundries | C36: 0.2 | D36: /head
A38: Crutching | B38: sheep | C38: 92.4 | D38: /100
B39: rams | C39: 184.8 | D39: /100
A41: lamb marking | B41: mulesing / materials | C41: 1.4 | D41: /head
B42: marking only | C42: 1.15 | D42: /head
B43: ear tags | C43: 0.43 | D43: /head
B44: pain relief | C44: 0.45 | D44: /head | E44: NOT UPDATED YET!
A45: Stock purchaces | B45: purchase rams | C45: 1000 | D45: /head
B46: purchase wethers | C46: 80 | D46: /head
A48: Stock selling | B48: commission/insurance | C48: 0.06
B49: yard fees | C49: 0.85 | D49: /head
B50: sheep transaction levy | C50: 0.2 | D50: /head
B51: lamb transaction levy | C51: 1.5 | D51: /head
B52: SA sheep industry levy | C52: 0.67 | D52: /head
B53: wool brokerage / testing / insurance | C53: 0.27 | D53: /kg
B54: wool levy | C54: 0.015
A60: BEEF | H60: BEEF FEEDLOT
A61: Drench (backline) | B61: Genesis Pour-on | D61: 124 | E61: /litre | H61: Drench, Dectomax | I61: 4.88 | J61: /head
D62: 4.375 | E62: /25ml dose | H62: Ear Tags | I62: 0.5 | J62: /tag
A63: 5 in 1 vaccine | D63: 95 | E63: /500 ml | H63: HGP implant , Synovex | I63: 2.5 | J63: /dose
D64: 0.76 | E64: /4ml dose | H64: Lice Treatments | I64: 0 | J64: /dose
H65: Vaccine | I65: 1 | J65: /dose
H66: Veterinary | I66: 1.25 | J66: /head
A67: Trace Element treatments | D67: 3 | E67: /head | H67: Vitamin injection | I67: 1.5 | J67: /head
A68: HGP implant | D68: 1.75 | H68: Premix cost per tonne mixed feed | I68: 50 | J68: /tonne
A69: Vitamin injection | D69: 1.3 | H69: Milling costs + Labour | I69: 26 | J69: /head
H70: Water | I70: 20 | J70: /head
H71: Insurance | I71: 2
H72: Transport In | I72: 15
A73: NLIS Breeder Tags (incl levy) | D73: 4.75 | E73: each | H73: Transport Out | I73: 30
H74: Commission | I74: 0.06
B75: freight cattle in | D75: 30 | E75: /head | H75: Levies | I75: 5
B76: freight cattle out | D76: 30 | E76: /head | H76: Losses | I76: 0.006 | J76: %
B77: Cattle levy | D77: 5 | E77: /head
D78: Prime Lambs | E78: Prime Lambs Cereal | F78: Merino SR Cereal | G78: Wethers Cereal | H78: Cleanskin | I78: Beef Cereal | J78: Beef Trading | K78: Lamb trading
A79: FEED & OTHER COSTS | B79: water | C79: /DSE | D79: 1.5 | E79: 2.5 | F79: 2.5 | G79: 2.5 | H79: 2.5 | I79: 2.5 | J79: 1.5 | K79: 1.5
B80: Veh fuel, R&M | C80: /DSE | D80: 1.2 | E80: 1.2 | F80: 1.2 | G80: 1 | H80: 0.8 | I80: 1 | J80: 1 | K80: 1
B81: other | C81: /DSE | D81: 0.5 | E81: 0.5 | F81: 0.5 | G81: 0.5 | H81: 0.5 | I81: 0.5 | J81: 0.5 | K81: 0.5
B82: hay | C82: /tonne incl freight | D82: 260
B83: Feed Cereal grain | C83: /tonne incl freight | D83: 320
B84: Lamb Feedlot Mix | C84: /tonne incl freight | D84: 300
B85: Blocks/ Mineral Mix | D85: 5
A89: ="FARM COSTS - "&m_year -> FARM COSTS - 2020
A93: STOCK RETURNS | F93: Budget Base (Greasy)
A94: WOOL- High Rainfall 28 mic 70%Yield | F94: 640.5
A95: - High Rainfall 19.5 mic 70% Yld | F95: 1274
A96: - Med Rainfall 21 mic 68% Yield | F96: 1210.4
A97: - Low Rainfall 22 mic 63% Yield | F97: 1111.95
A98: - Crossbred Ram 32 mic | F98: 310.4
A101: ="FARM COSTS - "&m_year -> FARM COSTS - 2020
A105: INSURANCE COSTS
A106: Livestock
A107: Sheep and cattle | B107: 2 | C107: /$1,000 insured
A110: FREIGHT COSTS | B110: Prime Lambs
A111: culls | B111: 4
A112: ewes | B112: 4
A113: prime lambs | B113: 4
A114: bales | B114: 15
A115: rams | B115: 4
A116: hoggets | B116: 4
A117: vealers | B117: 30
A119: BEEF
A120: Vealers | B120: 280 | C120: kg liveweight @ | D120: 3.2 | E120: /kg L/W
A121: Yearling | B121: 400 | C121: kg liveweight @ | D121: 2.95 | E121: /kg L/W
A122: Cows | B122: 550 | C122: kg liveweight @ | D122: 2.45 | E122: /kg L/W
A124: BEEF TRADING
A125: Vealers | B125: 280 | C125: kg liveweight @ | D125: 3 | E125: /kg L/W
A126: Yearling | B126: 420 | C126: kg liveweight @ | D126: 2.8 | E126: /kg L/W

Sheet Summary
B2: ="GROSS MARGINS SUMMARY - "&TEXT(m_year,"0000") -> GROSS MARGINS SUMMARY - 2020
D4: Gross Margin
B5: Type | C5: No of head
B6: Prime Lambs 1st Cross Ewes | C6: ='Prime Lambs Input'!E7*rng_Prime_Lambs_DATA -> 0 | D6: ='Prime Lambs'!Q174*rng_Prime_Lambs_DATA -> 0 | E6: ='Prime Lambs'!Q172*rng_Prime_Lambs_DATA -> 0 | F6: ='Prime Lambs'!Q37*rng_Prime_Lambs_DATA -> 0 | G6: ='Prime Lambs'!Q170*rng_Prime_Lambs_DATA -> 0
B7: Prime Lambs Merino Ewes | C7: ='Prime Lambs Merino Ewes Input'!E7*rng_Prime_LambsMerino_DATA -> 0 | D7: ='Prime Lambs Merino Ewes'!Q174*rng_Prime_LambsMerino_DATA -> 0 | E7: ='Prime Lambs Merino Ewes'!Q172*rng_Prime_LambsMerino_DATA -> 0 | F7: ='Prime Lambs Merino Ewes'!Q37*rng_Prime_LambsMerino_DATA -> 0 | G7: ='Prime Lambs Merino Ewes'!Q170*rng_Prime_LambsMerino_DATA -> 0
B8: Lamb Trading High Rainfall | C8: ='Lamb Trading Input'!E7*rng_Lambtrading_DATA -> 0 | D8: ='Lamb Trading'!Q174*rng_Lambtrading_DATA -> 0 | E8: ='Lamb Trading'!Q172*rng_Lambtrading_DATA -> 0 | F8: ='Lamb Trading'!Q37*rng_Lambtrading_DATA -> 0 | G8: ='Lamb Trading'!Q170*rng_Lambtrading_DATA -> 0
B9: Merino SR | C9: ='Merino SR Input'!E8*rng_Merino_SR_DATA -> 0 | D9: ='Merino SR'!Q174*rng_Merino_SR_DATA -> 0 | E9: ='Merino SR'!Q172*rng_Merino_SR_DATA -> 0 | F9: ='Merino SR'!Q37*rng_Merino_SR_DATA -> 0 | G9: ='Merino SR'!Q170*rng_Merino_SR_DATA -> 0
B10: Wethers | C10: ='Wethers Input'!E7*rng_Whethers_DATA -> 0 | D10: =Wethers!Q7*rng_Whethers_DATA -> 0 | E10: =Wethers!Q172*rng_Whethers_DATA -> 0 | F10: =Wethers!Q37*rng_Whethers_DATA -> 0 | G10: =Wethers!Q170*rng_Whethers_DATA -> 0
B11: Cleanskin Sheep | C11: ='Cleanskin Sheep Input'!E7*rng_Cleanskin_Sheep_DATA -> 0 | D11: ='Cleanskin Sheep'!Q174*rng_Cleanskin_Sheep_DATA -> 0 | E11: ='Cleanskin Sheep'!Q172*rng_Cleanskin_Sheep_DATA -> 0 | F11: ='Cleanskin Sheep'!Q37*rng_Cleanskin_Sheep_DATA -> 0 | G11: ='Cleanskin Sheep'!Q170*rng_Cleanskin_Sheep_DATA -> 0
B12: Beef | C12: ='Beef Input'!E15*rng_Beef_DATA -> 0 | D12: =Beef!Q174*rng_Beef_DATA -> 0 | E12: =Beef!Q172*rng_Beef_DATA -> 0 | F12: =Beef!Q41*rng_Beef_DATA -> 0 | G12: =Beef!Q170*rng_Beef_DATA -> 0
B13: Beef Trading | C13: ='Beef Trading Input'!E10*rng_Beeftrading_DATA -> 0 | D13: ='Beef Trading'!Q174*rng_Beeftrading_DATA -> 0 | E13: ='Beef Trading'!Q172*rng_Beeftrading_DATA -> 0 | F13: ='Beef Trading'!Q41*rng_Beeftrading_DATA -> 0 | G13: ='Beef Trading'!Q170*rng_Beeftrading_DATA -> 0
B14: Beef Feed Lot | C14: =100*rng_Beeffeedlot_DATA -> 0 | D14: ='Beef Feed Lot'!Q172*rng_Beeffeedlot_DATA -> 0 | E14: =C14*D14*rng_Beeffeedlot_DATA -> 0 | F14: ='Beef Feed Lot'!Q41*C14*rng_Beeffeedlot_DATA -> 0 | G14: ='Beef Feed Lot'!Q170*C14*rng_Beeffeedlot_DATA -> 0
B15: TOTAL | E15: =SUM(E6:E14) -> 0 | F15: =SUM(F6:F14) -> 0 | G15: =SUM(G6:G14) -> 0

Sheet Prime Lambs Input (hidden)
C1: Prime Lambs (1st cross ewes)
C2: =UPPER(var_animal)&" GROSS MARGIN - "&TEXT(m_year,"0000") -> PRIME LAMBS (1ST CROSS EWES) GROSS MARGIN - 2020
C4: GENERAL INFORMATION
C5: This represents a First Cross Ewe enterprise (Merino X Border Liecester) mated to a terminal sire. All ewe replacements are purchased, but age of replacements can be varied from 1.5 years to 4.5 years. Following are the various assumptions used in the calculation of the Gross Margin. Cells with yellow highlight can be changed. No allowance has been made for pasture expenses such as seed, fertiliser and chemicals. Refer to pasture gross margins in the “Cropping Gross Margin Plan” for annual and perennial pasture costs. Use the livestock gross margin per DSE as income for the pasture gross margin.
C7: Ewes mated | E7: 1000
C8: Age ewes purchased | E8: 1.5
C9: Age ewes sold | E9: 6.5
C10: Av Weaning % | E10: 1.15
C11: Ram percentage | E11: 0.02
C12: Years Rams Kept | E12: 3
C13: Flock death Rate | E13: 0.03
C14: % Lambs carried over | E14: 0
C17: LIVESTOCK SALES | E17: Price/Hd | F17: Number | G17: Total
C18: c.f.a Ewes | E18: 180 | F18: ='Prime Lambs'!AG220 -> 182.3653636 | G18: =E18*ROUND(F18,0) -> 32760
C19: c.f.a Rams | E19: 130 | F19: ='Prime Lambs'!AG238 -> 6.270727266 | G19: =E19*ROUND(F19,0) -> 780
C20: Lambs | E20: 185 | F20: ='Prime Lambs'!AG227 -> 1150 | G20: =E20*ROUND(F20,0) -> 212750
C25: TOTAL SALES | F25: =SUM(F18:F23) -> 1338.636091 | G25: =SUM(G18:G23) -> 246290
C28: LIVESTOCK PURCHASES | E28: Price/Hd | F28: Number | G28: Total
C29: Ewes | E29: 295 | F29: ='Prime Lambs'!AD220 -> 212.3653636 | G29: =E29*F29 -> 62647.78227
C30: Rams | E30: 1850 | F30: =ROUND('Prime Lambs'!AD238,0) -> 7 | G30: =E30*F30 -> 12950
C32: TOTAL PURCHASES | F32: =SUM(F29:F30) -> 219.3653636 | G32: =SUM(G29:G30) -> 75597.78227
C35: WOOL PRICE (cents/kg) | F35: =TEXT(m_year-3,"0000")&" Average (Clean)" -> 2017 Average (Clean) | G35: =TEXT(m_year-2,"0000")&" Average (Clean)" -> 2018 Average (Clean) | H35: =TEXT(m_year-1,"0000")&" Average (Clean)" -> 2019 Average (Clean) | I35: Budget Base (Clean) | J35: Budget Base (Greasy)
E36: Wool- High Rainfall 28 mic 70% yield | F36: 867 | G36: 774 | H36: 756 | I36: 750 | J36: =I36*I37 -> 525
E37: Estimated wool yield | I37: 0.7
C38: Allow 90% to account for lower value of bellies, skirtings etc. | J38: =J36*0.9 -> 472.5
C42: WOOL SALES - SHEARING | F42: Wool Cut
E43: Number | F43: kg/hd | G43: Price | H43: Total
C44: Ewes | E44: ='Prime Lambs'!E226 -> 970 | F44: 3.5 | G44: =J38/100 -> 4.725 | H44: =E44*F44*G44 -> 16041.375
C45: Crossbred Rams | E45: ='Prime Lambs'!E227 -> 19.4 | F45: 2.5 | G45: 2.79 | H45: =E45*F45*G45 -> 135.315
C47: TOTAL | E47: =SUM(E44:E46) -> 989.4 | F47: =(E44*F44)+(E45*F45) -> 3443.5 | H47: =SUM(H44:H46) -> 16176.69
C50: STOCK HEALTH REQUIREMENTS
G51: Number of times
E52: Number | F52: Drench | G52: Vacc. | H52: Blowfly
C53: Ewes | E53: ='Prime Lambs'!E219 -> 1000 | F53: 2 | G53: 1 | H53: 1
C54: Rams | E54: ='Prime Lambs'!E220 -> 20 | F54: 2 | G54: 1 | H54: 0
C55: Lambs | E55: ='Prime Lambs'!E221 -> 1150 | F55: 1 | G55: 2 | H55: 0
C57: TOTAL | E57: =SUM(E53:E55) -> 2170 | F57: =SUMPRODUCT($E$53:$E$55,F53:F55) -> 3190 | G57: =SUMPRODUCT($E$53:$E$55,G53:G55) -> 3320 | H57: =SUMPRODUCT($E$53:$E$55,H53:H55) -> 1000
C60: FEEDING
C61: HAY | F61: Hay | G61: Kgs Fed | H61: No Weeks | I61: Total
E62: Number | F62: Cost ($/T) | G62: per Week | H62: of Feeding | I62: Cost ($)
C63: Ewes | E63: ='Prime Lambs'!E219 -> 1000 | F63: 260 | G63: 2.5 | H63: 8 | I63: =(H63*G63*E63)/1000*F63 -> 5200
C64: Rams | E64: ='Prime Lambs'!E220 -> 20 | F64: 260 | G64: 2.5 | H64: 8 | I64: =(H64*G64*E64)/1000*F64 -> 104
C67: GRAIN | F67: Grain | G67: Kgs Fed | H67: No weeks | I67: Total
E68: Number | F68: Cost ($/T) | G68: per week | H68: of Feeding | I68: Cost ($)
C69: Ewes | E69: ='Prime Lambs'!E219 -> 1000 | F69: 280 | G69: 3 | H69: 8 | I69: =(H69*G69*E69)/1000*F69 -> 6720
C70: Rams | E70: ='Prime Lambs'!E220 -> 20 | F70: 280 | G70: 3 | H70: 10 | I70: =(H70*G70*E70)/1000*F70 -> 168
C71: Lambs | E71: ='Prime Lambs'!E221 -> 1150 | I71: =(H71*G71*E71)/1000*F71 -> 0
H73: Total Feed Cost | I73: =SUM(I63:I65,I69:I71) -> 12192

Sheet Prime Lambs (hidden)
C1: Prime Lambs (1st cross ewes)
C2: =UPPER(Var_Animal)&" GROSS MARGIN - "&TEXT(m_year,"0000") -> PRIME LAMBS (1ST CROSS EWES) GROSS MARGIN - 2020
C4: ASSUMPTIONS
C6: Ave Breeding Ewe Fibre Diameter | E6: 28 | O6: Total DSE's | Q6: =E197 -> 1840
C7: No. of breeding ewes (1st Cross) | E7: ='Prime Lambs Input'!$E$7 -> 1000
C8: 1st cross ewe - Terminal meat sire
C32: INCOME | Q32: $
C34: Wool (kg greasy) | E34: =G234 -> 3443.5 | G34: kg | I34: av price | K34: =K234*100/G234 -> 469.7746479 | M34: c/kg | Q34: =K234 -> 16176.69
C35: Sales | E35: =E212 -> 1338.636091 | G35: animals | I35: av price | K35: =G212 -> 183.985776 | M35: /head | Q35: =E212*G212 -> 246290
C37: Gross Income | Q37: =SUM(Q34:Q35) -> 262466.69
AA45: STOCK VALUE AND D.S.E REQUIREMENT | AG45: Non lamb related expenses | AM45: Lamb Costs | AN45: No: | AO45: per head | AS45: SHEEP GROSS MARGIN
C46: VARIABLE COSTS | AC46: Value | AD46: Ave Live | AE46: DSE | AS46: PRIME LAMB -
C47: Shearing | K47: Rate | AB47: Number | AC47: $/head | AD47: Wt (Kgs) | AE47: rating | AG47: Shearing | AJ47: =SUM(Q48:Q58) -> 8881.798646 | AM47: Marking | AN47: =$E$121 -> 1150 | AO47: =K76+K77 -> 1.58 | AP47: =AN47*AO47 -> 1817
C48: Shearing | E48: =E226 -> 970 | G48: sheep | I48: Reset Rate> | J48: =GM_INFO!C30 | K48: =GM_INFO!C30 -> 318.62 | M48: /100 | Q48: =K48/100*ROUND(E48,0) -> 3090.614 | AA48: ewes | AB48: ='Prime Lambs Input'!$E$7 -> 1000 | AC48: =(G209+G214)/2 -> 237.5 | AD48: 60 | AE48: =IF(AND(AD48>=55,AD48<60),1.7,IF(AND(AD48>=60,AD48<65),1.8,IF(AND(AD48>=65,AD48<70),1.9,IF(AND(AD48>=70,AD48<75),2,IF(AND(AD48>=75,AD48<80),2.1,IF(AND(AD48>=80,AD48<85),2.2,IF(AND(AD48>=85,AD48<90),2.3,IF(AD48>=90,2.4,0)))))))) -> 1.8 | AG48: Animal health | AJ48: =(E219*G219+E220*G220)*K90+(E219*I219+E220*I220)*K91+(E219*K219)*K92 -> 2669.04 | AM48: Animal health | AN48: =$E$121 -> 1150 | AO48: =G220*K91+I220*K90 -> 1.136 | AP48: =AN48*AO48 -> 1306.4
C49: (Federal awards) | E49: =E227 -> 19.4 | G49: rams | I49: Reset Rate> | J49: =GM_INFO!C31 | K49: =GM_INFO!C31 -> 637.24 | M49: /100 | Q49: =K49/100*ROUND(E49,0) -> 121.0756 | AA49: rams | AB49: ='Prime Lambs Input'!E11*'Prime Lambs'!AB48 -> 20 | AC49: =(G210+G215)/2 -> 990 | AD49: 100 | AE49: 2 | AG49: Stock Purchase | AJ49: =SUM(Q105:Q105) -> 75358.62771 | AM49: Freight | AN49: =$E$121 -> 1150 | AO49: =K121 -> 4 | AP49: =AN49*AO49 -> 4600
C50: Shed labour | E50: 5 | G50: days | I50: Reset Rate> | J50: =GM_INFO!C32 | K50: =GM_INFO!C32 -> 241.12 | M50: /day | Q50: =K50*ROUND(E50,0) -> 1205.6 | AA50: lambs | AB50: =AC227 -> 1150 | AC50: =G211/2 -> 92.5 | AD50: 35 | AE50: 0 | AG50: Freight | AH50: sheep | AJ50: =SUM(Q119:Q120) -> 1605.461454 | AM50: Yard Fees | AN50: =$E$121 -> 1150 | AO50: =K125 -> 0.85 | AP50: =AN50*AO50 -> 977.5
C51: Woolclasser | E51: 2.5 | G51: days | I51: Reset Rate> | J51: =GM_INFO!C33 | K51: =GM_INFO!C33 -> 306.75 | M51: /day | Q51: =K51*E51 -> 766.875 | AA51: TOTAL | AB51: =SUM(AB48:AB50) -> 2170 | AC51: =AB48*AC48+AB49*AC49+AB50*AC50/2 -> 310487.5 | AH51: Wool | AJ51: =Q122 -> 300 | AM51: Levies | AN51: =$E$121 -> 1150 | AO51: =K127+K128 -> 2.17 | AP51: =AN51*AO51 -> 2495.5 | AS51: Ewes mated | AU51: ='Prime Lambs Input'!$E$7 -> 1000 | AX51: Ram % | AY51: =E200 -> 0.02
C52: Superannuation (on ord wages only) | I52: Reset Rate> | J52: =GM_INFO!C34 | K52: =GM_INFO!C34 -> 0.095 | M52: wages | Q52: =(Q48+Q49+Q50+Q51)*K52 -> 492.495637 | AG52: Commission on livestock sales | AJ52: =(K209+K210)*K124 -> 2012.4 | AO52: =SUM(AO47:AO51) -> 9.736 | AQ52: =AO52*AD50 -> 340.76 | AS52: Age ewes purchased | AU52: =E201 -> 1.5 | AX52: Price of rams | AY52: =AL68 -> 0
C53: W/Cover (incl. super + otime etc) | I53: Reset Rate> | J53: =GM_INFO!C35 | K53: =GM_INFO!C35 -> 0.04 | M53: total | Q53: =(Q48+Q49+Q50+Q51+Q52)*K53 -> 227.0664095 | AG53: Yard fees | AJ53: =E119*K125 -> 160.3406773 | AM53: Commission | AN53: =$E$121 -> 1150 | AO53: =G212 -> 183.985776 | AP53: =K124 -> 0.06 | AQ53: =AD50*AO53*AP53 -> 386.3701297 | AS53: Age ewes sold | AU53: =E202 -> 6.5 | AX53: Years rams kept | AY53: =E203 -> 3
C54: Wool packs | E54: =E122 -> 20.25588235 | G54: packs | I54: Reset Rate> | J54: =GM_INFO!C28 | K54: =GM_INFO!C28 -> 12.4 | M54: /pack | Q54: =K54*ROUND(E54,0) -> 248 | AG54: Levies | AJ54: =E126*(K126+K128) -> 164.1133991 | AS54: Av Weaning % | AU54: ='Prime Lambs Input'!E10 -> 1.15 | AX54: Age wethers sold | AY54: 0.5
C55: Shed sundries | E55: =E48+E49 -> 989.4 | G55: sheep | I55: Reset Rate> | J55: =GM_INFO!C36 | K55: =GM_INFO!C36 -> 0.2 | M55: /head | Q55: =K55*ROUND(E55,0) -> 197.8 | AG55: Wool Selling Charges | AJ55: =Q130+Q131 -> 1172.39535 | AQ55: =SUM(AQ43:AQ53) -> 727.1301297 | AS55: dse/ewe | AU55: =AE48 -> 1.8 | AX55: Flock death rate | AY55: =E204 -> 0.03
C56: Lice control | E56: =E48+E49 -> 989.4 | G56: sheep | I56: Reset Rate> | J56: =GM_INFO!C19 | K56: =GM_INFO!C19 -> 1.6 | M56: /head | Q56: =K56*ROUND(E56,0) -> 1582.4 | AG56: Feed & other costs | AJ56: =SUM(Q144:Q149) -> 18700.975
C57: Crutch & Wig | E57: 990 | G57: ewes | I57: Reset Rate> | J57: =GM_INFO!C38 | K57: =GM_INFO!C38 -> 92.4 | M57: /100 | Q57: =K57/100*ROUND(E57,0) -> 914.76 | AK57: =SUM(AJ47:AJ56) -> 111025.1522
E58: =E49 -> 19.4 | G58: rams | I58: Reset Rate> | J58: =GM_INFO!C39 | K58: =GM_INFO!C39 -> 184.8 | M58: /100 | Q58: =K58/100*ROUND(E58,0) -> 35.112
AS60: EWES | AT60: OPENING | AU60: NATURAL | AV60: PURCHASES | AW60: DEATHS | AX60: % sold | AY60: SALES | AZ60: CLOSING
AS61: AGE | AT61: NUMBERS | AU61: INCREASE | AX61: culled | AZ61: NUMBERS
AS63: 0.5-1.5yr | AV63: =IF($N$78=1.5,AT64,AT63-AW63) -> 0 | AY63: =AT63-AW63 -> 0 | AZ63: =AT63+AU63+AV63-AW63-AY63 -> 0
AS64: 1.5-2.5yr | AT64: =IF(AU52=1.5,AU51/(1+(1-AY55)*(1-AX64)*(1+(1-AY55)*(1-AX65)*(1+(1-AY55)*(1-AX66)*(1+(1-AY55)*(1-AX67))))),0) -> 212.3653636 | AV64: =IF(AU52=2.5,AT65-AY64,0) -> 0 | AW64: =AT64*$R$81 -> 0 | AY64: =(AT64-AW64)*AX64 -> 0 | AZ64: 212.3653636
AS65: 2.5-3.5yr | AT65: =IF(AU52=2.5,AU51/(1+(1-AY55)*(1-AX65)*(1+(1-AY55)*(1-AX66)*(1+(1-AY55)*(1-AX67)))),AZ64) -> 212.3653636 | AV65: =IF(AU52=3.5,AT66-AY65,0) -> 0 | AW65: =AT65*$R$81 -> 0 | AY65: =(AT65-AW65)*AX65 -> 0 | AZ65: 212.3653636
AS66: 3.5-4.5yr | AT66: =IF(AU52=3.5,AU51/(1+(1-AY55)*(1-AX66)*(1+(1-AY55)*(1-AX67))),AZ65) -> 212.3653636 | AV66: =IF(AU52=4.5,AT67-AY66,0) -> 0 | AW66: =AT66*$R$81 -> 0 | AY66: =(AT66-AW66)*AX66 -> 0 | AZ66: 212.3653636
AS67: 4.5-5.5yr | AT67: =IF(AU52=4.5,AU51/(1+(1-AY55)*(1-AX67)),AZ66) -> 212.3653636 | AW67: =AT67*$R$81 -> 0 | AX67: =IF(AU53=5.5,1,0) -> 0 | AY67: =(AT67-AW67)*AX67 -> 0 | AZ67: 212.3653636
AS68: 5.5-6.5yr | AT68: =AZ67 -> 212.3653636 | AW68: =AT68*$R$81 -> 0 | AX68: =IF(AU53=6.5,1,0) -> 1 | AY68: =(AT68-AW68)*AX68 -> 212.3653636 | AZ68: 0
AS69: Ewes | AT69: =SUM(AT64:AT68) -> 1061.826818 | AV69: =AV63+AV64+AV65+AV66 -> 0 | AW69: =SUM(AW63:AW68) -> 0 | AY69: =SUM(AY64:AY68) -> 212.3653636 | AZ69: =SUM(AZ63:AZ67) -> 849.4614545
AS70: d.s.e's | AT70: =AT63+AT69*AU55 -> 1911.288273
AS73: LAMBS | AT73: OPENING | AU73: NATURAL | AV73: PURCHASES | AW73: DEATHS | AX73: % sold | AY73: SALES | AZ73: CLOSING
AS74: AGE | AT74: NUMBERS | AU74: INCREASE | AX74: culled | AZ74: NUMBERS
C75: Marking
C76: Lamb marking | E76: =AC227 -> 1150 | G76: lambs | I76: Reset Rate> | J76: =GM_INFO!C42 | K76: =GM_INFO!C42 -> 1.15 | M76: /head | Q76: =K76*ROUND(E76,0) -> 1322.5 | AS76: 0-0.5yr | AU76: =AU51*AU54 -> 1150 | AX76: 1 | AY76: =AU76*AX76 -> 1150 | AZ76: =AT76+AU76+AV76-AW76-AY76 -> 0
C77: Ear tags | E77: =AC227 -> 1150 | G77: lambs | I77: Reset Rate> | J77: =GM_INFO!C43 | K77: =GM_INFO!C43 -> 0.43 | M77: /head | Q77: =K77*ROUND(E77,0) -> 494.5
AS79: RAMS | AT79: OPENING | AU79: NATURAL | AV79: PURCHASES | AW79: DEATHS | AX79: % sold | AY79: SALES | AZ79: CLOSING
AS80: AGE | AT80: NUMBERS | AU80: INCREASE | AX80: culled | AZ80: NUMBERS
AS82: 0.5-1.5yr | AV82: =AT83/(1-AX82) -> 6.870727266 | AW82: =AT82*$R$81 -> 0 | AZ82: =AT82+AU82+AV82-AW82-AY82 -> 6.870727266
AS83: 1.5-2.5yr | AT83: =IF(AY53=3,(AU51*AY51)/(1+(1-AY55)*(1-AX83)*(1+(1-AY55)*(1-AX84)*(1+(1-AY55)*(1-AX85)))),IF(AY53=4,(AU51*AY51)/(1+(1-AY55)*(1-AX83)*(1+(1-AY55)*(1-AX84)*(1+(1-AY55)*(1-AX85)*(1+(1-AY55)*(1-AX86))))),0)) -> 6.870727266 | AW83: =AT83*$R$81 -> 0 | AZ83: =AT83+AU83+AV83-AW83-AY83 -> 6.870727266
AS84: 2.5-3.5yr | AT84: =AZ83 -> 6.870727266 | AW84: =AT84*$R$81 -> 0 | AZ84: =AT84+AU84+AV84-AW84-AY84 -> 6.870727266
AS85: 3.5-4.5yr | AT85: =AZ84 -> 6.870727266 | AW85: =AT85*$R$81 -> 0 | AX85: =IF(AY53=3,100%,0) -> 1 | AY85: =(AT85-AW85)*AX85 -> 6.870727266 | AZ85: =AT85+AU85+AV85-AW85-AY85 -> 0
AS86: 4.5-5.5yr | AT86: =AZ85 -> 0 | AW86: =AT86*$R$81 -> 0 | AX86: =IF(AY53=4,100%,0) -> 0 | AY86: =AT86-AW86 -> 0 | AZ86: =AT86+AU86+AV86-AW86-AY86 -> 0
AT87: =AT82+AT83+AT84+AT85+AT86 -> 20.6121818 | AV87: =AV82+AV83+AV84+AV85+AV86 -> 6.870727266 | AW87: =AW82+AW83+AW84+AW85+AW86 -> 0 | AY87: =AY82+AY83+AY84+AY85+AY86 -> 6.870727266 | AZ87: =AZ82+AZ83+AZ84+AZ85+AZ86 -> 20.6121818
AS88: d.s.e's | AT88: =AT87*AE49 -> 41.2243636
C89: Animal Health
C90: Drench | E90: =G222 -> 3190 | G90: sheep | I90: Reset Rate> | J90: =GM_INFO!C21 | K90: =GM_INFO!C21 -> 0.456 | M90: /head | Q90: =K90*ROUND(E90,0) -> 1454.64
C91: Vaccinate | E91: =I222 -> 3320 | G91: sheep | I91: Reset Rate> | J91: =GM_INFO!C25 | K91: =GM_INFO!C25 -> 0.34 | M91: /head | Q91: =K91*ROUND(E91,0) -> 1128.8
C92: Blowfly control | E92: =K222 -> 1000 | G92: sheep | I92: Reset Rate> | J92: =GM_INFO!C27 | K92: =GM_INFO!C27 -> 1.392 | M92: /head | Q92: =K92*ROUND(E92,0) -> 1392
C104: Stock purchases
C105: Purchases | Q105: =K214+K215 -> 75358.62771
C117: Sale Costs
C118: Freight
C119: Livestock | E119: =SUM(E209:E210) -> 188.6360909 | G119: culls | I119: Reset Rate> | J119: =GM_INFO!B111 | K119: =GM_INFO!B111 -> 4 | M119: /head | Q119: =K119*ROUND(E119,0) -> 756
E120: =E214 -> 212.3653636 | G120: ewes | I120: Reset Rate> | J120: =GM_INFO!B112 | K120: =GM_INFO!B112 -> 4 | M120: /head | Q120: =K120*E120 -> 849.4614545
E121: =E211 -> 1150 | G121: prime lambs | I121: Reset Rate> | J121: =GM_INFO!B113 | K121: =GM_INFO!B113 -> 4 | M121: /head | Q121: =K121*ROUND(E121,0) -> 4600
C122: Wool | E122: =G234/170 -> 20.25588235 | G122: bales | I122: Reset Rate> | J122: =GM_INFO!B114 | K122: =GM_INFO!B114 -> 15 | M122: /bale | Q122: =K122*ROUND(E122,0) -> 300
C123: Stock selling charges
C124: Commission/insurance | I124: Reset Rate> | J124: =GM_INFO!C48 | K124: =GM_INFO!C48 -> 0.06 | M124: gross $ | Q124: =K124*Q35 -> 14777.4
C125: Yard fees | E125: =E212 -> 1338.636091 | G125: sheep | I125: Reset Rate> | J125: =GM_INFO!C49 | K125: =GM_INFO!C49 -> 0.85 | M125: /head | Q125: =K125*ROUND(E125,0) -> 1138.15
C126: Levy-sheep | E126: =E119 -> 188.6360909 | G126: sheep | I126: Reset Rate> | J126: =GM_INFO!C50 | K126: =GM_INFO!C50 -> 0.2 | M126: /head | Q126: =K126*ROUND(E126,0) -> 37.8
C127: Levy-lambs | E127: =E211 -> 1150 | G127: sheep | I127: Reset Rate> | J127: =GM_INFO!C51 | K127: =GM_INFO!C51 -> 1.5 | M127: /head | Q127: =K127*ROUND(E127,0) -> 1725
C128: SA sheep industry levy | E128: =E212 -> 1338.636091 | G128: sheep | I128: Reset Rate> | J128: =GM_INFO!C52 | K128: =GM_INFO!C52 -> 0.67 | M128: /head | Q128: =K128*ROUND(E128,0) -> 897.13
C129: Wool selling charges
C130: Brokerage/testing/insurance | I130: Reset Rate> | J130: =GM_INFO!C53 | K130: =GM_INFO!C53 -> 0.27 | M130: /kg | Q130: =K130*E34 -> 929.745
C131: Wool levy | I131: Reset Rate> | J131: =GM_INFO!C54 | K131: =GM_INFO!C54 -> 0.015 | M131: gross | Q131: =K131*Q34 -> 242.65035
C143: Feed and Other Costs
C144: Hay | Q144: =SUM('Prime Lambs Input'!I63:I65) -> 5304
C145: Grain | Q145: =SUM('Prime Lambs Input'!I69:I71) -> 6888
C146: Insurance | E146: =AC51 -> 310487.5 | G146: value | I146: Reset Rate> | J146: =GM_INFO!B107 | K146: =GM_INFO!B107 -> 2 | M146: /$'000 | Q146: =K146/1000*E146 -> 620.975
C147: Water | E147: =$Q$6 -> 1840 | G147: DSE's | I147: Reset Rate> | J147: =GM_INFO!D79 | K147: =GM_INFO!D79 -> 1.5 | M147: /DSE's | Q147: =K147*E147 -> 2760
C148: Veh Fuel, R&M | E148: =$Q$6 -> 1840 | G148: DSE's | I148: Reset Rate> | J148: =GM_INFO!D80 | K148: =GM_INFO!D80 -> 1.2 | M148: /DSE's | Q148: =K148*E148 -> 2208
C149: Other | E149: =$Q$6 -> 1840 | G149: DSE's | I149: Reset Rate> | J149: =GM_INFO!D81 | K149: =GM_INFO!D81 -> 0.5 | M149: /DSE's | Q149: =K149*E149 -> 920
C170: TOTAL VARIABLE COSTS | Q170: =SUM(Q48:Q166) -> 134987.1782
C172: GROSS MARGIN TOTAL | Q172: =Q37-Q170 -> 127479.5118
C174: GROSS MARGIN/DSE | Q174: =Q172/Q6 -> 69.28234339
C194: PRODUCTION DATA
C196: Stocking rate (DSE/Ha) | E196: 6 | K196: Culling Rate (% from each group) | AA196: SHEEP GROSS MARGIN
C197: Total DSE's | E197: =SUMPRODUCT(AB48:AB50,AE48:AE50) -> 1840 | K197: Age Group | M197: Ewes | O197: Wethers | AA197: PRIME LAMB -
C198: SHEEP GRAZING AREA | E198: =E197/E196 -> 306.6666667 | K198: 0.5 | M198: =AF214 -> 0
C199: Number of ewes mated | E199: ='Prime Lambs Input'!E7 -> 1000 | K199: 1.5 | M199: 0
C200: Ram percentage | E200: ='Prime Lambs Input'!E11 -> 0.02 | K200: 2.5 | M200: 0
C201: Age ewes bought (yrs) | E201: ='Prime Lambs Input'!E8 -> 1.5 | K201: 3.5 | M201: 0
C202: Age ewes culled | E202: ='Prime Lambs Input'!E9 -> 6.5 | K202: 4.5 | M202: 0 | AA202: Ewes mated | AC202: ='Prime Lambs Input'!E7 -> 1000 | AF202: Ram % | AG202: =E200 -> 0.02
B203: =VLOOKUP(r[0]c3&"No Ops",CHOOSE({1,2},tbl_ops[Name]&tbl_ops[Category],INDIRECT("tbl_ops["&var_crop&"]")),2,0) | C203: Years rams kept | E203: ='Prime Lambs Input'!E12 -> 3 | K203: 5.5 | M203: 1 | AA203: Age ewes purchased | AC203: =E201 -> 1.5 | AF203: Price of rams | AG203: =G215 -> 1850
B204: =VLOOKUP(r[0]c3&"No Ops",CHOOSE({1,2},tbl_ops[Name]&tbl_ops[Category],INDIRECT("tbl_ops["&var_crop&"]")),2,0) | C204: Flock death rate | E204: ='Prime Lambs Input'!E13 -> 0.03 | K204: 6.5 | M204: 0 | AA204: Age ewes sold | AC204: =E202 -> 6.5 | AF204: Years rams kept | AG204: =E203 -> 3
B205: =VLOOKUP(r[0]c3&"No Ops",CHOOSE({1,2},tbl_ops[Name]&tbl_ops[Category],INDIRECT("tbl_ops["&var_crop&"]")),2,0) | C205: Average weaning rate | E205: =AC205 -> 1.15 | AA205: Av Weaning % | AC205: ='Prime Lambs Input'!E10 -> 1.15 | AF205: Age wethers sold | AG205: 0.5
B206: =VLOOKUP(r[0]c3&"No Ops",CHOOSE({1,2},tbl_ops[Name]&tbl_ops[Category],INDIRECT("tbl_ops["&var_crop&"]")),2,0) | C206: % Lambs carried over | E206: 0 | AA206: dse/ewe | AC206: =AE48 -> 1.8 | AF206: Flock death rate | AG206: =E204 -> 0.03
B207: =VLOOKUP(r[0]c3&var_rain,CHOOSE({1,2},tbl_ops[Name]&tbl_ops[Rainfall],INDIRECT("tbl_ops["&var_crop&"]")),2,0)
B208: =VLOOKUP(r[0]c3&var_rain,CHOOSE({1,2},tbl_ops[Name]&tbl_ops[Rainfall],INDIRECT("tbl_ops["&var_crop&"]")),2,0) | C208: SALES | E208: Number | G208: Price/hd | I208: Age | K208: Total
B209: =VLOOKUP(r[0]c3&var_rain,CHOOSE({1,2},tbl_ops[Name]&tbl_ops[Rainfall],INDIRECT("tbl_ops["&var_crop&"]")),2,0) | C209: c.f.a ewes | E209: =AG220 -> 182.3653636 | G209: ='Prime Lambs Input'!E18 -> 180 | I209: =E202 -> 6.5 | K209: =ROUND(E209,0)*G209 -> 32760
B210: =VLOOKUP(r[0]c3&var_rain,CHOOSE({1,2},tbl_ops[Name]&tbl_ops[Rainfall],INDIRECT("tbl_ops["&var_crop&"]")),2,0) | C210: c.f.a rams | E210: =AG238 -> 6.270727266 | G210: ='Prime Lambs Input'!E19 -> 130 | I210: =E203+1.5 -> 4.5 | K210: =ROUND(E210,0)*G210 -> 780
C211: Lambs | E211: =AG227 -> 1150 | G211: ='Prime Lambs Input'!E20 -> 185 | I211: 20 Weeks | K211: =ROUND(E211,0)*G211 -> 212750 | AA211: EWES | AB211: OPENING | AC211: NATURAL | AD211: PURCHASES | AE211: DEATHS | AF211: % sold | AG211: SALES | AH211: CLOSING
C212: TOTAL | E212: =SUM(E209:E211) -> 1338.636091 | G212: =K212/E212 -> 183.985776 | K212: =SUM(K209:K211) -> 246290 | AA212: AGE | AB212: NUMBERS | AC212: INCREASE | AF212: culled | AH212: NUMBERS
C213: PURCHASES | E213: Number | G213: Price/hd | I213: Age | K213: Total
C214: Ewes | E214: =AD220 -> 212.3653636 | G214: ='Prime Lambs Input'!E29 -> 295 | I214: =E201 -> 1.5 | K214: =E214*G214 -> 62647.78227 | AA214: 0.5-1.5yr | AD214: =IF(AC203=1.5,AB215,AB214-AE214) -> 212.3653636 | AG214: =AB214-AE214 -> 0 | AH214: =AB214+AC214+AD214-AE214-AG214 -> 212.3653636
C215: Rams | E215: =AD238 -> 6.870727266 | G215: ='Prime Lambs Input'!E30 -> 1850 | I215: 1.5 | K215: =E215*G215 -> 12710.84544 | AA215: 1.5-2.5yr | AB215: =IF(AC203=1.5,AC202/(1+(1-AG206)*(1-AF215)*(1+(1-AG206)*(1-AF216)*(1+(1-AG206)*(1-AF217)*(1+(1-AG206)*(1-AF218))))),0) -> 212.3653636 | AD215: =IF(AC203=2.5,AB216-AG215,0) -> 0 | AE215: =AB215*$AG$206 -> 6.370960909 | AG215: =(AB215-AE215)*AF215 -> 0 | AH215: 205.9944027
AA216: 2.5-3.5yr | AB216: =IF(AC203=2.5,AC202/(1+(1-AG206)*(1-AF216)*(1+(1-AG206)*(1-AF217)*(1+(1-AG206)*(1-AF218)))),AH215) -> 205.9944027 | AD216: =IF(AC203=3.5,AB217-AG216,0) -> 0 | AE216: =AB216*$AG$206 -> 6.179832081 | AG216: =(AB216-AE216)*AF216 -> 0 | AH216: 199.8145706
E217: Number of Times | AA217: 3.5-4.5yr | AB217: =IF(AC203=3.5,AC202/(1+(1-AG206)*(1-AF217)*(1+(1-AG206)*(1-AF218))),AH216) -> 199.8145706 | AD217: =IF(AC203=4.5,AB218-AG217,0) -> 0 | AE217: =AB217*$AG$206 -> 5.994437119 | AG217: =(AB217-AE217)*AF217 -> 0 | AH217: 193.8201335
C218: STOCK HEALTH REQUIREMENTS | E218: Number | G218: Drench | I218: Vacc. | K218: Blowfly | M218: DSE | AA218: 4.5-5.5yr | AB218: =IF(AC203=4.5,AC202/(1+(1-AG206)*(1-AF218)),AH217) -> 193.8201335 | AE218: =AB218*$AG$206 -> 5.814604005 | AF218: =IF(AC204=5.5,1,0) -> 0 | AG218: =(AB218-AE218)*AF218 -> 0 | AH218: 188.0055295
C219: Ewes | E219: ='Prime Lambs Input'!E7 -> 1000 | G219: ='Prime Lambs Input'!F53 -> 2 | I219: ='Prime Lambs Input'!G53 -> 1 | K219: ='Prime Lambs Input'!H53 -> 1 | M219: 1.8 | AA219: 5.5-6.5yr | AB219: =AH218 -> 188.0055295 | AE219: =AB219*$AG$206 -> 5.640165885 | AF219: =IF(AC204=6.5,1,0) -> 1 | AG219: =(AB219-AE219)*AF219 -> 182.3653636 | AH219: 0
C220: Rams | E220: =AB49 -> 20 | G220: ='Prime Lambs Input'!F54 -> 2 | I220: ='Prime Lambs Input'!G54 -> 1 | K220: ='Prime Lambs Input'!H54 -> 0 | M220: 2 | AA220: Ewes | AB220: =SUM(AB215:AB219) -> 1000 | AD220: =AD214+AD215+AD216+AD217 -> 212.3653636 | AE220: =SUM(AE214:AE219) -> 30 | AG220: =SUM(AG215:AG219) -> 182.3653636 | AH220: =SUM(AH214:AH218) -> 1000
C221: Lambs | E221: =AC227 -> 1150 | G221: ='Prime Lambs Input'!F55 -> 1 | I221: ='Prime Lambs Input'!G55 -> 2 | K221: ='Prime Lambs Input'!H55 -> 0 | AA221: d.s.e's | AB221: =AB214+AB220*AC206 -> 1800
C222: TOTAL | E222: =SUM(E219:E221) -> 2170 | G222: =SUMPRODUCT($E$219:$E$221,G219:G221) -> 3190 | I222: =SUMPRODUCT($E$219:$E$221,I219:I221) -> 3320 | K222: =SUMPRODUCT($E$219:$E$221,K219:K221) -> 1000 | M222: =SUMPRODUCT($E$219:$E$221,M219:M221) -> 1840
G224: Wool Cut kg/hd | AA224: LAMBS | AB224: OPENING | AC224: NATURAL | AD224: PURCHASES | AE224: DEATHS | AF224: % sold | AG224: SALES | AH224: CLOSING
C225: SHEARING | E225: Number | I225: Price | K225: Total | AA225: AGE | AB225: NUMBERS | AC225: INCREASE | AF225: culled | AH225: NUMBERS
C226: Ewes | E226: =AB220-AE220 -> 970 | G226: ='Prime Lambs Input'!F44 -> 3.5 | I226: ='Prime Lambs Input'!G44 -> 4.725 | K226: =I226*G226*E226 -> 16041.375
C227: Crossbred rams | E227: =AB238-AE238 -> 19.4 | G227: ='Prime Lambs Input'!F45 -> 2.5 | I227: ='Prime Lambs Input'!G45 -> 2.79 | K227: =I227*G227*E227 -> 135.315 | AA227: 0-0.5yr | AC227: =AC202*AC205 -> 1150 | AF227: 1 | AG227: =AC227*AF227 -> 1150 | AH227: =AB227+AC227+AD227-AE227-AG227 -> 0
AA230: RAMS | AB230: OPENING | AC230: NATURAL | AD230: PURCHASES | AE230: DEATHS | AF230: % sold | AG230: SALES | AH230: CLOSING
AA231: AGE | AB231: NUMBERS | AC231: INCREASE | AF231: culled | AH231: NUMBERS
AA233: 0.5-1.5yr | AD233: =AB234/(1-AF233) -> 6.870727266 | AE233: =AB233*$AG$206 -> 0 | AH233: =AB233+AC233+AD233-AE233-AG233 -> 6.870727266
C234: TOTAL | E234: =SUM(E226:E233) -> 989.4 | G234: =SUMPRODUCT(E226:E233,G226:G233) -> 3443.5 | K234: =SUM(K226:K233) -> 16176.69 | AA234: 1.5-2.5yr | AB234: =IF(AG204=3,(AC202*AG202)/(1+(1-AG206)*(1-AF234)*(1+(1-AG206)*(1-AF235)*(1+(1-AG206)*(1-AF236)))),IF(AG204=4,(AC202*AG202)/(1+(1-AG206)*(1-AF234)*(1+(1-AG206)*(1-AF235)*(1+(1-AG206)*(1-AF236)*(1+(1-AG206)*(1-AF237))))),0)) -> 6.870727266 | AE234: =AB234*$AG$206 -> 0.206121818 | AH234: =AB234+AC234+AD234-AE234-AG234 -> 6.664605448
AA235: 2.5-3.5yr | AB235: =AH234 -> 6.664605448 | AE235: =AB235*$AG$206 -> 0.1999381635 | AH235: =AB235+AC235+AD235-AE235-AG235 -> 6.464667285
AA236: 3.5-4.5yr | AB236: =AH235 -> 6.464667285 | AE236: =AB236*$AG$206 -> 0.1939400186 | AF236: =IF(AG204=3,100%,0) -> 1 | AG236: =(AB236-AE236)*AF236 -> 6.270727266 | AH236: =AB236+AC236+AD236-AE236-AG236 -> 0
G237: Hay Cost ($/T) | I237: Kg Fed per Week | K237: No of Weeks Feeding | M237: Total Cost ($) | AA237: 4.5-5.5yr | AB237: =AH236 -> 0 | AE237: =AB237*$AG$206 -> 0 | AF237: =IF(AG204=4,100%,0) -> 0 | AG237: =AB237-AE237 -> 0 | AH237: =AB237+AC237+AD237-AE237-AG237 -> 0
C238: FEEDING | E238: Number | AB238: =AB233+AB234+AB235+AB236+AB237 -> 20 | AD238: =AD233+AD234+AD235+AD236+AD237 -> 6.870727266 | AE238: =AE233+AE234+AE235+AE236+AE237 -> 0.6 | AG238: =AG233+AG234+AG235+AG236+AG237 -> 6.270727266 | AH238: =AH233+AH234+AH235+AH236+AH237 -> 20
C239: Ewes | E239: ='Prime Lambs Input'!E63 -> 1000 | G239: ='Prime Lambs Input'!F63 -> 260 | I239: ='Prime Lambs Input'!G63 -> 2.5 | K239: ='Prime Lambs Input'!H63 -> 8 | M239: =(E239*G239*I239*K239)/1000 -> 5200 | AA239: d.s.e's | AB239: =AB238*AE142 -> 0
C240: Rams | E240: ='Prime Lambs Input'!E64 -> 20 | G240: ='Prime Lambs Input'!F64 -> 260 | I240: ='Prime Lambs Input'!G64 -> 2.5 | K240: ='Prime Lambs Input'!H64 -> 8 | M240: =(E240*G240*I240*K240)/1000 -> 104
C241: Lambs | E241: ='Prime Lambs Input'!E65 -> 0 | G241: ='Prime Lambs Input'!F65 -> 0 | I241: ='Prime Lambs Input'!G65 -> 0 | K241: ='Prime Lambs Input'!H65 -> 0 | M241: =(E241*G241*I241*K241)/1000 -> 0
G242: Grain Cost ($/T) | I242: Kg Fed per Week | K242: No of Weeks Feeding | M242: Total Cost ($)
E243: Number
C244: Ewes | E244: ='Prime Lambs Input'!E69 -> 1000 | G244: ='Prime Lambs Input'!F69 -> 280 | I244: ='Prime Lambs Input'!G69 -> 3 | K244: ='Prime Lambs Input'!H69 -> 8 | M244: =(E244*G244*I244*K244)/1000 -> 6720
C245: Rams | E245: ='Prime Lambs Input'!E70 -> 20 | G245: ='Prime Lambs Input'!F70 -> 280 | I245: ='Prime Lambs Input'!G70 -> 3 | K245: ='Prime Lambs Input'!H70 -> 10 | M245: =(E245*G245*I245*K245)/1000 -> 168
C246: Lambs | E246: ='Prime Lambs Input'!E71 -> 1150 | G246: ='Prime Lambs Input'!F71 -> 0 | I246: ='Prime Lambs Input'!G71 -> 0 | K246: ='Prime Lambs Input'!H71 -> 0 | M246: =(E246*G246*I246*K246)/1000 -> 0
C247: TOTAL FEED COST | M247: =SUM(M239:M241,M244:M246) -> 12192
C250: GM SENSITIVITY
C251: Gross Margin/DSE | E251: Average Weaning Rate
G252: 0.95 | I252: 1.05 | K252: 1.15 | M252: 1.25 | O252: 1.35 | Q252: 1.45
E253: 160 | G253: =($E$199*G$252*$E253*(1-$K$124)+SUM($K$209:$K$210)+$K$234-$AK$57-$E$199*G$252*$AO$52)/$E$197 -> 39.30561835 | I253: =($E$199*I$252*$E253*(1-$K$124)+SUM($K$209:$K$210)+$K$234-$AK$57-$E$199*I$252*$AO$52)/$E$197 -> 46.95040096 | K253: =($E$199*K$252*$E253*(1-$K$124)+SUM($K$209:$K$210)+$K$234-$AK$57-$E$199*K$252*$AO$52)/$E$197 -> 54.59518357 | M253: =($E$199*M$252*$E253*(1-$K$124)+SUM($K$209:$K$210)+$K$234-$AK$57-$E$199*M$252*$AO$52)/$E$197 -> 62.23996617 | O253: =($E$199*O$252*$E253*(1-$K$124)+SUM($K$209:$K$210)+$K$234-$AK$57-$E$199*O$252*$AO$52)/$E$197 -> 69.88474878 | Q253: =($E$199*Q$252*$E253*(1-$K$124)+SUM($K$209:$K$210)+$K$234-$AK$57-$E$199*Q$252*$AO$52)/$E$197 -> 77.52953139
E254: 165 | G254: 41.73224878 | I254: 49.63246617 | K254: 57.53268357 | M254: 65.43290096 | O254: 73.33311835 | Q254: 81.23333574
C255: Average Lamb Sale Price($/hd) | E255: 170 | G255: 44.15887922 | I255: 52.31453139 | K255: 60.47018357 | M255: 68.62583574 | O255: 76.78148791 | Q255: 84.93714009
E256: 175 | G256: 46.58550965 | I256: 54.99659661 | K256: 63.40768357 | M256: 71.81877052 | O256: 80.22985748 | Q256: 88.64094444
E257: 180 | G257: 49.01214009 | I257: 57.67866183 | K257: 66.34518357 | M257: 75.0117053 | O257: 83.67822704 | Q257: 92.34474878
E258: 185 | G258: 51.43877052 | I258: 60.36072704 | K258: 69.28268357 | M258: 78.20464009 | O258: 87.12659661 | Q258: 96.04855313
E259: 190 | G259: 53.86540096 | I259: 63.04279226 | K259: 72.22018357 | M259: 81.39757487 | O259: 90.57496617 | Q259: 99.75235748
E260: 195 | G260: 56.29203139 | I260: 65.72485748 | K260: 75.15768357 | M260: 84.59050965 | O260: 94.02333574 | Q260: 103.4561618
E261: 200 | G261: 58.71866183 | I261: 68.4069227 | K261: 78.09518357 | M261: 87.78344444 | O261: 97.4717053 | Q261: 107.1599662
E262: 205 | G262: 61.14529226 | I262: 71.08898791 | K262: 81.03268357 | M262: 90.97637922 | O262: 100.9200749 | Q262: 110.8637705
E263: 210 | G263: 63.5719227 | I263: 73.77105313 | K263: 83.97018357 | M263: 94.169314 | O263: 104.3684444 | Q263: 114.5675749

Sheet Prime Lambs Merino Ewes Input (hidden)
C1: Prime Lambs Merino Ewes
C2: =UPPER(var_animal)&" GROSS MARGIN - "&TEXT(m_year,"0000") -> PRIME LAMBS MERINO EWES GROSS MARGIN - 2020
C4: GENERAL INFORMATION
C5: This represents a Merino Ewe enterprise mated to a terminal sire. All ewe replacements are purchased, but age of replacements can be varied from 1.5 years to 4.5 years. NB. Can be bought from own self-replacing merino enterprise. Following are the various assumptions used in the calculation of the Gross Margin. Cells with yellow highlight can be changed. No allowance has been made for pasture expenses such as seed, fertiliser and chemicals. Refer to pasture gross margins in the “Cropping Gross Margin Plan” for annual and perennial pasture costs. Use the livestock gross margin per DSE as income for the pasture gross margin.
C7: Ewes mated | E7: 1000
C8: Age ewes purchased | E8: 1.5
C9: Age ewes sold | E9: 5.5
C10: Av Weaning % | E10: 0.95
C11: Ram percentage | E11: 0.025
C12: Years Rams Kept | E12: 3
C13: Flock death Rate | E13: 0.03
C14: % Lambs carried over | E14: 0
C17: LIVESTOCK SALES | E17: Price/Hd | F17: Number | G17: Total
C18: c.f.a Ewes | E18: 170 | F18: ='Prime Lambs Merino Ewes'!AG220 -> 231.53548 | G18: =E18*ROUND(F18,0) -> 39440
C19: c.f.a Rams | E19: 130 | F19: ='Prime Lambs Merino Ewes'!AG238 -> 7.838409083 | G19: =E19*ROUND(F19,0) -> 1040
C20: Lambs | E20: 185 | F20: ='Prime Lambs Merino Ewes'!AG227 -> 950 | G20: =E20*ROUND(F20,0) -> 175750
C25: TOTAL SALES | F25: =SUM(F18:F23) -> 1189.373889 | G25: =SUM(G18:G23) -> 216230
C28: LIVESTOCK PURCHASES | E28: Price/Hd | F28: Number | G28: Total
C29: Ewes | E29: 240 | F29: ='Prime Lambs Merino Ewes'!AD220 -> 261.53548 | G29: =E29*F29 -> 62768.51521 | H29: Change Ewe price depending on
C30: Rams | E30: 1850 | F30: =ROUND('Prime Lambs Merino Ewes'!AD238,0) -> 9 | G30: =E30*F30 -> 16650 | H30: age purchased.
C32: TOTAL PURCHASES | F32: =SUM(F29:F30) -> 270.53548 | G32: =SUM(G29:G30) -> 79418.51521
C35: WOOL PRICE (cents/kg) | F35: =TEXT(m_year-3,"0000")&" Average (Clean)" -> 2017 Average (Clean) | G35: =TEXT(m_year-2,"0000")&" Average (Clean)" -> 2018 Average (Clean) | H35: =TEXT(m_year-1,"0000")&" Average (Clean)" -> 2019 Average (Clean) | I35: Budget Base (Clean) | J35: Budget Base (Greasy) | L35: Wool Type | M35: Budget Clean Price
E36: Wool- High Rainfall 21 mic 68% yield | F36: 1533 | G36: 2085 | H36: 1995 | I36: 1780 | J36: =I36*I37 -> 1246 | L36: 19 mic | M36: 1820
E37: Estimated wool yield | I37: 0.7 | L37: 21 mic | M37: 1780
C38: Allow 90% to account for lower value of bellies, skirtings etc. | J38: =J36*0.9 -> 1121.4 | L38: 22 mic | M38: 1765
C42: WOOL SALES - SHEARING | F42: Wool Cut
E43: Number | F43: kg/hd | G43: Price | H43: Total
C44: Ewes | E44: ='Prime Lambs Merino Ewes'!E226 -> 970 | F44: 6.5 | G44: =J36/100 -> 12.46 | H44: =E44*F44*G44 -> 78560.3
C45: Crossbred Rams | E45: ='Prime Lambs Merino Ewes'!E227 -> 24.25 | F45: 3 | G45: =GM_INFO!F98/100 -> 3.104 | H45: =E45*F45*G45 -> 225.816
C47: TOTAL | E47: =SUM(E44:E46) -> 994.25 | F47: =(E44*F44)+(E45*F45) -> 6377.75 | H47: =SUM(H44:H46) -> 78786.116
C50: STOCK HEALTH REQUIREMENTS
G51: Number of times
E52: Number | F52: Drench | G52: Vacc. | H52: Blowfly
C53: Ewes | E53: ='Prime Lambs Merino Ewes'!E219 -> 1000 | F53: 1 | G53: 1 | H53: 1
C54: Rams | E54: ='Prime Lambs Merino Ewes'!E220 -> 25 | F54: 2 | G54: 1 | H54: 0
C55: Lambs | E55: ='Prime Lambs Merino Ewes'!E221 -> 950 | F55: 1 | G55: 2 | H55: 0
C57: TOTAL | E57: =SUM(E53:E55) -> 1975 | F57: =SUMPRODUCT($E$53:$E$55,F53:F55) -> 2000 | G57: =SUMPRODUCT($E$53:$E$55,G53:G55) -> 2925 | H57: =SUMPRODUCT($E$53:$E$55,H53:H55) -> 1000
C60: FEEDING
C61: HAY | F61: Hay | G61: Kgs Fed | H61: No Weeks | I61: Total
E62: Number | F62: Cost ($/T) | G62: per Week | H62: of Feeding | I62: Cost ($)
C63: Ewes | E63: ='Prime Lambs Merino Ewes'!E219 -> 1000 | F63: 260 | G63: 2.5 | H63: 8 | I63: =(H63*G63*E63)/1000*F63 -> 5200
C64: Rams | E64: ='Prime Lambs Merino Ewes'!E220 -> 25 | F64: 260 | G64: 2.5 | H64: 8 | I64: =(H64*G64*E64)/1000*F64 -> 130
C65: Lambs | E65: ='Prime Lambs Merino Ewes'!E221 -> 950 | F65: 260 | I65: =(H65*G65*E65)/1000*F65 -> 0
C67: GRAIN | F67: Grain | G67: Kgs Fed | H67: No weeks | I67: Total
E68: Number | F68: Cost ($/T) | G68: per week | H68: of Feeding | I68: Cost ($)
C69: Ewes | E69: ='Prime Lambs Merino Ewes'!E219 -> 1000 | F69: 280 | G69: 3 | H69: 8 | I69: =(H69*G69*E69)/1000*F69 -> 6720
C70: Rams | E70: ='Prime Lambs Merino Ewes'!E220 -> 25 | F70: 280 | G70: 3 | H70: 10 | I70: =(H70*G70*E70)/1000*F70 -> 210
C71: Lambs | E71: ='Prime Lambs Merino Ewes'!E221 -> 950 | I71: =(H71*G71*E71)/1000*F71 -> 0
H73: Total Feed Cost | I73: =SUM(I63:I65,I69:I71) -> 12260

Sheet Prime Lambs Merino Ewes (hidden)
C1: Prime Lambs Merino Ewes
C2: =UPPER(Var_Animal)&" GROSS MARGIN - "&TEXT(m_year,"0000") -> PRIME LAMBS MERINO EWES GROSS MARGIN - 2020
C4: ASSUMPTIONS
C6: Ave Breeding Ewe Fibre Diameter | E6: 21 | O6: Total DSE's | Q6: =E197 -> 1850
C7: No. of breeding ewes (1st Cross) | E7: ='Prime Lambs Merino Ewes Input'!$E$7 -> 1000
C8: 1st cross ewe - Terminal meat sire
C32: INCOME | Q32: $
C34: Wool (kg greasy) | E34: =G234 -> 6377.75 | G34: kg | I34: av price | K34: =K234*100/G234*0.9 -> 1111.794981 | M34: c/kg | Q34: =K234 -> 78786.116
C35: Sales | E35: =E212 -> 1189.373889 | G35: animals | I35: av price | K35: =G212 -> 181.7174791 | M35: /head | Q35: =K212 -> 216230
C37: Gross Income | Q37: =SUM(Q34:Q35) -> 295016.116
AA45: STOCK VALUE AND D.S.E REQUIREMENT | AG45: Non lamb related expenses | AM45: Lamb Costs | AN45: No: | AO45: per head | AS45: SHEEP GROSS MARGIN
C46: VARIABLE COSTS | AC46: Value | AD46: Ave Live | AE46: DSE | AS46: PRIME LAMB -
C47: Shearing | K47: Rate | AB47: Number | AC47: $/head | AD47: Wt (Kgs) | AE47: rating | AG47: Shearing | AJ47: =SUM(Q48:Q58) -> 9141.967092 | AM47: Marking | AN47: =$E$121 -> 950 | AO47: =K76+K77 -> 1.58 | AP47: =AN47*AO47 -> 1501
C48: Shearing | E48: =E226 -> 970 | G48: sheep | I48: Reset Rate> | J48: =GM_INFO!C30 | K48: =GM_INFO!C30 -> 318.62 | M48: /100 | Q48: =K48/100*ROUND(E48,0) -> 3090.614 | AA48: ewes | AB48: ='Prime Lambs Merino Ewes Input'!$E$7 -> 1000 | AC48: =(G209+G214)/2 -> 205 | AD48: 55 | AE48: =IF(AND(AD48>=55,AD48<60),1.8,IF(AND(AD48>=60,AD48<65),2.5,IF(AND(AD48>=65,AD48<70),1.9,IF(AND(AD48>=70,AD48<75),2,IF(AND(AD48>=75,AD48<80),2.1,IF(AND(AD48>=80,AD48<85),2.2,IF(AND(AD48>=85,AD48<90),2.3,IF(AD48>=90,2.4,0)))))))) -> 1.8 | AG48: Animal health | AJ48: =(E219*G219+E220*G220)*K90+(E219*I219+E220*I220)*K91+(E219*K219)*K92 -> 2125 | AM48: Animal health | AN48: =$E$121 -> 950 | AO48: =G220*K91+I220*K90 -> 0.952 | AP48: =AN48*AO48 -> 904.4
C49: (Federal awards) | E49: =E227 -> 24.25 | G49: rams | I49: Reset Rate> | J49: =GM_INFO!C31 | K49: =GM_INFO!C31 -> 637.24 | M49: /100 | Q49: =K49/100*ROUND(E49,0) -> 152.9376 | AA49: rams | AB49: ='Prime Lambs Merino Ewes Input'!E11*'Prime Lambs Merino Ewes'!AB48 -> 25 | AC49: =(G210+G215)/2 -> 990 | AD49: 100 | AE49: 2 | AG49: Stock Purchase | AJ49: =SUM(Q105:Q105) -> 78657.07201 | AM49: Freight | AN49: =$E$121 -> 950 | AO49: =K121 -> 4 | AP49: =AN49*AO49 -> 3800
C50: Shed labour | E50: 5 | G50: days | I50: Reset Rate> | J50: =GM_INFO!C32 | K50: =GM_INFO!C32 -> 241.12 | M50: /day | Q50: =K50*ROUND(E50,0) -> 1205.6 | AA50: lambs | AB50: =AC227 -> 950 | AC50: =G211/2 -> 92.5 | AD50: 35 | AE50: 0 | AG50: Freight | AH50: sheep | AJ50: =SUM(Q119:Q120) -> 2002.14192 | AM50: Yard Fees | AN50: =$E$121 -> 950 | AO50: =K125 -> 0.85 | AP50: =AN50*AO50 -> 807.5
C51: Woolclasser | E51: 2.5 | G51: days | I51: Reset Rate> | J51: =GM_INFO!C33 | K51: =GM_INFO!C33 -> 306.75 | M51: /day | Q51: =K51*E51 -> 766.875 | AA51: TOTAL | AB51: =SUM(AB48:AB50) -> 1975 | AC51: =AB48*AC48+AB49*AC49+AB50*AC50/2 -> 273687.5 | AH51: Wool | AJ51: =Q122 -> 570 | AM51: Levies | AN51: =$E$121 -> 950 | AO51: =K127+K128 -> 2.17 | AP51: =AN51*AO51 -> 2061.5 | AS51: Ewes mated | AU51: ='Prime Lambs Merino Ewes Input'!$E$7 -> 1000 | AX51: Ram % | AY51: =E200 -> 0.025
C52: Superannuation (on ord wages only) | I52: Reset Rate> | J52: =GM_INFO!C34 | K52: =GM_INFO!C34 -> 0.095 | M52: wages | Q52: =(Q48+Q49+Q50+Q51)*K52 -> 495.522527 | AG52: Commission on livestock sales | AJ52: =(K209+K210)*K124 -> 2428.8 | AO52: =SUM(AO47:AO51) -> 9.552 | AQ52: =AO52*AD50 -> 334.32 | AS52: Age ewes purchased | AU52: =E201 -> 1.5 | AX52: Price of rams | AY52: =AL68 -> 0
C53: W/Cover (incl. super + otime etc) | I53: Reset Rate> | J53: =GM_INFO!C35 | K53: =GM_INFO!C35 -> 0.04 | M53: total | Q53: =(Q48+Q49+Q50+Q51+Q52)*K53 -> 228.4619651 | AG53: Yard fees | AJ53: =E119*K125 -> 203.4678057 | AM53: Commission | AN53: =$E$121 -> 950 | AO53: =G212 -> 181.7174791 | AP53: =K124 -> 0.06 | AQ53: =AD50*AO53*AP53 -> 381.606706 | AS53: Age ewes sold | AU53: =E202 -> 5.5 | AX53: Years rams kept | AY53: =E203 -> 3
C54: Wool packs | E54: =E122 -> 37.51617647 | G54: packs | I54: Reset Rate> | J54: =GM_INFO!C28 | K54: =GM_INFO!C28 -> 12.4 | M54: /pack | Q54: =K54*ROUND(E54,0) -> 471.2 | AG54: Levies | AJ54: =E126*(K126+K128) -> 208.2552835 | AS54: Av Weaning % | AU54: ='Prime Lambs Merino Ewes Input'!E10 -> 0.95 | AX54: Age wethers sold | AY54: 0.5
C55: Shed sundries | E55: =E48+E49 -> 994.25 | G55: sheep | I55: Reset Rate> | J55: =GM_INFO!C36 | K55: =GM_INFO!C36 -> 0.2 | M55: /head | Q55: =K55*ROUND(E55,0) -> 198.8 | AG55: Wool Selling Charges | AJ55: =Q130+Q131 -> 2903.78424 | AQ55: =SUM(AQ43:AQ53) -> 715.926706 | AS55: dse/ewe | AU55: =AE48 -> 1.8 | AX55: Flock death rate | AY55: =E204 -> 0.03
C56: Lice control | E56: =E48+E49 -> 994.25 | G56: sheep | I56: Reset Rate> | J56: =GM_INFO!C19 | K56: =GM_INFO!C19 -> 1.6 | M56: /head | Q56: =K56*ROUND(E56,0) -> 1590.4 | AG56: Feed & other costs | AJ56: =SUM(Q144:Q149) -> 20577.375
C57: Crutch & Wig | E57: =E48+2*E49 -> 1018.5 | G57: ewes | I57: Reset Rate> | J57: =GM_INFO!C38 | K57: =GM_INFO!C38 -> 92.4 | M57: /100 | Q57: =K57/100*ROUND(E57,0) -> 941.556 | AK57: =SUM(AJ47:AJ56) -> 118817.8634
E58: 0 | G58: lambs | I58: Reset Rate> | J58: =GM_INFO!C38 | K58: =GM_INFO!C38 -> 92.4 | M58: /100 | Q58: =K58/100*ROUND(E58,0) -> 0
AS60: EWES | AT60: OPENING | AU60: NATURAL | AV60: PURCHASES | AW60: DEATHS | AX60: % sold | AY60: SALES | AZ60: CLOSING
AS61: AGE | AT61: NUMBERS | AU61: INCREASE | AX61: culled | AZ61: NUMBERS
AS63: 0.5-1.5yr | AV63: =IF($N$78=1.5,AT64,AT63-AW63) -> 0 | AY63: =AT63-AW63 -> 0 | AZ63: =AT63+AU63+AV63-AW63-AY63 -> 0
AS64: 1.5-2.5yr | AT64: =IF(AU52=1.5,AU51/(1+(1-AY55)*(1-AX64)*(1+(1-AY55)*(1-AX65)*(1+(1-AY55)*(1-AX66)*(1+(1-AY55)*(1-AX67))))),0) -> 261.53548 | AV64: =IF(AU52=2.5,AT65-AY64,0) -> 0 | AW64: =AT64*$R$81 -> 0 | AY64: =(AT64-AW64)*AX64 -> 0 | AZ64: 261.53548
AS65: 2.5-3.5yr | AT65: =IF(AU52=2.5,AU51/(1+(1-AY55)*(1-AX65)*(1+(1-AY55)*(1-AX66)*(1+(1-AY55)*(1-AX67)))),AZ64) -> 261.53548 | AV65: =IF(AU52=3.5,AT66-AY65,0) -> 0 | AW65: =AT65*$R$81 -> 0 | AY65: =(AT65-AW65)*AX65 -> 0 | AZ65: 261.53548
AS66: 3.5-4.5yr | AT66: =IF(AU52=3.5,AU51/(1+(1-AY55)*(1-AX66)*(1+(1-AY55)*(1-AX67))),AZ65) -> 261.53548 | AV66: =IF(AU52=4.5,AT67-AY66,0) -> 0 | AW66: =AT66*$R$81 -> 0 | AY66: =(AT66-AW66)*AX66 -> 0 | AZ66: 261.53548
AS67: 4.5-5.5yr | AT67: =IF(AU52=4.5,AU51/(1+(1-AY55)*(1-AX67)),AZ66) -> 261.53548 | AW67: =AT67*$R$81 -> 0 | AX67: =IF(AU53=5.5,1,0) -> 1 | AY67: =(AT67-AW67)*AX67 -> 261.53548 | AZ67: 0
AS68: 5.5-6.5yr | AT68: =AZ67 -> 0 | AW68: =AT68*$R$81 -> 0 | AX68: =IF(AU53=6.5,1,0) -> 0 | AY68: =(AT68-AW68)*AX68 -> 0 | AZ68: 0
AS69: Ewes | AT69: =SUM(AT64:AT68) -> 1046.14192 | AV69: =AV63+AV64+AV65+AV66 -> 0 | AW69: =SUM(AW63:AW68) -> 0 | AY69: =SUM(AY64:AY68) -> 261.53548 | AZ69: =SUM(AZ63:AZ67) -> 784.6064401
AS70: d.s.e's | AT70: =AT63+AT69*AU55 -> 1883.055456
AS73: LAMBS | AT73: OPENING | AU73: NATURAL | AV73: PURCHASES | AW73: DEATHS | AX73: % sold | AY73: SALES | AZ73: CLOSING
AS74: AGE | AT74: NUMBERS | AU74: INCREASE | AX74: culled | AZ74: NUMBERS
C75: Marking
C76: Lamb marking | E76: =AC227 -> 950 | G76: lambs | I76: Reset Rate> | J76: =GM_INFO!C42 | K76: =GM_INFO!C42 -> 1.15 | M76: /head | Q76: =K76*ROUND(E76,0) -> 1092.5 | AS76: 0-0.5yr | AU76: =AU51*AU54 -> 950 | AX76: 1 | AY76: =AU76*AX76 -> 950 | AZ76: =AT76+AU76+AV76-AW76-AY76 -> 0
C77: Ear tags | E77: =AC227 -> 950 | G77: lambs | I77: Reset Rate> | J77: =GM_INFO!C43 | K77: =GM_INFO!C43 -> 0.43 | M77: /head | Q77: =K77*ROUND(E77,0) -> 408.5
AS79: RAMS | AT79: OPENING | AU79: NATURAL | AV79: PURCHASES | AW79: DEATHS | AX79: % sold | AY79: SALES | AZ79: CLOSING
AS80: AGE | AT80: NUMBERS | AU80: INCREASE | AX80: culled | AZ80: NUMBERS
AS82: 0.5-1.5yr | AV82: =AT83/(1-AX82) -> 8.588409083 | AW82: =AT82*$R$81 -> 0 | AZ82: =AT82+AU82+AV82-AW82-AY82 -> 8.588409083
AS83: 1.5-2.5yr | AT83: =IF(AY53=3,(AU51*AY51)/(1+(1-AY55)*(1-AX83)*(1+(1-AY55)*(1-AX84)*(1+(1-AY55)*(1-AX85)))),IF(AY53=4,(AU51*AY51)/(1+(1-AY55)*(1-AX83)*(1+(1-AY55)*(1-AX84)*(1+(1-AY55)*(1-AX85)*(1+(1-AY55)*(1-AX86))))),0)) -> 8.588409083 | AW83: =AT83*$R$81 -> 0 | AZ83: =AT83+AU83+AV83-AW83-AY83 -> 8.588409083
AS84: 2.5-3.5yr | AT84: =AZ83 -> 8.588409083 | AW84: =AT84*$R$81 -> 0 | AZ84: =AT84+AU84+AV84-AW84-AY84 -> 8.588409083
AS85: 3.5-4.5yr | AT85: =AZ84 -> 8.588409083 | AW85: =AT85*$R$81 -> 0 | AX85: =IF(AY53=3,100%,0) -> 1 | AY85: =(AT85-AW85)*AX85 -> 8.588409083 | AZ85: =AT85+AU85+AV85-AW85-AY85 -> 0
AS86: 4.5-5.5yr | AT86: =AZ85 -> 0 | AW86: =AT86*$R$81 -> 0 | AX86: =IF(AY53=4,100%,0) -> 0 | AY86: =AT86-AW86 -> 0 | AZ86: =AT86+AU86+AV86-AW86-AY86 -> 0
AT87: =AT82+AT83+AT84+AT85+AT86 -> 25.76522725 | AV87: =AV82+AV83+AV84+AV85+AV86 -> 8.588409083 | AW87: =AW82+AW83+AW84+AW85+AW86 -> 0 | AY87: =AY82+AY83+AY84+AY85+AY86 -> 8.588409083 | AZ87: =AZ82+AZ83+AZ84+AZ85+AZ86 -> 25.76522725
AS88: d.s.e's | AT88: =AT87*AE49 -> 51.5304545
C89: Animal Health
C90: Drench | E90: =G222 -> 2000 | G90: sheep | I90: Reset Rate> | J90: =GM_INFO!C21 | K90: =GM_INFO!C21 -> 0.456 | M90: /head | Q90: =K90*ROUND(E90,0) -> 912
C91: Vaccinate | E91: =I222 -> 2925 | G91: sheep | I91: Reset Rate> | J91: =GM_INFO!C25 | K91: =GM_INFO!C23 -> 0.248 | M91: /head | Q91: =K91*ROUND(E91,0) -> 725.4
C92: Blowfly control | E92: =K222 -> 1000 | G92: sheep | I92: Reset Rate> | J92: =GM_INFO!C27 | K92: =GM_INFO!C27 -> 1.392 | M92: /head | Q92: =K92*ROUND(E92,0) -> 1392
C104: Stock purchases
C105: Purchases | Q105: =K214+K215 -> 78657.07201
C117: Sale Costs
C118: Freight
C119: Livestock | E119: =SUM(E209:E210) -> 239.3738891 | G119: culls | I119: Reset Rate> | J119: =GM_INFO!B111 | K119: =GM_INFO!B111 -> 4 | M119: /head | Q119: =K119*ROUND(E119,0) -> 956
E120: =E214 -> 261.53548 | G120: ewes | I120: Reset Rate> | J120: =GM_INFO!B112 | K120: =GM_INFO!B112 -> 4 | M120: /head | Q120: =K120*E120 -> 1046.14192
E121: =E211 -> 950 | G121: prime lambs | I121: Reset Rate> | J121: =GM_INFO!B113 | K121: =GM_INFO!B113 -> 4 | M121: /head | Q121: =K121*ROUND(E121,0) -> 3800
C122: Wool | E122: =G234/170 -> 37.51617647 | G122: bales | I122: Reset Rate> | J122: =GM_INFO!B114 | K122: =GM_INFO!B114 -> 15 | M122: /bale | Q122: =K122*ROUND(E122,0) -> 570
C123: Stock selling charges
C124: Commission/insurance | I124: Reset Rate> | J124: =GM_INFO!C48 | K124: =GM_INFO!C48 -> 0.06 | M124: gross $ | Q124: =K124*Q35 -> 12973.8
C125: Yard fees | E125: =E212 -> 1189.373889 | G125: sheep | I125: Reset Rate> | J125: =GM_INFO!C49 | K125: =GM_INFO!C49 -> 0.85 | M125: /head | Q125: =K125*ROUND(E125,0) -> 1010.65
C126: Levy-sheep | E126: =E119 -> 239.3738891 | G126: sheep | I126: Reset Rate> | J126: =GM_INFO!C50 | K126: =GM_INFO!C50 -> 0.2 | M126: /head | Q126: =K126*ROUND(E126,0) -> 47.8
C127: Levy-lambs | E127: =E211 -> 950 | G127: sheep | I127: Reset Rate> | J127: =GM_INFO!C51 | K127: =GM_INFO!C51 -> 1.5 | M127: /head | Q127: =K127*ROUND(E127,0) -> 1425
C128: SA sheep industry levy | E128: =E212 -> 1189.373889 | G128: sheep | I128: Reset Rate> | J128: =GM_INFO!C52 | K128: =GM_INFO!C52 -> 0.67 | M128: /head | Q128: =K128*ROUND(E128,0) -> 796.63
C129: Wool selling charges
C130: Brokerage/testing/insurance | I130: Reset Rate> | J130: =GM_INFO!C53 | K130: =GM_INFO!C53 -> 0.27 | M130: /kg | Q130: =K130*E34 -> 1721.9925
C131: Wool levy | I131: Reset Rate> | J131: =GM_INFO!C54 | K131: =GM_INFO!C54 -> 0.015 | M131: gross | Q131: =K131*Q34 -> 1181.79174
C143: Feed and Other Costs
C144: Hay | Q144: =SUM('Prime Lambs Merino Ewes Input'!I63:I65) -> 5330
C145: Grain | Q145: =SUM('Prime Lambs Merino Ewes Input'!I69:I71) -> 6930
C146: Insurance | E146: =AC51 -> 273687.5 | G146: value | I146: Reset Rate> | J146: =GM_INFO!B107 | K146: =GM_INFO!B107 -> 2 | M146: /$'000 | Q146: =K146/1000*E146 -> 547.375
C147: Water | E147: =$Q$6 -> 1850 | G147: DSE's | I147: Reset Rate> | J147: =GM_INFO!D79 | K147: =GM_INFO!E79 -> 2.5 | M147: /DSE's | Q147: =K147*E147 -> 4625
C148: Veh Fuel, R&M | E148: =$Q$6 -> 1850 | G148: DSE's | I148: Reset Rate> | J148: =GM_INFO!D80 | K148: =GM_INFO!E80 -> 1.2 | M148: /DSE's | Q148: =K148*E148 -> 2220
C149: Other | E149: =$Q$6 -> 1850 | G149: DSE's | I149: Reset Rate> | J149: =GM_INFO!D81 | K149: =GM_INFO!E81 -> 0.5 | M149: /DSE's | Q149: =K149*E149 -> 925
C170: TOTAL VARIABLE COSTS | Q170: =SUM(Q48:Q166) -> 138436.6203
C172: GROSS MARGIN TOTAL | Q172: =Q37-Q170 -> 156579.4957
C174: GROSS MARGIN/DSE | Q174: =Q172/Q6 -> 84.63756526
C194: PRODUCTION DATA
C196: Stocking rate (DSE/Ha) | E196: 6 | K196: Culling Rate (% from each group) | AA196: SHEEP GROSS MARGIN
C197: Total DSE's | E197: =SUMPRODUCT(AB48:AB50,AE48:AE50) -> 1850 | K197: Age Group | M197: Ewes | O197: Wethers | AA197: PRIME LAMB -
C198: SHEEP GRAZING AREA | E198: =E197/E196 -> 308.3333333 | K198: 0.5 | M198: =AF214 -> 0
C199: Number of ewes mated | E199: ='Prime Lambs Merino Ewes Input'!E7 -> 1000 | K199: 1.5 | M199: 0
C200: Ram percentage | E200: ='Prime Lambs Merino Ewes Input'!E11 -> 0.025 | K200: 2.5 | M200: 0
C201: Age ewes bought (yrs) | E201: ='Prime Lambs Merino Ewes Input'!E8 -> 1.5 | K201: 3.5 | M201: 0
C202: Age ewes culled | E202: ='Prime Lambs Merino Ewes Input'!E9 -> 5.5 | K202: 4.5 | M202: 1 | AA202: Ewes mated | AC202: ='Prime Lambs Merino Ewes Input'!E7 -> 1000 | AF202: Ram % | AG202: =E200 -> 0.025
B203: =VLOOKUP(r[0]c3&"No Ops",CHOOSE({1,2},tbl_ops[Name]&tbl_ops[Category],INDIRECT("tbl_ops["&var_crop&"]")),2,0) | C203: Years rams kept | E203: ='Prime Lambs Merino Ewes Input'!E12 -> 3 | K203: 5.5 | M203: 0 | AA203: Age ewes purchased | AC203: =E201 -> 1.5 | AF203: Price of rams | AG203: =G215 -> 1850
B204: =VLOOKUP(r[0]c3&"No Ops",CHOOSE({1,2},tbl_ops[Name]&tbl_ops[Category],INDIRECT("tbl_ops["&var_crop&"]")),2,0) | C204: Flock death rate | E204: ='Prime Lambs Merino Ewes Input'!E13 -> 0.03 | K204: 6.5 | M204: 0 | AA204: Age ewes sold | AC204: =E202 -> 5.5 | AF204: Years rams kept | AG204: =E203 -> 3
B205: =VLOOKUP(r[0]c3&"No Ops",CHOOSE({1,2},tbl_ops[Name]&tbl_ops[Category],INDIRECT("tbl_ops["&var_crop&"]")),2,0) | C205: Average weaning rate | E205: =AC205 -> 0.95 | AA205: Av Weaning % | AC205: ='Prime Lambs Merino Ewes Input'!E10 -> 0.95 | AF205: Age wethers sold | AG205: 0.5
B206: =VLOOKUP(r[0]c3&"No Ops",CHOOSE({1,2},tbl_ops[Name]&tbl_ops[Category],INDIRECT("tbl_ops["&var_crop&"]")),2,0) | C206: % Lambs carried over | E206: 0 | AA206: dse/ewe | AC206: =AE48 -> 1.8 | AF206: Flock death rate | AG206: =E204 -> 0.03
B207: =VLOOKUP(r[0]c3&var_rain,CHOOSE({1,2},tbl_ops[Name]&tbl_ops[Rainfall],INDIRECT("tbl_ops["&var_crop&"]")),2,0)
B208: =VLOOKUP(r[0]c3&var_rain,CHOOSE({1,2},tbl_ops[Name]&tbl_ops[Rainfall],INDIRECT("tbl_ops["&var_crop&"]")),2,0) | C208: SALES | E208: Number | G208: Price/hd | I208: Age | K208: Total
B209: =VLOOKUP(r[0]c3&var_rain,CHOOSE({1,2},tbl_ops[Name]&tbl_ops[Rainfall],INDIRECT("tbl_ops["&var_crop&"]")),2,0) | C209: c.f.a ewes | E209: =AG220 -> 231.53548 | G209: ='Prime Lambs Merino Ewes Input'!E18 -> 170 | I209: =E202 -> 5.5 | K209: =ROUND(E209,0)*G209 -> 39440
B210: =VLOOKUP(r[0]c3&var_rain,CHOOSE({1,2},tbl_ops[Name]&tbl_ops[Rainfall],INDIRECT("tbl_ops["&var_crop&"]")),2,0) | C210: c.f.a rams | E210: =AG238 -> 7.838409083 | G210: ='Prime Lambs Merino Ewes Input'!E19 -> 130 | I210: =E203+1.5 -> 4.5 | K210: =ROUND(E210,0)*G210 -> 1040
C211: Lambs | E211: =AG227 -> 950 | G211: ='Prime Lambs Merino Ewes Input'!E20 -> 185 | I211: 20 Weeks | K211: =ROUND(E211,0)*G211 -> 175750 | AA211: EWES | AB211: OPENING | AC211: NATURAL | AD211: PURCHASES | AE211: DEATHS | AF211: % sold | AG211: SALES | AH211: CLOSING
C212: TOTAL | E212: =SUM(E209:E211) -> 1189.373889 | G212: =SUMPRODUCT(E209:E211,G209:G211)/E212 -> 181.7174791 | K212: =SUM(K209:K211) -> 216230 | AA212: AGE | AB212: NUMBERS | AC212: INCREASE | AF212: culled | AH212: NUMBERS
C213: PURCHASES | E213: Number | G213: Price/hd | I213: Age | K213: Total
C214: Ewes | E214: =AD220 -> 261.53548 | G214: ='Prime Lambs Merino Ewes Input'!E29 -> 240 | I214: =E201 -> 1.5 | K214: =E214*G214 -> 62768.51521 | AA214: 0.5-1.5yr | AD214: =IF(AC203=1.5,AB215,AB214-AE214) -> 261.53548 | AG214: =AB214-AE214 -> 0 | AH214: =AB214+AC214+AD214-AE214-AG214 -> 261.53548
C215: Rams | E215: =AD238 -> 8.588409083 | G215: ='Prime Lambs Merino Ewes Input'!E30 -> 1850 | I215: 1.5 | K215: =E215*G215 -> 15888.5568 | AA215: 1.5-2.5yr | AB215: =IF(AC203=1.5,AC202/(1+(1-AG206)*(1-AF215)*(1+(1-AG206)*(1-AF216)*(1+(1-AG206)*(1-AF217)*(1+(1-AG206)*(1-AF218))))),0) -> 261.53548 | AD215: =IF(AC203=2.5,AB216-AG215,0) -> 0 | AE215: =AB215*$AG$206 -> 7.846064401 | AG215: =(AB215-AE215)*AF215 -> 0 | AH215: 253.6894156
AA216: 2.5-3.5yr | AB216: =IF(AC203=2.5,AC202/(1+(1-AG206)*(1-AF216)*(1+(1-AG206)*(1-AF217)*(1+(1-AG206)*(1-AF218)))),AH215) -> 253.6894156 | AD216: =IF(AC203=3.5,AB217-AG216,0) -> 0 | AE216: =AB216*$AG$206 -> 7.610682469 | AG216: =(AB216-AE216)*AF216 -> 0 | AH216: 246.0787332
E217: Number of Times | AA217: 3.5-4.5yr | AB217: =IF(AC203=3.5,AC202/(1+(1-AG206)*(1-AF217)*(1+(1-AG206)*(1-AF218))),AH216) -> 246.0787332 | AD217: =IF(AC203=4.5,AB218-AG217,0) -> 0 | AE217: =AB217*$AG$206 -> 7.382361995 | AG217: =(AB217-AE217)*AF217 -> 0 | AH217: 238.6963712
C218: STOCK HEALTH REQUIREMENTS | E218: Number | G218: Drench | I218: Vacc. | K218: Blowfly | M218: DSE | AA218: 4.5-5.5yr | AB218: =IF(AC203=4.5,AC202/(1+(1-AG206)*(1-AF218)),AH217) -> 238.6963712 | AE218: =AB218*$AG$206 -> 7.160891135 | AF218: =IF(AC204=5.5,1,0) -> 1 | AG218: =(AB218-AE218)*AF218 -> 231.53548 | AH218: 0
C219: Ewes | E219: ='Prime Lambs Merino Ewes Input'!E7 -> 1000 | G219: ='Prime Lambs Merino Ewes Input'!F53 -> 1 | I219: ='Prime Lambs Merino Ewes Input'!G53 -> 1 | K219: ='Prime Lambs Merino Ewes Input'!H53 -> 1 | M219: 1.8 | AA219: 5.5-6.5yr | AB219: =AH218 -> 0 | AE219: =AB219*$AG$206 -> 0 | AF219: =IF(AC204=6.5,1,0) -> 0 | AG219: =(AB219-AE219)*AF219 -> 0 | AH219: 0
C220: Rams | E220: =AB49 -> 25 | G220: ='Prime Lambs Merino Ewes Input'!F54 -> 2 | I220: ='Prime Lambs Merino Ewes Input'!G54 -> 1 | K220: ='Prime Lambs Merino Ewes Input'!H54 -> 0 | M220: 2 | AA220: Ewes | AB220: =SUM(AB215:AB219) -> 1000 | AD220: =AD214+AD215+AD216+AD217 -> 261.53548 | AE220: =SUM(AE214:AE219) -> 30 | AG220: =SUM(AG215:AG219) -> 231.53548 | AH220: =SUM(AH214:AH218) -> 1000
C221: Lambs | E221: =AC227 -> 950 | G221: ='Prime Lambs Merino Ewes Input'!F55 -> 1 | I221: ='Prime Lambs Merino Ewes Input'!G55 -> 2 | K221: ='Prime Lambs Merino Ewes Input'!H55 -> 0 | AA221: d.s.e's | AB221: =AB214+AB220*AC206 -> 1800
C222: TOTAL | E222: =SUM(E219:E221) -> 1975 | G222: =SUMPRODUCT($E$219:$E$221,G219:G221) -> 2000 | I222: =SUMPRODUCT($E$219:$E$221,I219:I221) -> 2925 | K222: =SUMPRODUCT($E$219:$E$221,K219:K221) -> 1000 | M222: =SUMPRODUCT($E$219:$E$221,M219:M221) -> 1850
G224: Wool Cut kg/hd | AA224: LAMBS | AB224: OPENING | AC224: NATURAL | AD224: PURCHASES | AE224: DEATHS | AF224: % sold | AG224: SALES | AH224: CLOSING
C225: SHEARING | E225: Number | I225: Price | K225: Total | AA225: AGE | AB225: NUMBERS | AC225: INCREASE | AF225: culled | AH225: NUMBERS
C226: Ewes | E226: =AB220-AE220 -> 970 | G226: ='Prime Lambs Merino Ewes Input'!F44 -> 6.5 | I226: ='Prime Lambs Merino Ewes Input'!G44 -> 12.46 | K226: =I226*G226*E226 -> 78560.3
C227: Crossbred rams | E227: =AB238-AE238 -> 24.25 | G227: ='Prime Lambs Merino Ewes Input'!F45 -> 3 | I227: ='Prime Lambs Merino Ewes Input'!G45 -> 3.104 | K227: =I227*G227*E227 -> 225.816 | AA227: 0-0.5yr | AC227: =AC202*AC205 -> 950 | AF227: 1 | AG227: =AC227*AF227 -> 950 | AH227: =AB227+AC227+AD227-AE227-AG227 -> 0
AA230: RAMS | AB230: OPENING | AC230: NATURAL | AD230: PURCHASES | AE230: DEATHS | AF230: % sold | AG230: SALES | AH230: CLOSING
AA231: AGE | AB231: NUMBERS | AC231: INCREASE | AF231: culled | AH231: NUMBERS
AA233: 0.5-1.5yr | AD233: =AB234/(1-AF233) -> 8.588409083 | AE233: =AB233*$AG$206 -> 0 | AH233: =AB233+AC233+AD233-AE233-AG233 -> 8.588409083
C234: TOTAL | E234: =SUM(E226:E233) -> 994.25 | G234: =SUMPRODUCT(E226:E233,G226:G233) -> 6377.75 | K234: =SUM(K226:K233) -> 78786.116 | AA234: 1.5-2.5yr | AB234: =IF(AG204=3,(AC202*AG202)/(1+(1-AG206)*(1-AF234)*(1+(1-AG206)*(1-AF235)*(1+(1-AG206)*(1-AF236)))),IF(AG204=4,(AC202*AG202)/(1+(1-AG206)*(1-AF234)*(1+(1-AG206)*(1-AF235)*(1+(1-AG206)*(1-AF236)*(1+(1-AG206)*(1-AF237))))),0)) -> 8.588409083 | AE234: =AB234*$AG$206 -> 0.2576522725 | AH234: =AB234+AC234+AD234-AE234-AG234 -> 8.330756811
AA235: 2.5-3.5yr | AB235: =AH234 -> 8.330756811 | AE235: =AB235*$AG$206 -> 0.2499227043 | AH235: =AB235+AC235+AD235-AE235-AG235 -> 8.080834106
AA236: 3.5-4.5yr | AB236: =AH235 -> 8.080834106 | AE236: =AB236*$AG$206 -> 0.2424250232 | AF236: =IF(AG204=3,100%,0) -> 1 | AG236: =(AB236-AE236)*AF236 -> 7.838409083 | AH236: =AB236+AC236+AD236-AE236-AG236 -> 0
G237: Hay Cost ($/T) | I237: Kg Fed per Week | K237: No of Weeks Feeding | M237: Total Cost ($) | AA237: 4.5-5.5yr | AB237: =AH236 -> 0 | AE237: =AB237*$AG$206 -> 0 | AF237: =IF(AG204=4,100%,0) -> 0 | AG237: =AB237-AE237 -> 0 | AH237: =AB237+AC237+AD237-AE237-AG237 -> 0
C238: FEEDING | E238: Number | AB238: =AB233+AB234+AB235+AB236+AB237 -> 25 | AD238: =AD233+AD234+AD235+AD236+AD237 -> 8.588409083 | AE238: =AE233+AE234+AE235+AE236+AE237 -> 0.75 | AG238: =AG233+AG234+AG235+AG236+AG237 -> 7.838409083 | AH238: =AH233+AH234+AH235+AH236+AH237 -> 25
C239: Ewes | E239: ='Prime Lambs Merino Ewes Input'!E63 -> 1000 | G239: ='Prime Lambs Merino Ewes Input'!F63 -> 260 | I239: ='Prime Lambs Merino Ewes Input'!G63 -> 2.5 | K239: ='Prime Lambs Merino Ewes Input'!H63 -> 8 | M239: =(E239*G239*I239*K239)/1000 -> 5200 | AA239: d.s.e's | AB239: =AB238*AE142 -> 0
C240: Rams | E240: ='Prime Lambs Merino Ewes Input'!E64 -> 25 | G240: ='Prime Lambs Merino Ewes Input'!F64 -> 260 | I240: ='Prime Lambs Merino Ewes Input'!G64 -> 2.5 | K240: ='Prime Lambs Merino Ewes Input'!H64 -> 8 | M240: =(E240*G240*I240*K240)/1000 -> 130
C241: Lambs | E241: ='Prime Lambs Merino Ewes Input'!E65 -> 950 | G241: ='Prime Lambs Merino Ewes Input'!F65 -> 260 | I241: ='Prime Lambs Merino Ewes Input'!G65 -> 0 | K241: ='Prime Lambs Merino Ewes Input'!H65 -> 0 | M241: =(E241*G241*I241*K241)/1000 -> 0
G242: Grain Cost ($/T) | I242: Kg Fed per Week | K242: No of Weeks Feeding | M242: Total Cost ($)
E243: Number
C244: Ewes | E244: ='Prime Lambs Merino Ewes Input'!E69 -> 1000 | G244: ='Prime Lambs Merino Ewes Input'!F69 -> 280 | I244: ='Prime Lambs Merino Ewes Input'!G69 -> 3 | K244: ='Prime Lambs Merino Ewes Input'!H69 -> 8 | M244: =(E244*G244*I244*K244)/1000 -> 6720
C245: Rams | E245: ='Prime Lambs Merino Ewes Input'!E70 -> 25 | G245: ='Prime Lambs Merino Ewes Input'!F70 -> 280 | I245: ='Prime Lambs Merino Ewes Input'!G70 -> 3 | K245: ='Prime Lambs Merino Ewes Input'!H70 -> 10 | M245: =(E245*G245*I245*K245)/1000 -> 210
C246: Lambs | E246: ='Prime Lambs Merino Ewes Input'!E71 -> 950 | G246: ='Prime Lambs Merino Ewes Input'!F71 -> 0 | I246: ='Prime Lambs Merino Ewes Input'!G71 -> 0 | K246: ='Prime Lambs Merino Ewes Input'!H71 -> 0 | M246: =(E246*G246*I246*K246)/1000 -> 0
C247: TOTAL FEED COST | M247: =SUM(M239:M241,M244:M246) -> 12260
C250: GM SENSITIVITY
C251: Gross Margin/DSE | E251: Average Weaning Rate
G252: 0.75 | I252: 0.85 | K252: 0.95 | M252: 1.05 | O252: 1.15 | Q252: 1.25
E253: 160 | G253: =($E$199*G$252*$E253*(1-$K$124)+SUM($K$209:$K$210)+$K$234-$AK$57-$E$199*G$252*$AO$52)/$E$197 -> 57.34283927 | I253: =($E$199*I$252*$E253*(1-$K$124)+SUM($K$209:$K$210)+$K$234-$AK$57-$E$199*I$252*$AO$52)/$E$197 -> 64.95624467 | K253: =($E$199*K$252*$E253*(1-$K$124)+SUM($K$209:$K$210)+$K$234-$AK$57-$E$199*K$252*$AO$52)/$E$197 -> 72.56965008 | M253: =($E$199*M$252*$E253*(1-$K$124)+SUM($K$209:$K$210)+$K$234-$AK$57-$E$199*M$252*$AO$52)/$E$197 -> 80.18305548 | O253: =($E$199*O$252*$E253*(1-$K$124)+SUM($K$209:$K$210)+$K$234-$AK$57-$E$199*O$252*$AO$52)/$E$197 -> 87.79646089 | Q253: =($E$199*Q$252*$E253*(1-$K$124)+SUM($K$209:$K$210)+$K$234-$AK$57-$E$199*Q$252*$AO$52)/$E$197 -> 95.4098663
E254: 165 | G254: 59.24824467 | I254: 67.11570413 | K254: 74.98316359 | M254: 82.85062305 | O254: 90.71808251 | Q254: 98.58554197
C255: Average Lamb Sale Price($/hd) | E255: 170 | G255: 61.15365008 | I255: 69.27516359 | K255: 77.39667711 | M255: 85.51819062 | O255: 93.63970413 | Q255: 101.7612176
E256: 175 | G256: 63.05905548 | I256: 71.43462305 | K256: 79.81019062 | M256: 88.18575819 | O256: 96.56132575 | Q256: 104.9368933
E257: 180 | G257: 64.96446089 | I257: 73.59408251 | K257: 82.22370413 | M257: 90.85332575 | O257: 99.48294738 | Q257: 108.112569
E258: 185 | G258: 66.8698663 | I258: 75.75354197 | K258: 84.63721765 | M258: 93.52089332 | O258: 102.404569 | Q258: 111.2882447
E259: 190 | G259: 68.7752717 | I259: 77.91300143 | K259: 87.05073116 | M259: 96.18846089 | O259: 105.3261906 | Q259: 114.4639203
E260: 195 | G260: 70.68067711 | I260: 80.07246089 | K260: 89.46424467 | M260: 98.85602846 | O260: 108.2478122 | Q260: 117.639596
E261: 200 | G261: 72.58608251 | I261: 82.23192035 | K261: 91.87775819 | M261: 101.523596 | O261: 111.1694339 | Q261: 120.8152717
E262: 205 | G262: 74.49148792 | I262: 84.39137981 | K262: 94.2912717 | M262: 104.1911636 | O262: 114.0910555 | Q262: 123.9909474
E263: 210 | G263: 76.39689332 | I263: 86.55083927 | K263: 96.70478521 | M263: 106.8587312 | O263: 117.0126771 | Q263: 127.1666231

Sheet Lamb Trading Input (hidden)
C2: ="LAMB TRADING GROSS MARGIN - "&TEXT(m_year,"0000") -> LAMB TRADING GROSS MARGIN - 2020
C4: GENERAL INFORMATION
C5: This represents a merino Lamb flock, producing 21 micron wool. Adjust wool price if different micron wool is produced. Following are the various assumptions used in the calculation of the Gross Margin. Cells with yellow highlight can be changed. No allowance has been made for pasture expenses such as seed, fertiliser and chemicals. Refer to pasture gross margins in the “Cropping Gross Margin Plan” for annual and perennial pasture costs. Use the livestock gross margin per DSE as income for the pasture gross margin.
C7: No of Lambs | E7: 1000
C9: Age Lambs sold | E9: 0.8
C10: Age Lambs bought | E10: 0.5
C11: Lambs bought at | E11: 35 | F11: kg liveweight
C12: Lambs sold at | E12: 55 | F12: kg liveweight
C13: Flock death Rate | E13: 0.02
C14: DSE rating/Lamb | E14: 0.8
C17: LIVESTOCK SALES | E17: Price/Hd | F17: Number | G17: Total
C18: Lambs | F18: =ROUND('Lamb Trading'!AG220,0) -> 0 | G18: =E18*F18 -> 0
C25: TOTAL SALES | F25: =SUM(F18:F23) -> 0 | G25: =SUM(G18:G23) -> 0
C28: LIVESTOCK PURCHASES | E28: Price/Hd | F28: Number | G28: Total
C29: Lambs | E29: 128 | F29: =ROUND('Lamb Trading'!AD220,0) -> 208 | G29: =E29*F29 -> 26624
C32: TOTAL PURCHASES | F32: =SUM(F29:F30) -> 208 | G32: =SUM(G29:G30) -> 26624
C35: WOOL PRICE (cents/kg) | F35: =TEXT(m_year-3,"0000")&" Average (Clean)" -> 2017 Average (Clean) | G35: =TEXT(m_year-2,"0000")&" Average (Clean)" -> 2018 Average (Clean) | H35: =TEXT(m_year-1,"0000")&" Average (Clean)" -> 2019 Average (Clean) | I35: Budget Base (Clean) | J35: Budget Base (Greasy) | L35: Wool Type | M35: Budget Clean Price
E36: Cereal Zone 21 mic 68% yield | F36: 1533 | G36: 2085 | H36: 1995 | I36: 1780 | J36: =I36*0.68 -> 1210.4 | L36: 19 mic | M36: 1820
E37: Estimated wool yield | I37: 0.7 | L37: 21 mic | M37: 1780
C38: Allow 90% to account for lower value of bellies, skirtings etc. | J38: =J36*0.9 -> 1089.36 | L38: 22 mic | M38: 1765
L39: 28 mic | M39: 915
C42: WOOL SALES - SHEARING | F42: Wool Cut | G42: Yield | H42: Average
E43: Number | F43: kg/hd | G43: % | H43: Wool Price | I43: Total
C44: Lambs | E44: 1000 | F44: 1.5 | G44: 0.7 | H44: 1780 | I44: =E44*F44*G44*H44/100 -> 18690
I45: 0
I46: 0
I47: 0
I48: 0
I49: 0
I50: 0
C52: TOTAL | E52: =SUM(E44:E51) -> 1000 | F52: =SUMPRODUCT(E44:E50,F44:F50) -> 1500 | G52: =AVERAGE(G44:G50) -> 0.7 | I52: =SUM(I44:I51) -> 18690
C55: STOCK HEALTH REQUIREMENTS
G56: Number of times
E57: Number | F57: Drench | G57: Vacc. | H57: Blowfly | I57: DSE rating
C58: Lambs | E58: ='Lamb Trading'!E220 -> 1000 | F58: 1 | G58: 1 | H58: 1 | I58: 0.6
C59: TOTAL | E59: =SUM(E58:E58) -> 1000 | F59: =SUMPRODUCT($E$58:$E$58,F58:F58) -> 1000 | G59: =SUMPRODUCT($E$58:$E$58,G58:G58) -> 1000 | H59: =SUMPRODUCT($E$58:$E$58,H58:H58) -> 1000 | I59: =SUMPRODUCT($E$58:$E$58,I58:I58) -> 600
C61: Av Live Weight | E61: 45
C62: DSE Rating | E62: 0.8
C67: FEEDING
E68: Supplementry | F68: Feed Lot | I68: Supplementry | J68: Feed Lot
E69: kg fed | F69: kg fed | G69: /animal | H69: $/tonne | I69: Total | J69: Total
C70: Oats/barley | F70: 55 | G70: kg/lamb | I70: =(H70*E70)/1000 -> 0 | J70: =(H70*F70)/1000 -> 0
C71: Hay | E71: 15 | F71: 10 | G71: kg/lamb | I71: =(H71*E71)/1000 -> 0 | J71: =(H71*F71)/1000 -> 0
C72: Lupins | F72: 9 | G72: kg/lamb | I72: =(H72*E72)/1000 -> 0 | J72: =(H72*F72)/1000 -> 0
C73: Supplements | F73: 1 | G73: kg/lamb | H73: 2000 | I73: =(H73*E73)/1000 -> 0 | J73: =(H73*F73)/1000 -> 2
C74: Total | I74: =SUM(I70:I73) -> 0 | J74: =SUM(J70:J73) -> 2

Sheet Lamb Trading (hidden)
C1: LAMB TRADING
C2: =UPPER(Var_Animal)&" GROSS MARGIN - "&TEXT(m_year,"0000") -> LAMB TRADING GROSS MARGIN - 2020
C4: ASSUMPTIONS
O5: Total DSE's | Q5: =E197 -> 600
C6: Ave Lamb Fibre Diameter | E6: 20 | O6: Number of Lambs shorn | Q6: 1
C7: Number of Lambs | E7: ='Lamb Trading Input'!$E$7 -> 1000 | O7: Stocking Rate (DSE/Ha) | Q7: =E196 -> 12
C8: Lambs bought at | E8: ='Lamb Trading Input'!E11 -> 35 | G8: kg liveweight | K8: 365.7142857 | M8: c/kg liveweight
C9: Lambs sold at | E9: ='Lamb Trading Input'!E12 -> 55 | G9: kg liveweight | J9: @ | K9: 750 | M9: c/kg dwt
C32: INCOME | Q32: $
C34: Wool (kg greasy) | E34: =I234 -> 1500 | G34: kg | I34: av price | K34: ='Lamb Trading Input'!I52*100/I233*0.9 -> 1121.4 | M34: c/kg | Q34: =E34*K34/100 -> 16821
C35: Sales | E35: =E211 -> 980 | G35: animals | I35: av price | K35: =G210 -> 177.375 | M35: /head | Q35: =K35*E35 -> 173827.5
C37: Gross Income | Q37: =SUM(Q34:Q35) -> 190648.5
AA45: STOCK VALUE AND D.S.E REQUIREMENT
C46: VARIABLE COSTS
C47: Shearing | K47: Rate
C48: Shearing | E48: =E233 -> 1000 | G48: sheep | I48: Reset Rate> | J48: =GM_INFO!C30 | K48: =GM_INFO!C30 -> 318.62 | M48: /100 | Q48: =K48/100*ROUND(E48,0) -> 3186.2
C50: Shed labour | E50: 2 | G50: days | I50: Reset Rate> | J50: =GM_INFO!C32 | K50: =GM_INFO!C32 -> 241.12 | M50: /day | Q50: =K50*ROUND(E50,0) -> 482.24
C51: Woolclasser | E51: 1 | G51: days | I51: Reset Rate> | J51: =GM_INFO!C33 | K51: =GM_INFO!C33 -> 306.75 | M51: /day | Q51: =K51*E51 -> 306.75
C52: Superannuation (on ord wages only) | I52: Reset Rate> | J52: =GM_INFO!C34 | K52: =GM_INFO!C34 -> 0.095 | M52: wages | Q52: =(Q48+Q50+Q51)*K52 -> 377.64305
C53: W/Cover (incl. super + otime etc) | I53: Reset Rate> | J53: =GM_INFO!C35 | K53: =GM_INFO!C35 -> 0.04 | M53: total | Q53: =(Q48+Q49+Q50+Q51+Q52)*K53 -> 174.113322
C54: Wool packs | E54: =E122 -> 8.823529412 | G54: packs | I54: Reset Rate> | J54: =GM_INFO!C28 | K54: =GM_INFO!C28 -> 12.4 | M54: /pack | Q54: =K54*ROUND(E54,0) -> 111.6
C55: Shed sundries | E55: =E48 -> 1000 | G55: sheep | I55: Reset Rate> | J55: =GM_INFO!C36 | K55: =GM_INFO!C36 -> 0.2 | M55: /head | Q55: =K55*ROUND(E55,0) -> 200
C56: Lice control | E56: =E48 -> 1000 | G56: sheep | I56: Reset Rate> | J56: =GM_INFO!C19 | K56: =GM_INFO!C19 -> 1.6 | M56: /head | Q56: =K56*ROUND(E56,0) -> 1600
C57: Crutching | E57: 0 | G57: sheep | I57: Reset Rate> | J57: =GM_INFO!C38 | K57: =GM_INFO!C38 -> 92.4 | M57: /100 | Q57: =K57/100*ROUND(E57,0) -> 0
AS79: RAMS | AT79: OPENING | AU79: NATURAL | AV79: PURCHASES | AW79: DEATHS | AX79: % sold | AY79: SALES | AZ79: CLOSING
AS80: AGE | AT80: NUMBERS | AU80: INCREASE | AX80: culled | AZ80: NUMBERS
AS82: 0.5-1.5yr | AV82: =AT83/(1-AX82) -> 0 | AW82: =AT82*$R$81 -> 0 | AZ82: =AT82+AU82+AV82-AW82-AY82 -> 0
AS83: 1.5-2.5yr | AT83: =IF(AY53=3,(AU51*AY51)/(1+(1-AY55)*(1-AX83)*(1+(1-AY55)*(1-AX84)*(1+(1-AY55)*(1-AX85)))),IF(AY53=4,(AU51*AY51)/(1+(1-AY55)*(1-AX83)*(1+(1-AY55)*(1-AX84)*(1+(1-AY55)*(1-AX85)*(1+(1-AY55)*(1-AX86))))),0)) -> 0 | AW83: =AT83*$R$81 -> 0 | AZ83: =AT83+AU83+AV83-AW83-AY83 -> 0
AS84: 2.5-3.5yr | AT84: =AZ83 -> 0 | AW84: =AT84*$R$81 -> 0 | AZ84: =AT84+AU84+AV84-AW84-AY84 -> 0
AS85: 3.5-4.5yr | AT85: =AZ84 -> 0 | AW85: =AT85*$R$81 -> 0 | AX85: =IF(AY53=3,100%,0) -> 0 | AY85: =(AT85-AW85)*AX85 -> 0 | AZ85: =AT85+AU85+AV85-AW85-AY85 -> 0
AS86: 4.5-5.5yr | AT86: =AZ85 -> 0 | AW86: =AT86*$R$81 -> 0 | AX86: =IF(AY53=4,100%,0) -> 0 | AY86: =AT86-AW86 -> 0 | AZ86: =AT86+AU86+AV86-AW86-AY86 -> 0
AT87: =AT82+AT83+AT84+AT85+AT86 -> 0 | AV87: =AV82+AV83+AV84+AV85+AV86 -> 0 | AW87: =AW82+AW83+AW84+AW85+AW86 -> 0 | AY87: =AY82+AY83+AY84+AY85+AY86 -> 0 | AZ87: =AZ82+AZ83+AZ84+AZ85+AZ86 -> 0
AS88: d.s.e's | AT88: =AT87*AE49 -> 0
C89: Animal Health
C90: Drench | E90: =G228 -> 1000 | G90: sheep | I90: Reset Rate> | J90: =GM_INFO!C21 | K90: =GM_INFO!C21 -> 0.456 | M90: /head | Q90: =K90*ROUND(E90,0) -> 456
C91: Vaccinate | E91: =I228 -> 1000 | G91: sheep | I91: Reset Rate> | J91: =GM_INFO!C25 | K91: =GM_INFO!C25 -> 0.34 | M91: /head | Q91: =K91*ROUND(E91,0) -> 340
C92: Blowfly control | E92: =K228*0.5 -> 500 | G92: sheep | I92: Reset Rate> | J92: =GM_INFO!C27 | K92: =GM_INFO!C27 -> 1.392 | M92: /head | Q92: =K92*ROUND(E92,0) -> 696
C93: Other expenses | G93: sheep | I93: Reset Rate> | M93: /head | Q93: =K93*ROUND(E93,0) -> 0
C104: Stock purchases
C105: Purchases | E105: =ROUND(E213,0) -> 1000 | G105: Lambs | I105: Reset Rate> | J105: ='LambS INPUT'!E29 | K105: ='Lamb Trading Input'!E29 -> 128 | M105: /head | Q105: =K105*E105 -> 128000
C117: Sale Costs
C118: Freight
C119: Livestock | E119: =E211+E213 -> 1980 | G119: sheep | I119: Reset Rate> | J119: =GM_INFO!B111 | K119: =GM_INFO!B111 -> 4 | M119: /head | Q119: =K119*ROUND(E119,0) -> 7920
I120: Reset Rate> | M120: /head
I121: Reset Rate> | M121: /head
C122: Wool | E122: =I234/170 -> 8.823529412 | G122: bales | I122: Reset Rate> | J122: =GM_INFO!B114 | K122: =GM_INFO!B114 -> 15 | M122: /bale | Q122: =K122*ROUND(E122,0) -> 135
C123: Stock selling charges
C124: Commission/insurance | I124: Reset Rate> | J124: =GM_INFO!C48 | K124: =GM_INFO!C48 -> 0.06 | M124: gross $ | Q124: =K124*Q35 -> 10429.65
C125: Yard fees | E125: =E211 -> 980 | G125: sheep | I125: Reset Rate> | J125: =GM_INFO!C49 | K125: =GM_INFO!C49 -> 0.85 | M125: /head | Q125: =K125*ROUND(E125,0) -> 833
C126: Levy trans-sheep | E126: =E211 -> 980 | G126: sheep | I126: Reset Rate> | J126: =GM_INFO!C50 | K126: =GM_INFO!C51 -> 1.5 | M126: /head | Q126: =K126*ROUND(E126,0) -> 1470
C128: SA sheep industry levy | E128: =E211 -> 980 | G128: sheep | I128: Reset Rate> | J128: =GM_INFO!C52 | K128: =GM_INFO!C52 -> 0.67 | M128: /head | Q128: =K128*ROUND(E128,0) -> 656.6
C129: Wool selling charges
C130: Brokerage/testing/insurance | I130: Reset Rate> | J130: =GM_INFO!C53 | K130: =GM_INFO!C53 -> 0.27 | M130: /kg | Q130: =K130*E34 -> 405
C131: Wool levy | I131: Reset Rate> | J131: =GM_INFO!C54 | K131: =GM_INFO!C54 -> 0.015 | M131: gross | Q131: =K131*Q34 -> 252.315
C143: Feed and Other Costs
C144: Supplementary Feeding | E144: 0 | G144: sheep | K144: =M250 -> 0 | M144: /head | Q144: =IF(E144*K144=0,0,E144*K144) -> 0
C145: Feed Lot | E145: 0 | G145: sheep | K145: =O250 -> 2 | M145: /head | Q145: =IF(E145=0,0,E145*K145) -> 0
C146: Insurance | E146: =E239*G239 -> 152687.5 | G146: value | I146: Reset Rate> | J146: =GM_INFO!B107 | K146: =GM_INFO!B107 -> 2 | M146: /$'000 | Q146: =K146/1000*E146 -> 305.375
C147: Water | E147: =$E$197 -> 600 | G147: DSE's | I147: Reset Rate> | J147: =GM_INFO!k79 | K147: =GM_INFO!K79 -> 1.5 | M147: /DSE's | Q147: =K147*E147 -> 900
C148: Veh Fuel, R&M | E148: =$E$197 -> 600 | G148: DSE's | I148: Reset Rate> | J148: =GM_INFO!k80 | K148: =GM_INFO!K80 -> 1 | M148: /DSE's | Q148: =K148*E148 -> 600
C149: Other | E149: =$E$197 -> 600 | G149: DSE's | I149: Reset Rate> | J149: =GM_INFO!k81 | K149: =GM_INFO!K81 -> 0.5 | M149: /DSE's | Q149: =K149*E149 -> 300
C170: TOTAL VARIABLE COSTS | Q170: =SUM(Q48:Q166) -> 160137.4864
C172: GROSS MARGIN TOTAL | Q172: =Q37-Q170 -> 30511.01363
C174: GROSS MARGIN/DSE | Q174: =Q172/E197 -> 50.85168938
C194: PRODUCTION DATA
C196: Stocking rate (DSE/Ha) | E196: 12 | AA196: SHEEP GROSS MARGIN
C197: Total DSE's | E197: ='Lamb Trading Input'!I59 -> 600
C198: SHEEP GRAZING AREA | E198: =E197/E196 -> 50
C199: Number of Lambs | E199: ='Lamb Trading Input'!E7 -> 1000
C200: Flock death rate | E200: ='Lamb Trading Input'!E13 -> 0.02
C201: Age Lambs bought | E201: ='Lamb Trading Input'!E10 -> 0.5
C202: Age Lambs sold | E202: ='Lamb Trading Input'!E9 -> 0.8 | AA202: No of Lambs | AC202: ='Lamb Trading Input'!E7 -> 1000
B203: =VLOOKUP(r[0]c3&"No Ops",CHOOSE({1,2},tbl_ops[Name]&tbl_ops[Category],INDIRECT("tbl_ops["&var_crop&"]")),2,0) | AA203: Age Lambs purchased | AC203: =E201 -> 0.5
B204: =VLOOKUP(r[0]c3&"No Ops",CHOOSE({1,2},tbl_ops[Name]&tbl_ops[Category],INDIRECT("tbl_ops["&var_crop&"]")),2,0) | AA204: Age Lambs sold | AC204: =E202 -> 0.8
B205: =VLOOKUP(r[0]c3&"No Ops",CHOOSE({1,2},tbl_ops[Name]&tbl_ops[Category],INDIRECT("tbl_ops["&var_crop&"]")),2,0) | AA205: Flock death rate | AC205: =E200 -> 0.02
B206: =VLOOKUP(r[0]c3&"No Ops",CHOOSE({1,2},tbl_ops[Name]&tbl_ops[Category],INDIRECT("tbl_ops["&var_crop&"]")),2,0) | AA206: dse/Lamb | AC206: ='Lamb Trading Input'!E14 -> 0.8
B208: =VLOOKUP(r[0]c3&var_rain,CHOOSE({1,2},tbl_ops[Name]&tbl_ops[Rainfall],INDIRECT("tbl_ops["&var_crop&"]")),2,0)
B209: =VLOOKUP(r[0]c3&var_rain,CHOOSE({1,2},tbl_ops[Name]&tbl_ops[Rainfall],INDIRECT("tbl_ops["&var_crop&"]")),2,0) | C209: SALES | E209: Number | G209: Price/hd | I209: Age | K209: Total
B210: =VLOOKUP(r[0]c3&var_rain,CHOOSE({1,2},tbl_ops[Name]&tbl_ops[Rainfall],INDIRECT("tbl_ops["&var_crop&"]")),2,0) | C210: Prime Lambs | E210: =E199-(E199*E200) -> 980 | G210: =E9*0.43*K9/100 -> 177.375 | I210: =E202 -> 0.8 | K210: =E210*G210 -> 173827.5
B211: =VLOOKUP(r[0]c3&var_rain,CHOOSE({1,2},tbl_ops[Name]&tbl_ops[Rainfall],INDIRECT("tbl_ops["&var_crop&"]")),2,0) | C211: TOTAL | E211: =E210 -> 980 | K211: =K210 -> 173827.5 | AA211: LambS | AB211: OPENING | AC211: NATURAL | AD211: PURCHASES | AE211: DEATHS | AF211: % sold | AG211: SALES | AH211: CLOSING
C212: PURCHASES | E212: Number | G212: Price/hd | I212: Age | K212: Total | AA212: AGE | AB212: NUMBERS | AC212: INCREASE | AF212: culled | AH212: NUMBERS
C213: Store Lambs | E213: =E199 -> 1000 | G213: =(E8*K8)/100 -> 128 | I213: =E201 -> 0.5 | K213: =ROUND(E213,0)*G213 -> 128000
AA214: 0-0.5yr | AD214: =IF(AC203=0.5,AB215-AE214-AG214,0) -> 208.1615931 | AE214: =AB214*$AC$205 -> 0 | AF214: =IF(AC204=0.5,100%,0) -> 0 | AG214: =AC214*AF214 -> 0 | AH214: =AB214+AC214+AD214-AE214-AG214 -> 208.1615931
AA215: 0.5-1.5yr | AB215: =IF(AC203=0.5,AC202/(1+(1-AC205)*(1-AF215)*(1+(1-AC205)*(1-AF216)*(1+(1-AC205)*(1-AF217)*(1+(1-AC205)*(1-AF218))))),0) -> 208.1615931 | AD215: =IF(AC203=1.5,AB216-AE215-AG215,0) -> 0 | AE215: 4.163231862 | AF215: =IF(AC204=1.5,100%,0) -> 0 | AG215: =(AB215-AE215)*AF215 -> 0 | AH215: 203.9983612
AA216: 1.5-2.5yr | AB216: =IF(AC203=1.5,AC202/(1+(1-AC205)*(1-AF216)*(1+(1-AC205)*(1-AF217)*(1+(1-AC205)*(1-AF218)))),AH215) -> 203.9983612 | AE216: 4.079967224 | AF216: =IF(AC204=2.5,100%,0) -> 0 | AG216: =(AB216-AE216)*AF216 -> 0 | AH216: 199.918394
AA217: 2.5-3.5yr | AB217: =AH216 -> 199.918394 | AE217: 3.99836788 | AF217: =IF(AC204=3.5,100%,0) -> 0 | AG217: =(AB217-AE217)*AF217 -> 0 | AH217: 195.9200261
E218: Number of Times | AA218: 3.5-4.5yr | AB218: =AH217 -> 195.9200261 | AE218: 3.918400522 | AF218: =IF(AC204=4.5,100%,0) -> 0 | AG218: =(AB218-AE218)*AF218 -> 0 | AH218: 192.0016256
C219: STOCK HEALTH REQUIREMENTS | E219: Number | G219: Drench | I219: Vacc. | K219: Blowfly | AA219: 4.5-5.5yr | AB219: =AH218 -> 192.0016256 | AE219: 3.840032512 | AF219: =IF(AC204=5.5,100%,0) -> 0 | AG219: =(AB219-AE219)*AF219 -> 0 | AH219: 188.1615931
C220: Lambs | E220: =ROUND('Lamb Trading Input'!E7,0) -> 1000 | G220: ='Lamb Trading Input'!F58 -> 1 | I220: ='Lamb Trading Input'!G58 -> 1 | K220: ='Lamb Trading Input'!H58 -> 1 | AA220: Total | AB220: =SUM(AB215:AB219) -> 1000 | AD220: =SUM(AD214:AD219) -> 208.1615931 | AE220: =SUM(AE214:AE219) -> 20 | AG220: =SUM(AG214:AG219) -> 0 | AH220: =SUM(AH214:AH219) -> 1188.161593
AA221: d.s.e's | AB221: =AB220*AC206 -> 800
C228: TOTAL | E228: =SUM(E220:E227) -> 1000 | G228: =SUMPRODUCT($E$220:$E$227,G220:G227) -> 1000 | I228: =SUMPRODUCT($E$220:$E$227,I220:I227) -> 1000 | K228: =SUMPRODUCT($E$220:$E$227,K220:K227) -> 1000
G231: Wool Cut kg/hd | I231: Total | K231: Yield | M231: Total
C232: SHEARING | E232: Number | I232: Greasy kg | K232: % | M232: clean kg
C233: Lambs | E233: ='Lamb Trading Input'!E52 -> 1000 | G233: ='Lamb Trading Input'!F52/1000 -> 1.5 | I233: =G233*E233 -> 1500 | K233: ='Lamb Trading Input'!G44 -> 0.7 | M233: =E233*G233*K233 -> 1050
C234: TOTAL | E234: =E233 -> 1000 | I234: =I233 -> 1500
C237: STOCK VALUE | G237: Value | I237: Av Live | K237: DSE
E238: Number | G238: $/head | I238: weight (kgs) | K238: rating
C239: Lambs | E239: =E199 -> 1000 | G239: =(G210+G213)/2 -> 152.6875 | I239: ='Lamb Trading Input'!E61 -> 45 | K239: ='Lamb Trading Input'!E62 -> 0.8
C240: TOTAL | E240: =E239 -> 1000
E244: Supplementry | G244: Feed Lot | M244: Supplementry | O244: Feed Lot
C245: FEEDING | E245: kg fed | G245: kg fed | I245: /animal | K245: $/tonne | M245: Total | O245: Total
C246: ='Lamb Trading Input'!C70 -> Oats/barley | E246: ='Lamb Trading Input'!E70 -> 0 | G246: ='Lamb Trading Input'!F70 -> 55 | I246: ='Lamb Trading Input'!G70 -> kg/lamb | K246: ='Lamb Trading Input'!H70 -> 0 | M246: ='Lamb Trading Input'!I70 -> 0 | O246: ='Lamb Trading Input'!J70 -> 0
C247: ='Lamb Trading Input'!C71 -> Hay | E247: ='Lamb Trading Input'!E71 -> 15 | G247: ='Lamb Trading Input'!F71 -> 10 | I247: ='Lamb Trading Input'!G71 -> kg/lamb | K247: ='Lamb Trading Input'!H71 -> 0 | M247: ='Lamb Trading Input'!I71 -> 0 | O247: ='Lamb Trading Input'!J71 -> 0
C248: ='Lamb Trading Input'!C72 -> Lupins | E248: ='Lamb Trading Input'!E72 -> 0 | G248: ='Lamb Trading Input'!F72 -> 9 | I248: ='Lamb Trading Input'!G72 -> kg/lamb | K248: ='Lamb Trading Input'!H72 -> 0 | M248: ='Lamb Trading Input'!I72 -> 0 | O248: ='Lamb Trading Input'!J72 -> 0
C249: ='Lamb Trading Input'!C73 -> Supplements | E249: ='Lamb Trading Input'!E73 -> 0 | G249: ='Lamb Trading Input'!F73 -> 1 | I249: ='Lamb Trading Input'!G73 -> kg/lamb | K249: ='Lamb Trading Input'!H73 -> 2000 | M249: ='Lamb Trading Input'!I73 -> 0 | O249: ='Lamb Trading Input'!J73 -> 2
M250: ='Lamb Trading Input'!I74 -> 0 | O250: ='Lamb Trading Input'!J74 -> 2
C259: GM SENSITIVITY
C260: Gross Margin/DSE | E260: Average Greasy Wool Price (c/Kg)
G261: 1050 | I261: 1100 | K261: 1147 | M261: 1200 | O261: 1250 | Q261: 1300
E262: 140 | G262: =(G$261*$E$34*(1-$K$131)/100+$E262*$E$35*(1-$K$124)-($Q$170-$Q$124-$Q$131))/$E$197 -> -8.289618953 | I262: =(I$261*$E$34*(1-$K$131)/100+$E262*$E$35*(1-$K$124)-($Q$170-$Q$124-$Q$131))/$E$197 -> -7.058368953 | K262: =(K$261*$E$34*(1-$K$131)/100+$E262*$E$35*(1-$K$124)-($Q$170-$Q$124-$Q$131))/$E$197 -> -5.900993953 | M262: =(M$261*$E$34*(1-$K$131)/100+$E262*$E$35*(1-$K$124)-($Q$170-$Q$124-$Q$131))/$E$197 -> -4.595868953 | O262: =(O$261*$E$34*(1-$K$131)/100+$E262*$E$35*(1-$K$124)-($Q$170-$Q$124-$Q$131))/$E$197 -> -3.364618953 | Q262: =(Q$261*$E$34*(1-$K$131)/100+$E262*$E$35*(1-$K$124)-($Q$170-$Q$124-$Q$131))/$E$197 -> -2.133368953
E263: 145 | G263: -0.6129522867 | I263: 0.6182977133 | K263: 1.775672713 | M263: 3.080797713 | O263: 4.312047713 | Q263: 5.543297713
C264: Average Sheep Sale Price($/hd) | E264: 150 | G264: 7.06371438 | I264: 8.29496438 | K264: 9.45233938 | M264: 10.75746438 | O264: 11.98871438 | Q264: 13.21996438
E265: 170 | G265: 37.77038105 | I265: 39.00163105 | K265: 40.15900605 | M265: 41.46413105 | O265: 42.69538105 | Q265: 43.92663105
E266: 175 | G266: 45.44704771 | I266: 46.67829771 | K266: 47.83567271 | M266: 49.14079771 | O266: 50.37204771 | Q266: 51.60329771
E267: 178 | G267: 50.05304771 | I267: 51.28429771 | K267: 52.44167271 | M267: 53.74679771 | O267: 54.97804771 | Q267: 56.20929771
E268: 180 | G268: 53.12371438 | I268: 54.35496438 | K268: 55.51233938 | M268: 56.81746438 | O268: 58.04871438 | Q268: 59.27996438
E269: 185 | G269: 60.80038105 | I269: 62.03163105 | K269: 63.18900605 | M269: 64.49413105 | O269: 65.72538105 | Q269: 66.95663105
E270: 190 | G270: 68.47704771 | I270: 69.70829771 | K270: 70.86567271 | M270: 72.17079771 | O270: 73.40204771 | Q270: 74.63329771
E271: 195 | G271: 76.15371438 | I271: 77.38496438 | K271: 78.54233938 | M271: 79.84746438 | O271: 81.07871438 | Q271: 82.30996438
E272: 200 | G272: 83.83038105 | I272: 85.06163105 | K272: 86.21900605 | M272: 87.52413105 | O272: 88.75538105 | Q272: 89.98663105

Sheet Merino SR Input (hidden)
C2: ="MERINO SR GROSS MARGIN - "&TEXT(m_year,"0000") -> MERINO SR GROSS MARGIN - 2020
C4: GENERAL INFORMATION
C5: This represents a self-replacing merino ewe flock, producing 21 micron wool. Adjust wool price if different micron wool is produced. Following are the various assumptions used in the calculation of the Gross Margin. Cells with yellow highlight can be changed. No allowance has been made for pasture expenses such as seed, fertiliser and chemicals. Refer to pasture gross margins in the “Cropping Gross Margin Plan” for annual and perennial pasture costs. Use the livestock gross margin per DSE as income for the pasture gross margin.
C7: Stocking rate (DSE/Ha) | E7: 6 | G7: Years Rams Kept | I7: 4
C8: Ewes mated | E8: 1000 | G8: Flock death Rate | I8: 0.03
C9: Total DSE's | E9: ='Merino SR'!M228 -> 2420 | G9: % Lambs carried over | I9: 0
C10: SHEEP GRAZING AREA | E10: 285
C11: Age ewes 1st mating | E11: 1.5
C12: Age ewes sold | E12: 6.5
C13: Av Weaning % | E13: 0.95
C14: Ram percentage | E14: 0.025
C17: LIVESTOCK SALES | E17: Price/Hd | F17: Number | G17: Total
C18: c.f.a Ewes | E18: 170 | F18: ='Merino SR'!AG220 -> 203.9596235 | G18: =E18*ROUND(F18,0) -> 34680
C19: c.f.a Merino Rams | E19: 140 | F19: ='Merino SR'!AG244 -> 5.788387001 | G19: 840
C20: ewe hoggets | E20: 240 | F20: ='Merino SR'!AG222 -> 226.7903765 | G20: 54480
C21: wether lambs | E21: 122 | F21: ='Merino SR'!AG230 -> 475 | G21: 57950
G22: 0
G23: 0
C25: TOTAL SALES | F25: =SUM(F18:F23) -> 911.538387 | G25: =SUM(G18:G23) -> 147950
C28: LIVESTOCK PURCHASES | E28: Price/Hd | F28: Number | G28: Total
C29: Ewes | E29: 250 | F29: =ROUND('Merino SR'!AD220,0) -> 0 | G29: =E29*F29 -> 0
C30: Rams | E30: 2000 | F30: =ROUND('Merino SR'!AD244,0) -> 7 | G30: =E30*F30 -> 14000
C32: TOTAL PURCHASES | F32: =SUM(F29:F30) -> 7 | G32: =SUM(G29:G30) -> 14000
C35: WOOL PRICE (cents/kg) | F35: =TEXT(m_year-3,"0000")&" Average (Clean)" -> 2017 Average (Clean) | G35: =TEXT(m_year-2,"0000")&" Average (Clean)" -> 2018 Average (Clean) | H35: =TEXT(m_year-1,"0000")&" Average (Clean)" -> 2019 Average (Clean) | I35: Budget Base (Clean) | J35: Budget Base (Greasy) | L35: Wool Type | M35: Budget Clean Price
E36: Cereal Zone 21 mic 68% yield | F36: 1533 | G36: 2085 | H36: 1995 | I36: 1780 | J36: =I36*I37 -> 1246 | L36: 19 mic | M36: 1820
E37: Estimated wool yield | I37: 0.7 | L37: 21 mic | M37: 1780
C38: Allow 90% to account for lower value of bellies, skirtings etc. | J38: =J36*0.9 -> 1121.4 | L38: 22 mic | M38: 1765
C42: WOOL SALES - SHEARING | F42: Wool Cut | G42: Wool Price
E43: Number | F43: kg/hd | G43: cents/kg
C44: Ewes | E44: =ROUND('Merino SR'!E233,0) -> 980 | F44: 6.5 | G44: =$J$38 -> 1121.4
C45: Ewe hoggets | E45: =ROUND('Merino SR'!E234,0) -> 468 | F45: 5.5 | G45: =$J$38 -> 1121.4
C46: Wether weaners | E46: =ROUND('Merino SR'!E235,0) -> 0 | F46: 5 | G46: =$J$38 -> 1121.4
C47: Lambs | E47: =ROUND('Merino SR'!E236,0) -> 950 | F47: 2 | G47: =$J$38 -> 1121.4
C48: Merino rams | E48: =ROUND('Merino SR'!E237,0) -> 25 | F48: 9.5 | G48: =$J$38 -> 1121.4
C52: TOTAL | E52: =SUM(E44:E51) -> 2423 | F52: =SUMPRODUCT(E44:E50,F44:F50) -> 11081.5
C55: STOCK HEALTH REQUIREMENTS
G56: Number of times
E57: Number | F57: Drench | G57: Vacc. | H57: Blowfly
C58: Ewes | E58: ='Merino SR'!E220 -> 1000 | F58: 1 | G58: 1 | H58: 1
C59: Ewe hoggets | E59: ='Merino SR'!E221 -> 475 | F59: 1 | G59: 1 | H59: 1
C60: Wether weaners | E60: ='Merino SR'!E222 -> 0 | F60: 1 | G60: 1 | H60: 1
C61: Merino lambs | E61: ='Merino SR'!E223 -> 950 | F61: 1 | G61: 2 | H61: 0
C62: Merino rams | E62: ='Merino SR'!E224 -> 25 | F62: 2 | G62: 1 | H62: 1
C64: TOTAL | E64: =SUM(E58:E62) -> 2450 | F64: =SUMPRODUCT($E$58:$E$62,F58:F62) -> 2475 | G64: =SUMPRODUCT($E$58:$E$62,G58:G62) -> 3400 | H64: =SUMPRODUCT($E$58:$E$62,H58:H62) -> 1500
C67: FEEDING
C68: HAY | F68: Hay | G68: Kgs Fed | H68: No Weeks | I68: Total
E69: Number | F69: Cost ($/T) | G69: per Week | H69: of Feeding | I69: Cost ($)
C70: Cereal Hay | E70: ='Merino SR'!E220 -> 1000 | F70: 260 | G70: 2 | H70: 10 | I70: =(H70*G70*E70)/1000*F70 -> 5200
C71: Legume Hay | I71: =(H71*G71*E71)/1000*F71 -> 0
I72: =(H72*G72*E72)/1000*F72 -> 0
I73: =(H73*G73*E73)/1000*F73 -> 0
I74: =(H74*G74*E74)/1000*F74 -> 0
C76: GRAIN | F76: Grain | G76: Kgs Fed | H76: No Weeks | I76: Total
E77: Number | F77: Cost ($/T) | G77: per Week | H77: of Feeding | I77: Cost ($)
C78: Lupins | E78: 475 | F78: 450 | G78: 1 | H78: 10 | I78: =(H78*G78*E78)/1000*F78 -> 2137.5
C79: Barley | E79: 1000 | F79: 280 | G79: 2.4 | H79: 10 | I79: =(H79*G79*E79)/1000*F79 -> 6720
C80: Oats | I80: =(H80*G80*E80)/1000*F80 -> 0
I81: =(H81*G81*E81)/1000*F81 -> 0
I82: =(H82*G82*E82)/1000*F82 -> 0
H84: Total Feed Cost | I84: =SUM(I70:I74,I78:I82) -> 14057.5

Sheet Merino SR (hidden)
C1: MERINO SR
C2: =UPPER(Var_Animal)&" GROSS MARGIN - "&TEXT(m_year,"0000") -> MERINO SR GROSS MARGIN - 2020
C4: ASSUMPTIONS
C6: Ave Breeding Ewe Fibre Diameter | E6: 21 | O6: Total DSE's | Q6: ='Merino SR Input'!E9 -> 2420
C7: No. of breeding ewes | E7: ='Merino SR Input'!$E$8 -> 1000 | O7: Stocking Rate (DSE/Ha) | Q7: ='Merino SR Input'!E7 -> 6
C32: INCOME | Q32: $
C34: Wool (kg greasy) | E34: =I241 -> 11079.88602 | G34: kg | I34: av price | K34: ='Merino SR Input'!J38 -> 1121.4 | M34: c/kg | Q34: =M241 -> 124249.8419
C35: Sales | E35: =E214 -> 911.538387 | G35: animals | I35: av price | K35: =G214 -> 162.3080301 | M35: /head | Q35: =I214 -> 147950
C37: Gross Income | Q37: =SUM(Q34:Q35) -> 272199.8419
AA45: STOCK VALUE AND D.S.E REQUIREMENT
C46: VARIABLE COSTS
C47: Shearing | K47: Rate
C48: Shearing | E48: =E241-E237 -> 2398.280542 | G48: sheep | I48: Reset Rate> | J48: =GM_INFO!C30 | K48: =GM_INFO!C30 -> 318.62 | M48: /100 | Q48: =K48/100*ROUND(E48,0) -> 7640.5076
C49: (Federal awards) | E49: =E224 -> 25 | G49: rams | I49: Reset Rate> | J49: =GM_INFO!C31 | K49: =GM_INFO!C31 -> 637.24 | M49: /100 | Q49: =K49/100*ROUND(E49,0) -> 159.31
C50: Shed labour | E50: 8 | G50: days | I50: Reset Rate> | J50: =GM_INFO!C32 | K50: =GM_INFO!C32 -> 241.12 | M50: /day | Q50: =K50*ROUND(E50,0) -> 1928.96
C51: Woolclasser | E51: 4 | G51: days | I51: Reset Rate> | J51: =GM_INFO!C33 | K51: =GM_INFO!C33 -> 306.75 | M51: /day | Q51: =K51*E51 -> 1227
C52: Superannuation (on ord wages only) | I52: Reset Rate> | J52: =GM_INFO!C34 | K52: =GM_INFO!C34 -> 0.095 | M52: wages | Q52: =(Q48+Q49+Q50+Q51)*K52 -> 1040.798872
C53: W/Cover (incl. super + otime etc) | I53: Reset Rate> | J53: =GM_INFO!C35 | K53: =GM_INFO!C35 -> 0.04 | M53: total | Q53: =(Q48+Q49+Q50+Q51+Q52)*K53 -> 479.8630589
C54: Wool packs | E54: =E122 -> 65.17580013 | G54: packs | I54: Reset Rate> | J54: =GM_INFO!C28 | K54: =GM_INFO!C28 -> 12.4 | M54: /pack | Q54: =K54*ROUND(E54,0) -> 806
C55: Shed sundries | E55: =E48+E49 -> 2423.280542 | G55: sheep | I55: Reset Rate> | J55: =GM_INFO!C36 | K55: =GM_INFO!C36 -> 0.2 | M55: /head | Q55: =K55*ROUND(E55,0) -> 484.6
C56: Lice control | E56: =E48+E49 -> 2423.280542 | G56: sheep | I56: Reset Rate> | J56: =GM_INFO!C19 | K56: =GM_INFO!C19 -> 1.6 | M56: /head | Q56: =K56*ROUND(E56,0) -> 3876.8
C57: Crutch & Wig | E57: =SUM(E233:E235) -> 1448.280542 | G57: ewes | I57: Reset Rate> | J57: =GM_INFO!C38 | K57: =GM_INFO!C38 -> 92.4 | M57: /100 | Q57: =K57/100*ROUND(E57,0) -> 1337.952
E58: =E49 -> 25 | G58: rams | I58: Reset Rate> | J58: =GM_INFO!C39 | K58: =GM_INFO!C39 -> 184.8 | M58: /100 | Q58: =K58/100*ROUND(E58,0) -> 46.2
C75: Marking
C76: Lamb marking | E76: =E199*E205 -> 950 | G76: lambs | I76: Reset Rate> | J76: =GM_INFO!C41 | K76: =GM_INFO!C41 -> 1.4 | M76: /head | Q76: =K76*ROUND(E76,0) -> 1330
C77: Ear tags | E77: =E76 -> 950 | G77: lambs | I77: Reset Rate> | J77: =GM_INFO!C43 | K77: =GM_INFO!C43 -> 0.43 | M77: /head | Q77: =K77*ROUND(E77,0) -> 408.5
C78: Pain relief | E78: 900 | G78: lambs | I78: Reset Rate> | J78: =GM_INFO!C44 | K78: =GM_INFO!C44 -> 0.45 | M78: /head | Q78: =K78*ROUND(E78,0) -> 405
AS79: RAMS | AT79: OPENING | AU79: NATURAL | AV79: PURCHASES | AW79: DEATHS | AX79: % sold | AY79: SALES | AZ79: CLOSING
AS80: AGE | AT80: NUMBERS | AU80: INCREASE | AX80: culled | AZ80: NUMBERS
AS82: 0.5-1.5yr | AV82: =AT83/(1-AX82) -> 0 | AW82: =AT82*$R$81 -> 0 | AZ82: =AT82+AU82+AV82-AW82-AY82 -> 0
AS83: 1.5-2.5yr | AT83: =IF(AY53=3,(AU51*AY51)/(1+(1-AY55)*(1-AX83)*(1+(1-AY55)*(1-AX84)*(1+(1-AY55)*(1-AX85)))),IF(AY53=4,(AU51*AY51)/(1+(1-AY55)*(1-AX83)*(1+(1-AY55)*(1-AX84)*(1+(1-AY55)*(1-AX85)*(1+(1-AY55)*(1-AX86))))),0)) -> 0 | AW83: =AT83*$R$81 -> 0 | AZ83: =AT83+AU83+AV83-AW83-AY83 -> 0
AS84: 2.5-3.5yr | AT84: =AZ83 -> 0 | AW84: =AT84*$R$81 -> 0 | AZ84: =AT84+AU84+AV84-AW84-AY84 -> 0
AS85: 3.5-4.5yr | AT85: =AZ84 -> 0 | AW85: =AT85*$R$81 -> 0 | AX85: =IF(AY53=3,100%,0) -> 0 | AY85: =(AT85-AW85)*AX85 -> 0 | AZ85: =AT85+AU85+AV85-AW85-AY85 -> 0
AS86: 4.5-5.5yr | AT86: =AZ85 -> 0 | AW86: =AT86*$R$81 -> 0 | AX86: =IF(AY53=4,100%,0) -> 0 | AY86: =AT86-AW86 -> 0 | AZ86: =AT86+AU86+AV86-AW86-AY86 -> 0
AT87: =AT82+AT83+AT84+AT85+AT86 -> 0 | AV87: =AV82+AV83+AV84+AV85+AV86 -> 0 | AW87: =AW82+AW83+AW84+AW85+AW86 -> 0 | AY87: =AY82+AY83+AY84+AY85+AY86 -> 0 | AZ87: =AZ82+AZ83+AZ84+AZ85+AZ86 -> 0
AS88: d.s.e's | AT88: =AT87*AE49 -> 0
C89: Animal Health
C90: Drench | E90: =G228 -> 2475 | G90: sheep | I90: Reset Rate> | J90: =GM_INFO!C21 | K90: =GM_INFO!C21 -> 0.456 | M90: /head | Q90: =K90*ROUND(E90,0) -> 1128.6
C91: Vaccinate | E91: =I228 -> 3400 | G91: sheep | I91: Reset Rate> | J91: =GM_INFO!C23 | K91: =GM_INFO!C23 -> 0.248 | M91: /head | Q91: =K91*ROUND(E91,0) -> 843.2
C92: Blowfly control | E92: =K228 -> 1500 | G92: sheep | I92: Reset Rate> | J92: =GM_INFO!C27 | K92: =GM_INFO!C27 -> 1.392 | M92: /head | Q92: =K92*ROUND(E92,0) -> 2088
C104: Stock purchases
C105: Purchases | E105: =ROUND(AD244,0) -> 7 | G105: rams | I105: Reset Rate> | J105: ='Merino SR Input'!E30 | K105: ='Merino SR Input'!E30 -> 2000 | M105: /head | Q105: =K105*E105 -> 14000
C117: Sale Costs
C118: Freight
C119: Livestock | E119: =E214 -> 911.538387 | G119: sheep | I119: Reset Rate> | J119: =GM_INFO!B111 | K119: =GM_INFO!B111 -> 4 | M119: /head | Q119: =K119*ROUND(E119,0) -> 3648
I120: Reset Rate> | M120: /head
I121: Reset Rate> | M121: /head
C122: Wool | E122: =I241/170 -> 65.17580013 | G122: bales | I122: Reset Rate> | J122: =GM_INFO!B114 | K122: =GM_INFO!B114 -> 15 | M122: /bale | Q122: =K122*ROUND(E122,0) -> 975
C123: Stock selling charges
C124: Commission/insurance | I124: Reset Rate> | J124: =GM_INFO!C48 | K124: =GM_INFO!C48 -> 0.06 | M124: gross $ | Q124: =K124*Q35 -> 8877
C125: Yard fees | E125: =E214 -> 911.538387 | G125: sheep | I125: Reset Rate> | J125: =GM_INFO!C49 | K125: =GM_INFO!C49 -> 0.85 | M125: /head | Q125: =K125*ROUND(E125,0) -> 775.2
C126: Levy trans-sheep | E126: =SUM(E210:E212) -> 436.538387 | G126: sheep | I126: Reset Rate> | J126: =GM_INFO!C50 | K126: =GM_INFO!C50 -> 0.2 | M126: /head | Q126: =K126*ROUND(E126,0) -> 87.4
C127: Levy trans-lambs | E127: =E213 -> 475 | G127: sheep | I127: Reset Rate> | J127: =GM_INFO!C51 | K127: =GM_INFO!C51 -> 1.5 | M127: /head | Q127: =K127*ROUND(E127,0) -> 712.5
C128: SA sheep industry levy | E128: =E214 -> 911.538387 | G128: sheep | I128: Reset Rate> | J128: =GM_INFO!C52 | K128: =GM_INFO!C52 -> 0.67 | M128: /head | Q128: =K128*ROUND(E128,0) -> 611.04
C129: Wool selling charges
C130: Brokerage/testing/insurance | I130: Reset Rate> | J130: =GM_INFO!C53 | K130: =GM_INFO!C53 -> 0.27 | M130: /kg | Q130: =K130*E34 -> 2991.569226
C131: Wool levy | I131: Reset Rate> | J131: =GM_INFO!C54 | K131: =GM_INFO!C54 -> 0.015 | M131: gross | Q131: =K131*Q34 -> 1863.747628
C143: Feed and Other Costs
C144: Hand Feeding | Q144: ='Merino SR Input'!I84 -> 14057.5
C146: Insurance | E146: =E229 -> 397654.6739 | G146: value | I146: Reset Rate> | J146: =GM_INFO!B107 | K146: =GM_INFO!B107 -> 2 | M146: /$'000 | Q146: =K146/1000*E146 -> 795.3093477
C147: Water | E147: ='Merino SR Input'!$E$9 -> 2420 | G147: DSE's | I147: Reset Rate> | J147: =GM_INFO!D79 | K147: =GM_INFO!E79 -> 2.5 | M147: /DSE's | Q147: =K147*E147 -> 6050
C148: Veh Fuel, R&M | E148: ='Merino SR Input'!$E$9 -> 2420 | G148: DSE's | I148: Reset Rate> | J148: =GM_INFO!D80 | K148: =GM_INFO!E80 -> 1.2 | M148: /DSE's | Q148: =K148*E148 -> 2904
C149: Other | E149: ='Merino SR Input'!$E$9 -> 2420 | G149: DSE's | I149: Reset Rate> | J149: =GM_INFO!D81 | K149: =GM_INFO!E81 -> 0.5 | M149: /DSE's | Q149: =K149*E149 -> 1210
C170: TOTAL VARIABLE COSTS | Q170: =SUM(Q48:Q166) -> 84789.55773
C172: GROSS MARGIN TOTAL | Q172: =Q37-Q170 -> 187410.2841
C174: GROSS MARGIN/DSE | Q174: =Q172/Q6 -> 77.44226617
C194: PRODUCTION DATA
AA196: SHEEP GROSS MARGIN
AA197: PRIME LAMB -
C199: Number of ewes mated | E199: ='Merino SR Input'!E8 -> 1000 | K199: Culling Rate (% from each group)
C200: Ram percentage | E200: ='Merino SR Input'!E14 -> 0.025 | K200: Age Group | M200: Ewes | O200: Wethers
C201: Age ewes 1st mating | E201: ='Merino SR Input'!E11 -> 1.5 | K201: 0.5 | M201: =AF213 -> 0
C202: Age ewes culled | E202: ='Merino SR Input'!E12 -> 6.5 | K202: 1.5 | M202: 0.492220025 | AA202: Ewes mated | AC202: ='Merino SR Input'!E8 -> 1000 | AF202: Ram % | AG202: =E200 -> 0.025
B203: =VLOOKUP(r[0]c3&"No Ops",CHOOSE({1,2},tbl_ops[Name]&tbl_ops[Category],INDIRECT("tbl_ops["&var_crop&"]")),2,0) | C203: Years rams kept | E203: ='Merino SR Input'!I7 -> 4 | K203: 2.5 | M203: 0.05 | AA203: Age at 1st mating | AC203: =E201 -> 1.5 | AF203: Price of rams | AG203: ='Merino SR Input'!E30 -> 2000
B204: =VLOOKUP(r[0]c3&"No Ops",CHOOSE({1,2},tbl_ops[Name]&tbl_ops[Category],INDIRECT("tbl_ops["&var_crop&"]")),2,0) | C204: Flock death rate | E204: ='Merino SR Input'!I8 -> 0.03 | K204: 3.5 | M204: 0.05 | AA204: Age ewes sold | AC204: =E202 -> 6.5 | AF204: Years rams kept | AG204: =E203 -> 4
B205: =VLOOKUP(r[0]c3&"No Ops",CHOOSE({1,2},tbl_ops[Name]&tbl_ops[Category],INDIRECT("tbl_ops["&var_crop&"]")),2,0) | C205: Average weaning rate | E205: =AC205 -> 0.95 | K205: 4.5 | M205: 0.05 | AA205: Av Weaning % | AC205: ='Merino SR Input'!E13 -> 0.95 | AF205: Age wethers sold | AG205: 0.5
B206: =VLOOKUP(r[0]c3&"No Ops",CHOOSE({1,2},tbl_ops[Name]&tbl_ops[Category],INDIRECT("tbl_ops["&var_crop&"]")),2,0) | C206: % Lambs carried over | E206: 0 | K206: 5.5 | M206: 0.05 | AA206: dse/ewe | AC206: 1.6 | AF206: Flock death rate | AG206: =E204 -> 0.03
C207: Age wethers sold | E207: =AG205 -> 0.5 | K207: 6.5 | M207: 1
B208: =VLOOKUP(r[0]c3&var_rain,CHOOSE({1,2},tbl_ops[Name]&tbl_ops[Rainfall],INDIRECT("tbl_ops["&var_crop&"]")),2,0)
B209: =VLOOKUP(r[0]c3&var_rain,CHOOSE({1,2},tbl_ops[Name]&tbl_ops[Rainfall],INDIRECT("tbl_ops["&var_crop&"]")),2,0) | C209: SALES | E209: Number | G209: Price/hd | I209: Total
B210: =VLOOKUP(r[0]c3&var_rain,CHOOSE({1,2},tbl_ops[Name]&tbl_ops[Rainfall],INDIRECT("tbl_ops["&var_crop&"]")),2,0) | C210: c.f.a ewes | E210: =AG220 -> 203.9596235 | G210: ='Merino SR Input'!E18 -> 170 | I210: =ROUND(E210,0)*G210 -> 34680
B211: =VLOOKUP(r[0]c3&var_rain,CHOOSE({1,2},tbl_ops[Name]&tbl_ops[Rainfall],INDIRECT("tbl_ops["&var_crop&"]")),2,0) | C211: c.f.a merino rams | E211: =AG244 -> 5.788387001 | G211: ='Merino SR Input'!E19 -> 140 | I211: =ROUND(E211,0)*G211 -> 840 | AA211: EWES | AB211: OPENING | AC211: NATURAL | AD211: PURCHASES | AE211: DEATHS | AF211: % sold | AG211: SALES | AH211: CLOSING
C212: Ewe hoggets | E212: =AG222 -> 226.7903765 | G212: ='Merino SR Input'!E20 -> 240 | I212: =ROUND(E212,0)*G212 -> 54480 | AA212: AGE | AB212: NUMBERS | AC212: INCREASE | AF212: culled | AH212: NUMBERS
C213: Wether lambs | E213: =AG230 -> 475 | G213: ='Merino SR Input'!E21 -> 122 | I213: =ROUND(E213,0)*G213 -> 57950 | AA213: 0-0.5yr | AC213: =AC202*AC205/2 -> 475 | AE213: =AB213*$AG$206 -> 0 | AF213: 0 | AG213: =AC213*AF213 -> 0 | AH213: =AB213+AC213+AD213-AE213-AG213 -> 475
C214: TOTAL | E214: =SUM(E210:E213) -> 911.538387 | G214: =I214/E214 -> 162.3080301 | I214: =SUM(I210:I213) -> 147950 | AA214: 0.5-1.5yr | AB214: =AH213 -> 475 | AE214: 14.25 | AF214: =(AB214*(1-AG206)-AB215)/(AB214-AE214) -> 0.492220025 | AG214: =AB214-AE214-AB215 -> 226.7903765 | AH214: 233.9596235
AA215: 1.5-2.5yr | AB215: =AC202/(1+(1-AG206)*(1-AF215)*(1+(1-AG206)*(1-AF216)*(1+(1-AG206)*(1-AF217)*(1+(1-AG206)*(1-AF218))))) -> 233.9596235 | AE215: 7.018788705 | AF215: 0.05 | AG215: =(AB215-AE215)*AF215 -> 11.34704174 | AH215: 215.5937931
AA216: 2.5-3.5yr | AB216: =AH215 -> 215.5937931 | AE216: 6.467813792 | AF216: 0.05 | AG216: =(AB216-AE216)*AF216 -> 10.45629896 | AH216: 198.6696803
AA217: 3.5-4.5yr | AB217: =AH216 -> 198.6696803 | AE217: 5.960090409 | AF217: 0.05 | AG217: =(AB217-AE217)*AF217 -> 9.635479495 | AH217: 183.0741104
E218: Number of Times | AA218: 4.5-5.5yr | AB218: =AH217 -> 183.0741104 | AE218: 5.492223312 | AF218: =IF(AC204=5.5,1,5%) -> 0.05 | AG218: =(AB218-AE218)*AF218 -> 8.879094354 | AH218: =AB218+AC218+AD218-AE218-AG218 -> 168.7027927
C219: STOCK HEALTH REQUIREMENTS | E219: Number | G219: Drench | I219: Vacc. | K219: Blowfly | M219: DSE | AA219: 5.5-6.5yr | AB219: =AH218 -> 168.7027927 | AE219: 5.061083782 | AF219: =IF(AC204=6.5,100%,0) -> 1 | AG219: =(AB219-AE219)*AF219 -> 163.641709 | AH219: 0
C220: Ewes | E220: ='Merino SR Input'!E8 -> 1000 | G220: ='Merino SR Input'!F58 -> 1 | I220: ='Merino SR Input'!G58 -> 1 | K220: ='Merino SR Input'!H58 -> 1 | M220: 1.8 | AA220: Ewes | AB220: =SUM(AB215:AB219) -> 1000 | AC220: =SUM(AC213:AC217) -> 475 | AD220: =SUM(AD213:AD219) -> 0 | AE220: =SUM(AE213:AE218) -> 39.18891622 | AG220: =SUM(AG215:AG219) -> 203.9596235 | AH220: =SUM(AH214:AH218) -> 1000
C221: Ewe hoggets | E221: =AB222 -> 475 | G221: ='Merino SR Input'!F59 -> 1 | I221: ='Merino SR Input'!G59 -> 1 | K221: ='Merino SR Input'!H59 -> 1 | M221: 1.2 | AA221: d.s.e's | AB221: =AB214+AC206*(AB215+AB216+AB217+AB218) -> 1805.075532
C222: Wether weaners | E222: =AB228 -> 0 | G222: ='Merino SR Input'!F60 -> 1 | I222: ='Merino SR Input'!G60 -> 1 | K222: ='Merino SR Input'!H60 -> 1 | M222: 0.8 | AA222: Ewe Hoggets | AB222: =AB214 -> 475 | AG222: =AG214 -> 226.7903765 | AH222: =AH213 -> 475
C223: Merino lambs | E223: =AC213+AC227 -> 950 | G223: ='Merino SR Input'!F61 -> 1 | I223: ='Merino SR Input'!G61 -> 2 | K223: ='Merino SR Input'!H61 -> 0 | M223: 0
C224: Merino rams | E224: =AB244 -> 25 | G224: ='Merino SR Input'!F62 -> 2 | I224: ='Merino SR Input'!G62 -> 1 | K224: ='Merino SR Input'!H62 -> 1 | M224: 2 | AA224: WETHERS | AB224: OPENING | AC224: NATURAL | AD224: PURCHASES | AE224: DEATHS | AF224: % sold | AG224: SALES | AH224: CLOSING
AA225: AGE | AB225: NUMBERS | AC225: INCREASE | AF225: culled | AH225: NUMBERS
AA227: 0-0.5yr | AC227: =AC205*AC202/2 -> 475 | AE227: =AB227*$AG$206 -> 0 | AF227: =IF(AG205=0.5,100%,0) -> 1 | AG227: =AC227*AF227 -> 475 | AH227: =AB227+AC227+AD227-AE227-AG227 -> 0
C228: TOTAL | E228: =SUM(E220:E227) -> 2450 | G228: =SUMPRODUCT($E$220:$E$227,G220:G227) -> 2475 | I228: =SUMPRODUCT($E$220:$E$227,I220:I227) -> 3400 | K228: =SUMPRODUCT($E$220:$E$227,K220:K227) -> 1500 | M228: =SUMPRODUCT($E$220:$E$227,M220:M227) -> 2420 | AA228: 0.5-1.5yr | AB228: =AH227 -> 0 | AE228: =AB228*$AG$206 -> 0 | AF228: =IF(AG205=1.5,100%,0) -> 0 | AG228: =(AB228-AE228)*AF228 -> 0 | AH228: =AB228+AC228+AD228-AE228-AG228 -> 0
C229: TOTAL VALUE | E229: =E228*G214 -> 397654.6739 | AA229: 1.5-2.5 | AB229: =AH228 -> 0 | AE229: =AB229*$AG$206 -> 0 | AF229: =IF(AG205=2.5,100%,0) -> 0 | AG229: =(AB229-AE229)*AF229 -> 0
AA230: Wth lambs | AB230: =AB227 -> 0 | AC230: =AC227 -> 475 | AD230: 0 | AE230: =AE227 -> 0 | AG230: =AG227 -> 475 | AH230: 0
G231: Wool Cut kg/hd | I231: Total | K231: Wool Price | M231: Total | AA231: Wth hgts | AB231: =AB228 -> 0 | AC231: 0 | AD231: 0 | AE231: =AE228 -> 0 | AG231: 0 | AH231: 0
C232: SHEARING | E232: Number | I232: Greasy kg | K232: cents/kg | AA232: Wethers | AB232: =AB229 -> 0 | AC232: 0 | AD232: 0 | AE232: =AE229 -> 0 | AG232: 0 | AH232: 0
C233: Ewes | E233: =AB220-0.5*AE220 -> 980.4055419 | G233: ='Merino SR Input'!F44 -> 6.5 | I233: =G233*E233 -> 6372.636022 | K233: ='Merino SR Input'!G44 -> 1121.4 | M233: =K233*G233*E233/100 -> 71462.74035 | AA233: d.s.e's | AB233: =AB231+AB232 -> 0
C234: Ewe hoggets | E234: =AB214-0.5*AE214 -> 467.875 | G234: ='Merino SR Input'!F45 -> 5.5 | I234: =G234*E234 -> 2573.3125 | K234: ='Merino SR Input'!G45 -> 1121.4 | M234: =K234*G234*E234/100 -> 28857.12638
C235: Wether weaners | E235: =AB228-0.5*AE228 -> 0 | G235: ='Merino SR Input'!F46 -> 5 | I235: =G235*E235 -> 0 | K235: ='Merino SR Input'!G46 -> 1121.4 | M235: =K235*G235*E235/100 -> 0
C236: Lambs | E236: =AC213+AC227 -> 950 | G236: ='Merino SR Input'!F47 -> 2 | I236: =G236*E236 -> 1900 | K236: ='Merino SR Input'!G47 -> 1121.4 | M236: =K236*G236*E236/100 -> 21306.6 | AA236: RAMS | AB236: OPENING | AC236: NATURAL | AD236: PURCHASES | AE236: DEATHS | AF236: % sold | AG236: SALES | AH236: CLOSING
C237: Merino rams | E237: =AB244-0.5*AE244 -> 24.625 | G237: ='Merino SR Input'!F48 -> 9.5 | I237: =G237*E237 -> 233.9375 | K237: ='Merino SR Input'!G48 -> 1121.4 | M237: =K237*G237*E237/100 -> 2623.375125 | AA237: AGE | AB237: NUMBERS | AC237: INCREASE | AF237: culled | AH237: NUMBERS
AA239: 0.5-1.5yr | AD239: =AB240/(1-AF239) -> 6.538387001 | AH239: =AB239+AC239+AD239-AE239-AG239 -> 6.538387001
AA240: 1.5-2.5yr | AB240: =IF(AG204=3,(AC202*AG202)/(1+(1-AG206)*(1-AF240)*(1+(1-AG206)*(1-AF241)*(1+(1-AG206)*(1-AF242)))),IF(AG204=4,(AC202*AG202)/(1+(1-AG206)*(1-AF240)*(1+(1-AG206)*(1-AF241)*(1+(1-AG206)*(1-AF242)*(1+(1-AG206)*(1-AF243))))),0)) -> 6.538387001 | AE240: =AB240*$AG$206 -> 0.19615161 | AF240: 0 | AG240: =(SUM(AB240:AD240)-AE240)*AF240 -> 0 | AH240: =AB240+AC240+AD240-AE240-AG240 -> 6.342235391
C241: TOTAL | E241: =SUM(E233:E239) -> 2422.905542 | G241: =SUMPRODUCT(E233:E234,G233:G234) -> 8945.948522 | I241: =SUM(I233:I239) -> 11079.88602 | M241: =SUM(M233:M239) -> 124249.8419 | AA241: 2.5-3.5yr | AB241: =AH240 -> 6.342235391 | AE241: =AB241*$AG$206 -> 0.1902670617 | AF241: 0 | AG241: =(SUM(AB241:AD241)-AE241)*AF241 -> 0 | AH241: =AB241+AC241+AD241-AE241-AG241 -> 6.151968329
AA242: 3.5-4.5yr | AB242: =AH241 -> 6.151968329 | AE242: =AB242*$AG$206 -> 0.1845590499 | AF242: =IF(AG204=3,100%,0) -> 0 | AG242: =(SUM(AB242:AD242)-AE242)*AF242 -> 0 | AH242: =AB242+AC242+AD242-AE242-AG242 -> 5.967409279
AA243: 4.5-5.5yr | AB243: =AH242 -> 5.967409279 | AE243: =AB243*$AG$206 -> 0.1790222784 | AF243: =IF(AG204=4,100%,0) -> 1 | AG243: =AB243-AE243 -> 5.788387001 | AH243: =AB243+AC243+AD243-AE243-AG243 -> 0
G244: Hay Cost ($/T) | I244: Kg Fed per Week | K244: No of Weeks Feeding | M244: Total Cost ($) | AB244: =AB239+AB240+AB241+AB242+AB243 -> 25 | AD244: =AD239+AD240+AD241+AD242+AD243 -> 6.538387001 | AE244: =AE239+AE240+AE241+AE242+AE243 -> 0.75 | AG244: =AG239+AG240+AG241+AG242+AG243 -> 5.788387001 | AH244: =AH239+AH240+AH241+AH242+AH243 -> 25
C245: FEEDING | E245: Number | AA245: d.s.e's | AB245: =AB244*2 -> 50
C246: Ewes | E246: ='Merino SR Input'!E70 -> 1000 | G246: ='Merino SR Input'!F70 -> 260 | I246: ='Merino SR Input'!G70 -> 2 | K246: ='Merino SR Input'!H70 -> 10 | M246: =(E246*G246*I246*K246)/1000 -> 5200
C247: Weaner | E247: ='Merino SR Input'!E71 -> 0 | G247: ='Merino SR Input'!F71 -> 0 | I247: ='Merino SR Input'!G71 -> 0 | K247: ='Merino SR Input'!H71 -> 0 | M247: =(E247*G247*I247*K247)/1000 -> 0
C248: Ewe hoggets | E248: ='Merino SR Input'!E72 -> 0 | G248: ='Merino SR Input'!F72 -> 0 | I248: ='Merino SR Input'!G72 -> 0 | K248: ='Merino SR Input'!H72 -> 0 | M248: =(E248*G248*I248*K248)/1000 -> 0
C249: Merino lambs | E249: ='Merino SR Input'!E73 -> 0 | G249: ='Merino SR Input'!F73 -> 0 | I249: ='Merino SR Input'!G73 -> 0 | K249: ='Merino SR Input'!H73 -> 0 | M249: =(E249*G249*I249*K249)/1000 -> 0
C250: Merino rams | E250: ='Merino SR Input'!E74 -> 0 | G250: ='Merino SR Input'!F74 -> 0 | I250: ='Merino SR Input'!G74 -> 0 | K250: ='Merino SR Input'!H74 -> 0 | M250: =(E250*G250*I250*K250)/1000 -> 0
G251: Grain Cost ($/T) | I251: Kg Fed per Week | K251: No of Weeks Feeding | M251: Total Cost ($)
E252: Number
C253: Weaner | E253: ='Merino SR Input'!E78 -> 475 | G253: ='Merino SR Input'!F78 -> 450 | I253: ='Merino SR Input'!G78 -> 1 | K253: ='Merino SR Input'!H78 -> 10 | M253: =(E253*G253*I253*K253)/1000 -> 2137.5
C254: Ewes | E254: ='Merino SR Input'!E79 -> 1000 | G254: ='Merino SR Input'!F79 -> 280 | I254: ='Merino SR Input'!G79 -> 2.4 | K254: ='Merino SR Input'!H79 -> 10 | M254: =(E254*G254*I254*K254)/1000 -> 6720
C255: Ewe hoggets | E255: ='Merino SR Input'!E80 -> 0 | G255: ='Merino SR Input'!F80 -> 0 | I255: ='Merino SR Input'!G80 -> 0 | K255: ='Merino SR Input'!H80 -> 0 | M255: =(E255*G255*I255*K255)/1000 -> 0
C256: Merino lambs | E256: ='Merino SR Input'!E81 -> 0 | G256: ='Merino SR Input'!F81 -> 0 | I256: ='Merino SR Input'!G81 -> 0 | K256: ='Merino SR Input'!H81 -> 0 | M256: =(E256*G256*I256*K256)/1000 -> 0
C257: Merino rams | E257: ='Merino SR Input'!E82 -> 0 | G257: ='Merino SR Input'!F82 -> 0 | I257: ='Merino SR Input'!G82 -> 0 | K257: ='Merino SR Input'!H82 -> 0 | M257: =(E257*G257*I257*K257)/1000 -> 0
C258: TOTAL FEED COST | M258: =SUM(M246:M250,M253:M257) -> 14057.5
C263: GM SENSITIVITY
C264: Gross Margin/DSE | E264: Average Greasy Wool Price (c/Kg)
G265: 1000 | I265: 1050 | K265: 1089 | M265: 1150 | O265: 1200 | Q265: 1250
E266: 135 | G266: =(G$265*$E$34*(1-$K$131)/100+$E266*$E$35*(1-$K$124)-($Q$170-$Q$124-$Q$131))/$Q$6 -> 62.29846633 | I266: =(I$265*$E$34*(1-$K$131)/100+$E266*$E$35*(1-$K$124)-($Q$170-$Q$124-$Q$131))/$Q$6 -> 64.55336049 | K266: =(K$265*$E$34*(1-$K$131)/100+$E266*$E$35*(1-$K$124)-($Q$170-$Q$124-$Q$131))/$Q$6 -> 66.31217794 | M266: =(M$265*$E$34*(1-$K$131)/100+$E266*$E$35*(1-$K$124)-($Q$170-$Q$124-$Q$131))/$Q$6 -> 69.06314881 | O266: =(O$265*$E$34*(1-$K$131)/100+$E266*$E$35*(1-$K$124)-($Q$170-$Q$124-$Q$131))/$Q$6 -> 71.31804297 | Q266: =(Q$265*$E$34*(1-$K$131)/100+$E266*$E$35*(1-$K$124)-($Q$170-$Q$124-$Q$131))/$Q$6 -> 73.57293713
E267: 140 | G267: 64.06880948 | I267: 66.32370364 | K267: 68.08252108 | M267: 70.83349196 | O267: 73.08838612 | Q267: 75.34328028
C268: Average Sheep Sale Price($/hd) | E268: 145 | G268: 65.83915263 | I268: 68.09404679 | K268: 69.85286423 | M268: 72.60383511 | O268: 74.85872927 | Q268: 77.11362343
E269: 150 | G269: 67.60949578 | I269: 69.86438994 | K269: 71.62320738 | M269: 74.37417826 | O269: 76.62907242 | Q269: 78.88396658
E270: 155 | G270: 69.37983893 | I270: 71.63473309 | K270: 73.39355053 | M270: 76.1445214 | O270: 78.39941556 | Q270: 80.65430972
E271: 160 | G271: 71.15018207 | I271: 73.40507623 | K271: 75.16389368 | M271: 77.91486455 | O271: 80.16975871 | Q271: 82.42465287
E272: 162 | G272: 71.85831933 | I272: 74.11321349 | K272: 75.87203094 | M272: 78.62300181 | O272: 80.87789597 | Q272: 83.13279013
E273: 165 | G273: 72.92052522 | I273: 75.17541938 | K273: 76.93423683 | M273: 79.6852077 | O273: 81.94010186 | Q273: 84.19499602
E274: 170 | G274: 74.69086837 | I274: 76.94576253 | K274: 78.70457997 | M274: 81.45555085 | O274: 83.71044501 | Q274: 85.96533917
E275: 175 | G275: 76.46121152 | I275: 78.71610568 | K275: 80.47492312 | M275: 83.225894 | O275: 85.48078816 | Q275: 87.73568232
E276: 180 | G276: 78.23155467 | I276: 80.48644883 | K276: 82.24526627 | M276: 84.99623715 | O276: 87.25113131 | Q276: 89.50602547
C279: FLOCK STRUCTURE | E279: This table shows the number of merino sheep in each age group at mating
E280: Age Group
C281: Class of Sheep | E281: 0.5 y.o. | G281: 1.5 y.o. | I281: 2.5 y.o. | K281: 3.5 y.o. | M281: 4.5 y.o. | O281: 5.5 y.o. | Q281: 6.5 y.o.
C282: Ewes | E282: =$AB214 -> 475 | G282: =$AB215 -> 233.9596235 | I282: =$AB216 -> 215.5937931 | K282: =$AB217 -> 198.6696803 | M282: =$AB218 -> 183.0741104 | O282: =$AB219 -> 168.7027927 | Q282: 0
C283: Wethers | E283: =$AB228 -> 0 | G283: =$AB229 -> 0 | I283: 0 | K283: 0 | M283: 0 | O283: 0 | Q283: 0
C284: Rams | G284: =$AB240 -> 6.538387001 | I284: =$AB241 -> 6.342235391 | K284: =$AB242 -> 6.151968329 | M284: =$AB243 -> 5.967409279 | O284: 0 | Q284: 0

Sheet Wethers Input (hidden)
C2: ="WETHERS GROSS MARGIN - "&TEXT(m_year,"0000") -> WETHERS GROSS MARGIN - 2020
C4: GENERAL INFORMATION
C5: This represents a merino wether flock, producing 21 micron wool. Adjust wool price if different micron wool is produced. Following are the various assumptions used in the calculation of the Gross Margin. Cells with yellow highlight can be changed. No allowance has been made for pasture expenses such as seed, fertiliser and chemicals. Refer to pasture gross margins in the “Cropping Gross Margin Plan” for annual and perennial pasture costs. Use the livestock gross margin per DSE as income for the pasture gross margin.
C7: No of Wethers | E7: 1000
C9: Age Wethers sold | E9: 5.5
C10: Age Wethers bought | E10: 0.5
C13: Flock death Rate | E13: 0.03
C14: DSE rating/wether | E14: 1.2
C17: LIVESTOCK SALES | E17: Price/Hd | F17: Number | G17: Total
C18: Wethers | E18: 165 | F18: =ROUND(Wethers!AG220,0) -> 182 | G18: =E18*F18 -> 30030
C25: TOTAL SALES | F25: =SUM(F18:F23) -> 182 | G25: =SUM(G18:G23) -> 30030
C28: LIVESTOCK PURCHASES | E28: Price/Hd | F28: Number | G28: Total
C29: Wethers | E29: 122 | F29: =ROUND(Wethers!AD220,0) -> 212 | G29: =E29*F29 -> 25864
C32: TOTAL PURCHASES | F32: =SUM(F29:F30) -> 212 | G32: =SUM(G29:G30) -> 25864
C35: WOOL PRICE (cents/kg) | F35: =TEXT(m_year-3,"0000")&" Average (Clean)" -> 2017 Average (Clean) | G35: =TEXT(m_year-2,"0000")&" Average (Clean)" -> 2018 Average (Clean) | H35: =TEXT(m_year-1,"0000")&" Average (Clean)" -> 2019 Average (Clean) | I35: Budget Base (Clean) | J35: Budget Base (Greasy) | L35: Wool Type | M35: Budget Clean Price
E36: Cereal Zone 21 mic 68% yield | F36: 1160 | G36: 1274 | H36: 1397 | I36: 1400 | J36: =I36*I37 -> 980 | L36: 19 mic | M36: 1820
E37: Estimated wool yield | I37: 0.7 | L37: 21 mic | M37: 1780
C38: Allow 90% to account for lower value of bellies, skirtings etc. | J38: =J36*0.9 -> 882 | L38: 22 mic | M38: 1765
C42: WOOL SALES - SHEARING | F42: Wool Cut | G42: Wool Price
E43: Number | F43: kg/hd | G43: cents/kg
C44: Wethers | E44: =Wethers!E233 -> 970 | F44: 7.5 | G44: =J38 -> 882
C52: TOTAL | E52: =SUM(E44:E51) -> 970 | F52: =SUMPRODUCT(E44:E50,F44:F50) -> 7275
C55: STOCK HEALTH REQUIREMENTS
G56: Number of times
E57: Number | F57: Drench | G57: Vacc. | H57: Blowfly
C58: Wethers | E58: =Wethers!E220 -> 1000 | F58: 1 | G58: 1 | H58: 1
C64: TOTAL | E64: =SUM(E58:E62) -> 1000 | F64: =SUMPRODUCT($E$58:$E$62,F58:F62) -> 1000 | G64: =SUMPRODUCT($E$58:$E$62,G58:G62) -> 1000 | H64: =SUMPRODUCT($E$58:$E$62,H58:H62) -> 1000
C67: FEEDING
C68: HAY | F68: Hay | G68: Kgs Fed | H68: No Weeks | I68: Total
E69: Number | F69: Cost ($/T) | G69: per Week | H69: of Feeding | I69: Cost ($)
C70: Cereal Hay | E70: =Wethers!E220 -> 1000 | F70: 260 | G70: 1.5 | H70: 10 | I70: =(H70*G70*E70)/1000*F70 -> 3900
C71: Legume Hay | I71: =(H71*G71*E71)/1000*F71 -> 0
I72: =(H72*G72*E72)/1000*F72 -> 0
C74: GRAIN | F74: Grain | G74: Kgs Fed | H74: No Weeks | I74: Total
E75: Number | F75: Cost ($/T) | G75: per Week | H75: of Feeding | I75: Cost ($)
C76: Lupins | E76: =Wethers!E220 -> 1000 | F76: 320 | I76: =(H76*G76*E76)/1000*F76 -> 0
C77: Barley | I77: =(H77*G77*E77)/1000*F77 -> 0
C78: Oats | I78: =(H78*G78*E78)/1000*F78 -> 0
H80: Total Feed Cost | I80: =SUM(I70:I72,I76:I78) -> 3900

Sheet Wethers (hidden)
C1: WHETHERS
C2: ="WETHERS GROSS MARGIN - "&TEXT(m_year,"0000") -> WETHERS GROSS MARGIN - 2020
C4: ASSUMPTIONS
C6: Ave Wether Fibre Diameter | E6: 21 | O6: Gross Margin per Ha | Q6: =Q172/E198 -> 207.5940028
C7: Number of Wethers | E7: ='Wethers Input'!$E$7 -> 1000 | O7: Gross Margin per DSE | Q7: =Q174 -> 34.59900046
C8: Stocking Rate (DSE/Ha) | E8: =E196 -> 6 | O8: Gross Margin/Wether | Q8: =Q172/E199 -> 41.51880055
C32: INCOME | Q32: $
C34: Wool (kg greasy) | E34: =I234 -> 7275 | G34: kg | I34: av price | K34: ='Wethers Input'!J38 -> 882 | M34: c/kg | Q34: =E34*K34/100 -> 64165.5
C35: Sales | E35: =E211 -> 182.3653636 | G35: animals | I35: av price | K35: =G210 -> 165 | M35: /head | Q35: =K35*E35 -> 30090.285
C37: Gross Income | Q37: =SUM(Q34:Q35) -> 94255.785
AA45: STOCK VALUE AND D.S.E REQUIREMENT
C46: VARIABLE COSTS
C47: Shearing | K47: Rate
C48: Shearing | E48: =E234 -> 970 | G48: sheep | I48: Reset Rate> | J48: =GM_INFO!C30 | K48: =GM_INFO!C30 -> 318.62 | M48: /100 | Q48: =K48/100*ROUND(E48,0) -> 3090.614
C50: Shed labour | E50: 4 | G50: days | I50: Reset Rate> | J50: =GM_INFO!C32 | K50: =GM_INFO!C32 -> 241.12 | M50: /day | Q50: =K50*ROUND(E50,0) -> 964.48
C51: Woolclasser | E51: 2 | G51: days | I51: Reset Rate> | J51: =GM_INFO!C33 | K51: =GM_INFO!C33 -> 306.75 | M51: /day | Q51: =K51*E51 -> 613.5
C52: Superannuation (on ord wages only) | I52: Reset Rate> | J52: =GM_INFO!C34 | K52: =GM_INFO!C34 -> 0.095 | M52: wages | Q52: =(Q48+Q50+Q51)*K52 -> 443.51643
C53: W/Cover (incl. super + otime etc) | I53: Reset Rate> | J53: =GM_INFO!C35 | K53: =GM_INFO!C35 -> 0.04 | M53: total | Q53: =(Q48+Q49+Q50+Q51+Q52)*K53 -> 204.4844172
C54: Wool packs | E54: =E122 -> 42.79411765 | G54: packs | I54: Reset Rate> | J54: =GM_INFO!C28 | K54: =GM_INFO!C28 -> 12.4 | M54: /pack | Q54: =K54*ROUND(E54,0) -> 533.2
C55: Shed sundries | E55: =E48 -> 970 | G55: sheep | I55: Reset Rate> | J55: =GM_INFO!C36 | K55: =GM_INFO!C36 -> 0.2 | M55: /head | Q55: =K55*ROUND(E55,0) -> 194
C56: Lice control | E56: =E48 -> 970 | G56: sheep | I56: Reset Rate> | J56: =GM_INFO!C19 | K56: =GM_INFO!C19 -> 1.6 | M56: /head | Q56: =K56*ROUND(E56,0) -> 1552
C57: Crutching | E57: =E228 -> 1000 | G57: sheep | I57: Reset Rate> | J57: =GM_INFO!C38 | K57: =GM_INFO!C38 -> 92.4 | M57: /100 | Q57: =K57/100*ROUND(E57,0) -> 924
AS79: RAMS | AT79: OPENING | AU79: NATURAL | AV79: PURCHASES | AW79: DEATHS | AX79: % sold | AY79: SALES | AZ79: CLOSING
AS80: AGE | AT80: NUMBERS | AU80: INCREASE | AX80: culled | AZ80: NUMBERS
AS82: 0.5-1.5yr | AV82: =AT83/(1-AX82) -> 0 | AW82: =AT82*$R$81 -> 0 | AZ82: =AT82+AU82+AV82-AW82-AY82 -> 0
AS83: 1.5-2.5yr | AT83: =IF(AY53=3,(AU51*AY51)/(1+(1-AY55)*(1-AX83)*(1+(1-AY55)*(1-AX84)*(1+(1-AY55)*(1-AX85)))),IF(AY53=4,(AU51*AY51)/(1+(1-AY55)*(1-AX83)*(1+(1-AY55)*(1-AX84)*(1+(1-AY55)*(1-AX85)*(1+(1-AY55)*(1-AX86))))),0)) -> 0 | AW83: =AT83*$R$81 -> 0 | AZ83: =AT83+AU83+AV83-AW83-AY83 -> 0
AS84: 2.5-3.5yr | AT84: =AZ83 -> 0 | AW84: =AT84*$R$81 -> 0 | AZ84: =AT84+AU84+AV84-AW84-AY84 -> 0
AS85: 3.5-4.5yr | AT85: =AZ84 -> 0 | AW85: =AT85*$R$81 -> 0 | AX85: =IF(AY53=3,100%,0) -> 0 | AY85: =(AT85-AW85)*AX85 -> 0 | AZ85: =AT85+AU85+AV85-AW85-AY85 -> 0
AS86: 4.5-5.5yr | AT86: =AZ85 -> 0 | AW86: =AT86*$R$81 -> 0 | AX86: =IF(AY53=4,100%,0) -> 0 | AY86: =AT86-AW86 -> 0 | AZ86: =AT86+AU86+AV86-AW86-AY86 -> 0
AT87: =AT82+AT83+AT84+AT85+AT86 -> 0 | AV87: =AV82+AV83+AV84+AV85+AV86 -> 0 | AW87: =AW82+AW83+AW84+AW85+AW86 -> 0 | AY87: =AY82+AY83+AY84+AY85+AY86 -> 0 | AZ87: =AZ82+AZ83+AZ84+AZ85+AZ86 -> 0
AS88: d.s.e's | AT88: =AT87*AE49 -> 0
C89: Animal Health
C90: Drench | E90: =G228 -> 1000 | G90: sheep | I90: Reset Rate> | J90: =GM_INFO!C21 | K90: =GM_INFO!C21 -> 0.456 | M90: /head | Q90: =K90*ROUND(E90,0) -> 456
C91: Vaccinate | E91: =I228 -> 1000 | G91: sheep | I91: Reset Rate> | J91: =GM_INFO!C23 | K91: =GM_INFO!C23 -> 0.248 | M91: /head | Q91: =K91*ROUND(E91,0) -> 248
C92: Blowfly control | E92: =K228 -> 1000 | G92: sheep | I92: Reset Rate> | J92: =GM_INFO!C27 | K92: =GM_INFO!C27 -> 1.392 | M92: /head | Q92: =K92*ROUND(E92,0) -> 1392
C93: Other expenses | G93: sheep | I93: Reset Rate> | M93: /head | Q93: =K93*ROUND(E93,0) -> 0
C104: Stock purchases
C105: Purchases | E105: =ROUND(E213,0) -> 212 | G105: wethers | I105: Reset Rate> | J105: ='WETHERS INPUT'!E29 | K105: ='Wethers Input'!E29 -> 122 | M105: /head | Q105: =K105*E105 -> 25864
C117: Sale Costs
C118: Freight
C119: Livestock | E119: =E211+E213 -> 394.7307272 | G119: sheep | I119: Reset Rate> | J119: =GM_INFO!B111 | K119: =GM_INFO!B111 -> 4 | M119: /head | Q119: =K119*ROUND(E119,0) -> 1580
I120: Reset Rate> | M120: /head
I121: Reset Rate> | M121: /head
C122: Wool | E122: =I234/170 -> 42.79411765 | G122: bales | I122: Reset Rate> | J122: =GM_INFO!B114 | K122: =GM_INFO!B114 -> 15 | M122: /bale | Q122: =K122*ROUND(E122,0) -> 645
C123: Stock selling charges
C124: Commission/insurance | I124: Reset Rate> | J124: =GM_INFO!C48 | K124: =GM_INFO!C48 -> 0.06 | M124: gross $ | Q124: =K124*Q35 -> 1805.4171
C125: Yard fees | E125: =E211 -> 182.3653636 | G125: sheep | I125: Reset Rate> | J125: =GM_INFO!C49 | K125: =GM_INFO!C49 -> 0.85 | M125: /head | Q125: =K125*ROUND(E125,0) -> 154.7
C126: Levy trans-sheep | E126: =E211 -> 182.3653636 | G126: sheep | I126: Reset Rate> | J126: =GM_INFO!C50 | K126: =GM_INFO!C50 -> 0.2 | M126: /head | Q126: =K126*ROUND(E126,0) -> 36.4
C128: SA sheep industry levy | E128: =E211 -> 182.3653636 | G128: sheep | I128: Reset Rate> | J128: =GM_INFO!C52 | K128: =GM_INFO!C52 -> 0.67 | M128: /head | Q128: =K128*ROUND(E128,0) -> 121.94
C129: Wool selling charges
C130: Brokerage/testing/insurance | I130: Reset Rate> | J130: =GM_INFO!C53 | K130: =GM_INFO!C53 -> 0.27 | M130: /kg | Q130: =K130*E34 -> 1964.25
C131: Wool levy | I131: Reset Rate> | J131: =GM_INFO!C54 | K131: =GM_INFO!C54 -> 0.015 | M131: gross | Q131: =K131*Q34 -> 962.4825
C143: Feed and Other Costs
C144: Hand Feeding | Q144: ='Wethers Input'!I80 -> 3900
C146: Insurance | E146: =E239*G239 -> 143500 | G146: value | I146: Reset Rate> | J146: =GM_INFO!B107 | K146: =GM_INFO!B107 -> 2 | M146: /$'000 | Q146: =K146/1000*E146 -> 287
C147: Water | E147: =$E$197 -> 1200 | G147: DSE's | I147: Reset Rate> | J147: =GM_INFO!G79 | K147: =GM_INFO!G79 -> 2.5 | M147: /DSE's | Q147: =K147*E147 -> 3000
C148: Veh Fuel, R&M | E148: =$E$197 -> 1200 | G148: DSE's | I148: Reset Rate> | J148: =GM_INFO!G80 | K148: =GM_INFO!G80 -> 1 | M148: /DSE's | Q148: =K148*E148 -> 1200
C149: Other | E149: =$E$197 -> 1200 | G149: DSE's | I149: Reset Rate> | J149: =GM_INFO!G81 | K149: =GM_INFO!G81 -> 0.5 | M149: /DSE's | Q149: =K149*E149 -> 600
C170: TOTAL VARIABLE COSTS | Q170: =SUM(Q48:Q166) -> 52736.98445
C172: GROSS MARGIN TOTAL | Q172: =Q37-Q170 -> 41518.80055
C174: GROSS MARGIN/DSE | Q174: =Q172/E197 -> 34.59900046
C194: PRODUCTION DATA
C196: Stocking rate (DSE/Ha) | E196: 6 | K196: Culling Rate (% from each group) | Q196: Stock | AA196: SHEEP GROSS MARGIN
C197: Total DSE's | E197: ='Wethers Input'!E7*'Wethers Input'!E14 -> 1200 | K197: Age Group | M197: Ewes | O197: Wethers | Q197: No's
C198: SHEEP GRAZING AREA | E198: =E197/E196 -> 200 | K198: 0.5 | O198: =AF214 -> 0 | Q198: =AH214 -> 212.3653636
C199: Number of wethers | E199: ='Wethers Input'!E7 -> 1000 | K199: 1.5 | O199: 0 | Q199: 205.9944027
C200: Flock death rate | E200: ='Wethers Input'!E13 -> 0.03 | K200: 2.5 | O200: 0 | Q200: 199.8145706
C201: Age wethers bought | E201: ='Wethers Input'!E10 -> 0.5 | K201: 3.5 | O201: 0 | Q201: 193.8201335
C202: Age wethers culled | E202: ='Wethers Input'!E9 -> 5.5 | K202: 4.5 | O202: 0 | Q202: 188.0055295 | AA202: No of wethers | AC202: ='Wethers Input'!E7 -> 1000
B203: =VLOOKUP(r[0]c3&"No Ops",CHOOSE({1,2},tbl_ops[Name]&tbl_ops[Category],INDIRECT("tbl_ops["&var_crop&"]")),2,0) | K203: 5.5 | O203: 1 | Q203: 0 | AA203: Age wethers purchased | AC203: =E201 -> 0.5
B204: =VLOOKUP(r[0]c3&"No Ops",CHOOSE({1,2},tbl_ops[Name]&tbl_ops[Category],INDIRECT("tbl_ops["&var_crop&"]")),2,0) | AA204: Age wethers sold | AC204: =E202 -> 5.5
B205: =VLOOKUP(r[0]c3&"No Ops",CHOOSE({1,2},tbl_ops[Name]&tbl_ops[Category],INDIRECT("tbl_ops["&var_crop&"]")),2,0) | AA205: Flock death rate | AC205: =E200 -> 0.03
B206: =VLOOKUP(r[0]c3&"No Ops",CHOOSE({1,2},tbl_ops[Name]&tbl_ops[Category],INDIRECT("tbl_ops["&var_crop&"]")),2,0) | AA206: dse/wether | AC206: ='Wethers Input'!E14 -> 1.2
B208: =VLOOKUP(r[0]c3&var_rain,CHOOSE({1,2},tbl_ops[Name]&tbl_ops[Rainfall],INDIRECT("tbl_ops["&var_crop&"]")),2,0)
B209: =VLOOKUP(r[0]c3&var_rain,CHOOSE({1,2},tbl_ops[Name]&tbl_ops[Rainfall],INDIRECT("tbl_ops["&var_crop&"]")),2,0) | C209: SALES | E209: Number | G209: Price/hd | I209: Age | K209: Total
B210: =VLOOKUP(r[0]c3&var_rain,CHOOSE({1,2},tbl_ops[Name]&tbl_ops[Rainfall],INDIRECT("tbl_ops["&var_crop&"]")),2,0) | C210: c.f.a wethers | E210: =AG220 -> 182.3653636 | G210: ='Wethers Input'!E18 -> 165 | I210: =E202 -> 5.5 | K210: =ROUND(E210,0)*G210 -> 30030
B211: =VLOOKUP(r[0]c3&var_rain,CHOOSE({1,2},tbl_ops[Name]&tbl_ops[Rainfall],INDIRECT("tbl_ops["&var_crop&"]")),2,0) | C211: TOTAL | E211: =E210 -> 182.3653636 | K211: =K210 -> 30030 | AA211: WETHERS | AB211: OPENING | AC211: NATURAL | AD211: PURCHASES | AE211: DEATHS | AF211: % sold | AG211: SALES | AH211: CLOSING
C212: PURCHASES | E212: Number | G212: Price/hd | I212: Age | K212: Total | AA212: AGE | AB212: NUMBERS | AC212: INCREASE | AF212: culled | AH212: NUMBERS
C213: Wethers | E213: =AD220 -> 212.3653636 | G213: ='Wethers Input'!E29 -> 122 | I213: =E201 -> 0.5 | K213: =ROUND(E213,0)*G213 -> 25864
AA214: 0-0.5yr | AD214: =IF(AC203=0.5,AB215-AE214-AG214,0) -> 212.3653636 | AE214: =AB214*$AC$205 -> 0 | AF214: =IF(AC204=0.5,100%,0) -> 0 | AG214: =AC214*AF214 -> 0 | AH214: =AB214+AC214+AD214-AE214-AG214 -> 212.3653636
AA215: 0.5-1.5yr | AB215: =IF(AC203=0.5,AC202/(1+(1-AC205)*(1-AF215)*(1+(1-AC205)*(1-AF216)*(1+(1-AC205)*(1-AF217)*(1+(1-AC205)*(1-AF218))))),0) -> 212.3653636 | AD215: =IF(AC203=1.5,AB216-AE215-AG215,0) -> 0 | AE215: 6.370960909 | AF215: =IF(AC204=1.5,100%,0) -> 0 | AG215: =(AB215-AE215)*AF215 -> 0 | AH215: 205.9944027
AA216: 1.5-2.5yr | AB216: =IF(AC203=1.5,AC202/(1+(1-AC205)*(1-AF216)*(1+(1-AC205)*(1-AF217)*(1+(1-AC205)*(1-AF218)))),AH215) -> 205.9944027 | AE216: 6.179832081 | AF216: =IF(AC204=2.5,100%,0) -> 0 | AG216: =(AB216-AE216)*AF216 -> 0 | AH216: 199.8145706
AA217: 2.5-3.5yr | AB217: =AH216 -> 199.8145706 | AE217: 5.994437119 | AF217: =IF(AC204=3.5,100%,0) -> 0 | AG217: =(AB217-AE217)*AF217 -> 0 | AH217: 193.8201335
E218: Number of Times | AA218: 3.5-4.5yr | AB218: =AH217 -> 193.8201335 | AE218: 5.814604005 | AF218: =IF(AC204=4.5,100%,0) -> 0 | AG218: =(AB218-AE218)*AF218 -> 0 | AH218: 188.0055295
C219: STOCK HEALTH REQUIREMENTS | E219: Number | G219: Drench | I219: Vacc. | K219: Blowfly | AA219: 4.5-5.5yr | AB219: =AH218 -> 188.0055295 | AE219: 5.640165885 | AF219: =IF(AC204=5.5,100%,0) -> 1 | AG219: =(AB219-AE219)*AF219 -> 182.3653636 | AH219: 0
C220: Wethers | E220: =ROUND('Wethers Input'!E7,0) -> 1000 | G220: ='Wethers Input'!F58 -> 1 | I220: ='Wethers Input'!G58 -> 1 | K220: ='Wethers Input'!H58 -> 1 | AA220: Total | AB220: =SUM(AB215:AB219) -> 1000 | AD220: =SUM(AD214:AD219) -> 212.3653636 | AE220: =SUM(AE214:AE219) -> 30 | AG220: =SUM(AG214:AG219) -> 182.3653636 | AH220: =SUM(AH214:AH219) -> 1000
AA221: d.s.e's | AB221: =AB220*AC206 -> 1200
C228: TOTAL | E228: =SUM(E220:E227) -> 1000 | G228: =SUMPRODUCT($E$220:$E$227,G220:G227) -> 1000 | I228: =SUMPRODUCT($E$220:$E$227,I220:I227) -> 1000 | K228: =SUMPRODUCT($E$220:$E$227,K220:K227) -> 1000
G231: Wool Cut kg/hd | I231: Total | K231: Wool Price
C232: SHEARING | E232: Number | I232: Greasy kg | K232: cents/kg
C233: Wethers | E233: =AB220-AE220 -> 970 | G233: ='Wethers Input'!F44 -> 7.5 | I233: =G233*E233 -> 7275 | K233: ='Wethers Input'!G44 -> 882
C234: TOTAL | E234: =E233 -> 970 | I234: =I233 -> 7275
C237: STOCK VALUE | G237: Value
E238: Number | G238: $/head
C239: Wethers | E239: =E199 -> 1000 | G239: =(G213+G210)/2 -> 143.5
C240: TOTAL | E240: =E239 -> 1000
G244: Hay Cost ($/T) | I244: Kg Fed per Week | K244: No of Weeks Feeding | M244: Total Cost ($)
C245: FEEDING | E245: Number
C246: Wethers | E246: ='Wethers Input'!E70 -> 1000 | G246: ='Wethers Input'!F70 -> 260 | I246: ='Wethers Input'!G70 -> 1.5 | K246: ='Wethers Input'!H70 -> 10 | M246: =(E246*G246*I246*K246)/1000 -> 3900
E247: ='Wethers Input'!E71 -> 0 | G247: ='Wethers Input'!F71 -> 0 | I247: ='Wethers Input'!G71 -> 0 | K247: ='Wethers Input'!H71 -> 0 | M247: =(E247*G247*I247*K247)/1000 -> 0
E248: ='Wethers Input'!E72 -> 0 | G248: ='Wethers Input'!F72 -> 0 | I248: ='Wethers Input'!G72 -> 0 | K248: ='Wethers Input'!H72 -> 0 | M248: =(E248*G248*I248*K248)/1000 -> 0
G249: Grain Cost ($/T) | I249: Kg Fed per Week | K249: No of Weeks Feeding | M249: Total Cost ($)
E250: Number
C251: Wethers | E251: ='Wethers Input'!E76 -> 1000 | G251: ='Wethers Input'!F76 -> 320 | I251: ='Wethers Input'!G76 -> 0 | K251: ='Wethers Input'!H76 -> 0 | M251: =(E251*G251*I251*K251)/1000 -> 0
E252: ='Wethers Input'!E77 -> 0 | G252: ='Wethers Input'!F77 -> 0 | I252: ='Wethers Input'!G77 -> 0 | K252: ='Wethers Input'!H77 -> 0 | M252: =(E252*G252*I252*K252)/1000 -> 0
E253: ='Wethers Input'!E78 -> 0 | G253: ='Wethers Input'!F78 -> 0 | I253: ='Wethers Input'!G78 -> 0 | K253: ='Wethers Input'!H78 -> 0 | M253: =(E253*G253*I253*K253)/1000 -> 0
C254: TOTAL FEED COST | M254: =SUM(M246:M248,M251:M253) -> 3900
C259: GM SENSITIVITY
C260: Gross Margin/DSE | E260: Average Greasy Wool Price (c/Kg)
G261: 1000 | I261: 1050 | K261: 1089 | M261: 1150 | O261: 1200 | Q261: 1250
E262: 140 | G262: =(G$261*$E$34*(1-$K$131)/100+$E262*$E$35*(1-$K$124)-($Q$170-$Q$124-$Q$131))/$E$197 -> 38.0741225 | I262: =(I$261*$E$34*(1-$K$131)/100+$E262*$E$35*(1-$K$124)-($Q$170-$Q$124-$Q$131))/$E$197 -> 41.05990375 | K262: =(K$261*$E$34*(1-$K$131)/100+$E262*$E$35*(1-$K$124)-($Q$170-$Q$124-$Q$131))/$E$197 -> 43.38881313 | M262: =(M$261*$E$34*(1-$K$131)/100+$E262*$E$35*(1-$K$124)-($Q$170-$Q$124-$Q$131))/$E$197 -> 47.03146625 | O262: =(O$261*$E$34*(1-$K$131)/100+$E262*$E$35*(1-$K$124)-($Q$170-$Q$124-$Q$131))/$E$197 -> 50.0172475 | Q262: =(Q$261*$E$34*(1-$K$131)/100+$E262*$E$35*(1-$K$124)-($Q$170-$Q$124-$Q$131))/$E$197 -> 53.00302875
E263: 145 | G263: 38.78838685 | I263: 41.7741681 | K263: 44.10307747 | M263: 47.7457306 | O263: 50.73151185 | Q263: 53.7172931
C264: Average Sheep Sale Price($/hd) | E264: 150 | G264: 39.50265119 | I264: 42.48843244 | K264: 44.81734181 | M264: 48.45999494 | O264: 51.44577619 | Q264: 54.43155744
E265: 155 | G265: 40.21691553 | I265: 43.20269678 | K265: 45.53160615 | M265: 49.17425928 | O265: 52.16004053 | Q265: 55.14582178
E266: 160 | G266: 40.93117987 | I266: 43.91696112 | K266: 46.24587049 | M266: 49.88852362 | O266: 52.87430487 | Q266: 55.86008612
E267: 165 | G267: 41.64544421 | I267: 44.63122546 | K267: 46.96013483 | M267: 50.60278796 | O267: 53.58856921 | Q267: 56.57435046
E268: 170 | G268: 42.35970855 | I268: 45.3454898 | K268: 47.67439918 | M268: 51.3170523 | O268: 54.30283355 | Q268: 57.2886148
E269: 175 | G269: 43.07397289 | I269: 46.05975414 | K269: 48.38866352 | M269: 52.03131664 | O269: 55.01709789 | Q269: 58.00287914
E270: 180 | G270: 43.78823723 | I270: 46.77401848 | K270: 49.10292786 | M270: 52.74558098 | O270: 55.73136223 | Q270: 58.71714348
E271: 185 | G271: 44.50250157 | I271: 47.48828282 | K271: 49.8171922 | M271: 53.45984532 | O271: 56.44562657 | Q271: 59.43140782
E272: 190 | G272: 45.21676591 | I272: 48.20254716 | K272: 50.53145654 | M272: 54.17410966 | O272: 57.15989091 | Q272: 60.14567216

Sheet Cleanskin Sheep Input (hidden)
C2: ="CLEANSKIN SHEEP GROSS MARGIN - "&TEXT(m_year,"0000") -> CLEANSKIN SHEEP GROSS MARGIN - 2020
C4: GENERAL INFORMATION
C5: This represents a fully wool shedding self-replacing flock, with no shearing, crutching or lice control. Assumes only one lambing each year. Following are the various assumptions used in the calculation of the Gross Margin. Cells with yellow highlight can be changed. No allowance has been made for pasture expenses such as seed, fertiliser and chemicals. Refer to pasture gross margins in the “Cropping Gross Margin Plan” for annual and perennial pasture costs. Use the livestock gross margin per DSE as income for the pasture gross margin.
C7: Ewes mated | E7: 1000
C8: Age ewes 1st mating | E8: 1.5
C9: Age ewes sold | E9: 6.5
C10: Av Weaning % | E10: 1.5
C11: Ram percentage | E11: 0.025
C12: Years Rams Kept | E12: 4
C13: Flock death Rate | E13: 0.03
C17: LIVESTOCK SALES | E17: Price/Hd | F17: Number | G17: Total
C18: c.f.a Ewes | E18: 180 | F18: ='Cleanskin Sheep'!AG220 -> 203.9596235 | G18: =E18*ROUND(F18,0) -> 36720
C19: c.f.a Rams | E19: 130 | F19: ='Cleanskin Sheep'!AG244 -> 5.788387001 | G19: =E19*ROUND(F19,0) -> 780
C20: ewe hoggets | E20: 210 | F20: ='Cleanskin Sheep'!AG222 -> 493.5403765 | G20: =E20*ROUND(F20,0) -> 103740
C21: wether lambs | E21: 185 | F21: ='Cleanskin Sheep'!AG230 -> 750 | G21: =E21*ROUND(F21,0) -> 138750
C25: TOTAL SALES | F25: =SUM(F18:F23) -> 1453.288387 | G25: =SUM(G18:G23) -> 279990
C28: LIVESTOCK PURCHASES | E28: Price/Hd | F28: Number | G28: Total
C30: Rams | E30: 1850 | F30: =ROUND('Cleanskin Sheep'!AD244,0) -> 7 | G30: =E30*F30 -> 12950
C32: TOTAL PURCHASES | F32: =SUM(F29:F30) -> 7 | G32: =SUM(G29:G30) -> 12950
C54: STOCK HEALTH REQUIREMENTS
G55: Number of times
E56: Number | F56: Drench | G56: Vacc. | H56: Blowfly | I56: Lice
C57: Ewes | E57: ='Cleanskin Sheep'!E220 -> 1000 | F57: 1 | G57: 1
C58: Ewe hoggets | E58: ='Cleanskin Sheep'!E221 -> 750 | F58: 1 | G58: 1
C59: Wether weaners | E59: ='Cleanskin Sheep'!E222 -> 0 | F59: 1 | G59: 1
C60: Lambs | E60: ='Cleanskin Sheep'!E223 -> 1500 | F60: 1 | G60: 2
C61: Rams | E61: ='Cleanskin Sheep'!E224 -> 25 | F61: 2 | G61: 1
C63: TOTAL | E63: =SUM(E57:E61) -> 3275 | F63: =SUMPRODUCT($E$57:$E$61,F57:F61) -> 3300 | G63: =SUMPRODUCT($E$57:$E$61,G57:G61) -> 4775 | H63: =SUMPRODUCT($E$57:$E$61,H57:H61) -> 0 | I63: =SUMPRODUCT($E$57:$E$61,I57:I61) -> 0
C66: FEEDING
C67: HAY | F67: Hay | G67: Kgs Fed | H67: No Weeks | I67: Total
E68: Number | F68: Cost ($/T) | G68: per Week | H68: of Feeding | I68: Cost ($)
C69: Hay | E69: ='Cleanskin Sheep'!E220 -> 1000 | F69: 260 | G69: 2 | H69: 10 | I69: =(H69*G69*E69)/1000*F69 -> 5200
I70: 0
I71: 0
I72: 0
I73: 0
I74: 0
C76: GRAIN | F76: Grain | G76: Kgs Fed | H76: No Weeks | I76: Total
E77: Number | F77: Cost ($/T) | G77: per Week | H77: of Feeding | I77: Cost ($)
C78: Oats/barley | E78: ='Cleanskin Sheep'!E220 -> 1000 | F78: 280 | G78: 2.4 | H78: 10 | I78: =(H78*G78*E78)/1000*F78 -> 6720
C79: Lupins | E79: ='Cleanskin Sheep'!E221 -> 750 | F79: 450 | G79: 1 | H79: 10 | I79: =(H79*G79*E79)/1000*F79 -> 3375
I80: =(H80*G80*E80)/1000*F80 -> 0
I81: =(H81*G81*E81)/1000*F81 -> 0
I82: =(H82*G82*E82)/1000*F82 -> 0
H84: Total Feed Cost | I84: =SUM(I69:I74,I78:I82) -> 15295

Sheet Cleanskin Sheep (hidden)
C1: CLEANSKIN SHEEP
C2: =UPPER(Var_Animal)&" GROSS MARGIN - "&TEXT(m_year,"0000") -> CLEANSKIN SHEEP GROSS MARGIN - 2020
C4: ASSUMPTIONS
O6: Total DSE's | Q6: =E197 -> 2750
C7: No. of breeding ewes | E7: ='Cleanskin Sheep Input'!$E$7 -> 1000 | O7: Stocking Rate (DSE/Ha) | Q7: =E196 -> 6
C32: INCOME | Q32: $
C35: Sales | E35: =ROUND(E214,0) -> 1453 | G35: animals | I35: av price | K35: =G214 -> 192.659628 | M35: /head | Q35: =I214 -> 279990
C37: Gross Income | Q37: =SUM(Q34:Q35) -> 279990
AA45: STOCK VALUE AND D.S.E REQUIREMENT
C46: VARIABLE COSTS
C75: Marking | K75: Rate
C76: Lamb marking | E76: =E199*E203 -> 1500 | G76: lambs | I76: Reset Rate> | J76: =GM_INFO!C42 | K76: =GM_INFO!C42 -> 1.15 | M76: /head | Q76: =K76*ROUND(E76,0) -> 1725
C77: Ear tags | E77: =E76 -> 1500 | G77: lambs | I77: Reset Rate> | J77: =GM_INFO!C43 | K77: =GM_INFO!C43 -> 0.43 | M77: /head | Q77: =K77*ROUND(E77,0) -> 645
AS79: RAMS | AT79: OPENING | AU79: NATURAL | AV79: PURCHASES | AW79: DEATHS | AX79: % sold | AY79: SALES | AZ79: CLOSING
AS80: AGE | AT80: NUMBERS | AU80: INCREASE | AX80: culled | AZ80: NUMBERS
AS82: 0.5-1.5yr | AV82: =AT83/(1-AX82) -> 0 | AW82: =AT82*$R$81 -> 0 | AZ82: =AT82+AU82+AV82-AW82-AY82 -> 0
AS83: 1.5-2.5yr | AT83: =IF(AY53=3,(AU51*AY51)/(1+(1-AY55)*(1-AX83)*(1+(1-AY55)*(1-AX84)*(1+(1-AY55)*(1-AX85)))),IF(AY53=4,(AU51*AY51)/(1+(1-AY55)*(1-AX83)*(1+(1-AY55)*(1-AX84)*(1+(1-AY55)*(1-AX85)*(1+(1-AY55)*(1-AX86))))),0)) -> 0 | AW83: =AT83*$R$81 -> 0 | AZ83: =AT83+AU83+AV83-AW83-AY83 -> 0
AS84: 2.5-3.5yr | AT84: =AZ83 -> 0 | AW84: =AT84*$R$81 -> 0 | AZ84: =AT84+AU84+AV84-AW84-AY84 -> 0
AS85: 3.5-4.5yr | AT85: =AZ84 -> 0 | AW85: =AT85*$R$81 -> 0 | AX85: =IF(AY53=3,100%,0) -> 0 | AY85: =(AT85-AW85)*AX85 -> 0 | AZ85: =AT85+AU85+AV85-AW85-AY85 -> 0
AS86: 4.5-5.5yr | AT86: =AZ85 -> 0 | AW86: =AT86*$R$81 -> 0 | AX86: =IF(AY53=4,100%,0) -> 0 | AY86: =AT86-AW86 -> 0 | AZ86: =AT86+AU86+AV86-AW86-AY86 -> 0
AT87: =AT82+AT83+AT84+AT85+AT86 -> 0 | AV87: =AV82+AV83+AV84+AV85+AV86 -> 0 | AW87: =AW82+AW83+AW84+AW85+AW86 -> 0 | AY87: =AY82+AY83+AY84+AY85+AY86 -> 0 | AZ87: =AZ82+AZ83+AZ84+AZ85+AZ86 -> 0
AS88: d.s.e's | AT88: =AT87*AE49 -> 0
C89: Animal Health
C90: Drench | E90: =G228 -> 3300 | G90: sheep | I90: Reset Rate> | J90: =GM_INFO!C21 | K90: =GM_INFO!C21 -> 0.456 | M90: /head | Q90: =K90*ROUND(E90,0) -> 1504.8
C91: Vaccinate | E91: =I228 -> 4775 | G91: sheep | I91: Reset Rate> | J91: =GM_INFO!C23 | K91: =GM_INFO!C23 -> 0.248 | M91: /head | Q91: =K91*ROUND(E91,0) -> 1184.2
C92: Blowfly control | E92: =K228 -> 0 | G92: sheep | I92: Reset Rate> | J92: =GM_INFO!C27 | K92: =GM_INFO!C27 -> 1.392 | M92: /head | Q92: =K92*ROUND(E92,0) -> 0
C93: Lice control | E93: =M228 -> 0 | G93: sheep | I93: Reset Rate> | J93: =GM_INFO!C19 | K93: =GM_INFO!C19 -> 1.6 | M93: /head | Q93: =K93*ROUND(E93,0) -> 0
C104: Stock purchases
C105: Purchases | E105: =ROUND(AD244,0) -> 7 | G105: rams | I105: Reset Rate> | J105: ='Cleanskin sheep input'!E30 | K105: ='Cleanskin Sheep Input'!E30 -> 1850 | M105: /head | Q105: =K105*E105 -> 12950
C117: Sale Costs
C118: Freight
C119: ewes | E119: =E210 -> 203.9596235 | G119: sheep | I119: Reset Rate> | J119: =GM_INFO!B111 | K119: =GM_INFO!B111 -> 4 | M119: /head | Q119: =K119*ROUND(E119,0) -> 816
C120: rams | E120: =E211 -> 5.788387001 | G120: sheep | I120: Reset Rate> | J120: =GM_INFO!B115 | K120: =GM_INFO!B115 -> 4 | M120: /head | Q120: =K120*ROUND(E120,0) -> 24
C121: hoggets | E121: =E212 -> 493.5403765 | G121: sheep | I121: Reset Rate> | J121: =GM_INFO!B116 | K121: =GM_INFO!B116 -> 4 | M121: /head | Q121: =K121*ROUND(E121,0) -> 1976
C122: lambs | E122: =E213 -> 750 | G122: sheep | I122: Reset Rate> | J122: =GM_INFO!B113 | K122: =GM_INFO!B113 -> 4 | M122: /head | Q122: =K122*ROUND(E122,0) -> 3000
C123: Stock selling charges
C124: Commission/insurance | I124: Reset Rate> | J124: =GM_INFO!C48 | K124: =GM_INFO!C48 -> 0.06 | M124: gross $ | Q124: =K124*Q35 -> 16799.4
C125: Yard fees | E125: =E214 -> 1453.288387 | G125: sheep | I125: Reset Rate> | J125: =GM_INFO!C49 | K125: =GM_INFO!C49 -> 0.85 | M125: /head | Q125: =K125*ROUND(E125,0) -> 1235.05
C126: Levy trans-sheep | E126: =SUM(E210:E212) -> 703.288387 | G126: sheep | I126: Reset Rate> | J126: =GM_INFO!C50 | K126: =GM_INFO!C50 -> 0.2 | M126: /head | Q126: =K126*ROUND(E126,0) -> 140.6
C127: Levy trans-lambs | E127: =E213 -> 750 | G127: sheep | I127: Reset Rate> | J127: =GM_INFO!C51 | K127: =GM_INFO!C51 -> 1.5 | M127: /head | Q127: =K127*ROUND(E127,0) -> 1125
C128: SA sheep industry levy | E128: =E214 -> 1453.288387 | G128: sheep | I128: Reset Rate> | J128: =GM_INFO!C52 | K128: =GM_INFO!C52 -> 0.67 | M128: /head | Q128: =K128*ROUND(E128,0) -> 973.51
C143: Feed and Other Costs
C144: Hand Feeding | Q144: ='Cleanskin Sheep Input'!I84 -> 15295
C146: Insurance | E146: =E229 -> 630960.2817 | G146: value | I146: Reset Rate> | J146: =GM_INFO!B107 | K146: =GM_INFO!B107 -> 2 | M146: /$'000 | Q146: =K146/1000*E146 -> 1261.920563
C147: Water | E147: =$E$197 -> 2750 | G147: DSE's | I147: Reset Rate> | J147: =GM_INFO!h79 | K147: =GM_INFO!H79 -> 2.5 | M147: /DSE's | Q147: =K147*E147 -> 6875
C148: Veh Fuel, R&M | E148: =$E$197 -> 2750 | G148: DSE's | I148: Reset Rate> | J148: =GM_INFO!h80 | K148: =GM_INFO!H80 -> 0.8 | M148: /DSE's | Q148: =K148*E148 -> 2200
C149: Other | E149: =$E$197 -> 2750 | G149: DSE's | I149: Reset Rate> | J149: =GM_INFO!h81 | K149: =GM_INFO!H81 -> 0.5 | M149: /DSE's | Q149: =K149*E149 -> 1375
C170: TOTAL VARIABLE COSTS | Q170: =SUM(Q48:Q166) -> 71105.48056
C172: GROSS MARGIN TOTAL | Q172: =Q37-Q170 -> 208884.5194
C174: GROSS MARGIN/DSE | Q174: =Q172/Q6 -> 75.95800707
C194: PRODUCTION DATA
C196: Stocking rate (DSE/Ha) | E196: 6 | K196: Culling Rate (% from each group) | AA196: SHEEP GROSS MARGIN
C197: Total DSE's | E197: =O228 -> 2750 | K197: Age Group | M197: Ewes | O197: Wethers | AA197: PRIME LAMB -
C198: SHEEP GRAZING AREA | E198: =E197/E196 -> 458.3333333 | K198: 0.5 | M198: =AF213 -> 0 | O198: =AF227 -> 1
C199: Number of ewes mated | E199: ='Cleanskin Sheep Input'!E7 -> 1000 | K199: 1.5 | M199: 0.6784060158 | O199: 0
C200: Ram percentage | E200: ='Cleanskin Sheep Input'!E11 -> 0.025 | K200: 2.5 | M200: 0.05 | O200: 0
C201: Years rams kept | E201: ='Cleanskin Sheep Input'!E12 -> 4 | K201: 3.5 | M201: 0.05 | O201: 0
C202: Flock death rate | E202: ='Cleanskin Sheep Input'!E13 -> 0.03 | K202: 4.5 | M202: 0.05 | O202: 0 | AA202: Ewes mated | AC202: ='Cleanskin Sheep Input'!E7 -> 1000 | AF202: Ram % | AG202: =E200 -> 0.025
B203: =VLOOKUP(r[0]c3&"No Ops",CHOOSE({1,2},tbl_ops[Name]&tbl_ops[Category],INDIRECT("tbl_ops["&var_crop&"]")),2,0) | C203: Average weaning rate | E203: =AC205 -> 1.5 | K203: 5.5 | M203: 0.05 | O203: 0 | AA203: Age at 1st mating | AC203: ='Cleanskin Sheep Input'!E8 -> 1.5 | AF203: Price of rams | AG203: ='Cleanskin Sheep Input'!E30 -> 1850
B204: =VLOOKUP(r[0]c3&"No Ops",CHOOSE({1,2},tbl_ops[Name]&tbl_ops[Category],INDIRECT("tbl_ops["&var_crop&"]")),2,0) | C204: Age wethers sold | E204: =AG205 -> 0.5 | K204: 6.5 | M204: 1 | O204: 0 | AA204: Age ewes sold | AC204: ='Cleanskin Sheep Input'!E9 -> 6.5 | AF204: Years rams kept | AG204: =E201 -> 4
B205: =VLOOKUP(r[0]c3&"No Ops",CHOOSE({1,2},tbl_ops[Name]&tbl_ops[Category],INDIRECT("tbl_ops["&var_crop&"]")),2,0) | AA205: Av Weaning % | AC205: ='Cleanskin Sheep Input'!E10 -> 1.5 | AF205: Age wethers sold | AG205: 0.5
B206: =VLOOKUP(r[0]c3&"No Ops",CHOOSE({1,2},tbl_ops[Name]&tbl_ops[Category],INDIRECT("tbl_ops["&var_crop&"]")),2,0) | AA206: dse/ewe | AC206: 1.6 | AF206: Flock death rate | AG206: =E202 -> 0.03
B208: =VLOOKUP(r[0]c3&var_rain,CHOOSE({1,2},tbl_ops[Name]&tbl_ops[Rainfall],INDIRECT("tbl_ops["&var_crop&"]")),2,0)
B209: =VLOOKUP(r[0]c3&var_rain,CHOOSE({1,2},tbl_ops[Name]&tbl_ops[Rainfall],INDIRECT("tbl_ops["&var_crop&"]")),2,0) | C209: SALES | E209: Number | G209: Price/hd | I209: Total
B210: =VLOOKUP(r[0]c3&var_rain,CHOOSE({1,2},tbl_ops[Name]&tbl_ops[Rainfall],INDIRECT("tbl_ops["&var_crop&"]")),2,0) | C210: c.f.a ewes | E210: =AG220 -> 203.9596235 | G210: ='Cleanskin Sheep Input'!E18 -> 180 | I210: =ROUND(E210,0)*G210 -> 36720
B211: =VLOOKUP(r[0]c3&var_rain,CHOOSE({1,2},tbl_ops[Name]&tbl_ops[Rainfall],INDIRECT("tbl_ops["&var_crop&"]")),2,0) | C211: c.f.a rams | E211: =AG244 -> 5.788387001 | G211: ='Cleanskin Sheep Input'!E19 -> 130 | I211: =ROUND(E211,0)*G211 -> 780 | AA211: EWES | AB211: OPENING | AC211: NATURAL | AD211: PURCHASES | AE211: DEATHS | AF211: % sold | AG211: SALES | AH211: CLOSING
C212: Ewe hoggets | E212: =AG222 -> 493.5403765 | G212: ='Cleanskin Sheep Input'!E20 -> 210 | I212: =ROUND(E212,0)*G212 -> 103740 | AA212: AGE | AB212: NUMBERS | AC212: INCREASE | AF212: culled | AH212: NUMBERS
C213: Wether lambs | E213: =AG230 -> 750 | G213: ='Cleanskin Sheep Input'!E21 -> 185 | I213: =ROUND(E213,0)*G213 -> 138750 | AA213: 0-0.5yr | AC213: =AC202*AC205/2 -> 750 | AE213: =AB213*$AG$206 -> 0 | AF213: 0 | AG213: =AC213*AF213 -> 0 | AH213: =AB213+AC213+AD213-AE213-AG213 -> 750
C214: TOTAL | E214: =SUM(E210:E213) -> 1453.288387 | G214: =I214/E214 -> 192.659628 | I214: =SUM(I210:I213) -> 279990 | AA214: 0.5-1.5yr | AB214: =AH213 -> 750 | AE214: 22.5 | AF214: =(AB214*(1-AG206)-AB215)/(AB214-AE214) -> 0.6784060158 | AG214: =AB214-AE214-AB215 -> 493.5403765 | AH214: 233.9596235
AA215: 1.5-2.5yr | AB215: =AC202/(1+(1-AG206)*(1-AF215)*(1+(1-AG206)*(1-AF216)*(1+(1-AG206)*(1-AF217)*(1+(1-AG206)*(1-AF218))))) -> 233.9596235 | AE215: 7.018788705 | AF215: 0.05 | AG215: =(AB215-AE215)*AF215 -> 11.34704174 | AH215: 215.5937931
AA216: 2.5-3.5yr | AB216: =AH215 -> 215.5937931 | AE216: 6.467813792 | AF216: 0.05 | AG216: =(AB216-AE216)*AF216 -> 10.45629896 | AH216: 198.6696803
AA217: 3.5-4.5yr | AB217: =AH216 -> 198.6696803 | AE217: 5.960090409 | AF217: 0.05 | AG217: =(AB217-AE217)*AF217 -> 9.635479495 | AH217: 183.0741104
E218: Number of Times | AA218: 4.5-5.5yr | AB218: =AH217 -> 183.0741104 | AE218: 5.492223312 | AF218: =IF(AC204=5.5,1,5%) -> 0.05 | AG218: =(AB218-AE218)*AF218 -> 8.879094354 | AH218: =AB218+AC218+AD218-AE218-AG218 -> 168.7027927
C219: STOCK HEALTH REQUIREMENTS | E219: Number | G219: Drench | I219: Vacc. | K219: Blowfly | M219: Lice | O219: DSE | AA219: 5.5-6.5yr | AB219: =AH218 -> 168.7027927 | AE219: 5.061083782 | AF219: =IF(AC204=6.5,100%,0) -> 1 | AG219: =(AB219-AE219)*AF219 -> 163.641709 | AH219: 0
C220: Ewes | E220: =ROUND('Cleanskin Sheep Input'!E7,0) -> 1000 | G220: ='Cleanskin Sheep Input'!F57 -> 1 | I220: ='Cleanskin Sheep Input'!G57 -> 1 | K220: ='Cleanskin Sheep Input'!H57 -> 0 | M220: ='Cleanskin Sheep Input'!I57 -> 0 | O220: 1.8 | AA220: Ewes | AB220: =SUM(AB215:AB219) -> 1000 | AC220: =SUM(AC213:AC217) -> 750 | AD220: =SUM(AD213:AD219) -> 0 | AE220: =SUM(AE213:AE218) -> 47.43891622 | AG220: =SUM(AG215:AG219) -> 203.9596235 | AH220: =SUM(AH214:AH218) -> 1000
C221: Ewe hoggets | E221: =ROUND(AB222,0) -> 750 | G221: ='Cleanskin Sheep Input'!F58 -> 1 | I221: ='Cleanskin Sheep Input'!G58 -> 1 | K221: ='Cleanskin Sheep Input'!H58 -> 0 | M221: ='Cleanskin Sheep Input'!I58 -> 0 | O221: 1.2 | AA221: d.s.e's | AB221: =AB214+AC206*(AB215+AB216+AB217+AB218) -> 2080.075532
C222: Wether weaners | E222: =ROUND(AB228,0) -> 0 | G222: ='Cleanskin Sheep Input'!F59 -> 1 | I222: ='Cleanskin Sheep Input'!G59 -> 1 | K222: ='Cleanskin Sheep Input'!H59 -> 0 | M222: ='Cleanskin Sheep Input'!I59 -> 0 | O222: 0.8 | AA222: Ewe Hoggets | AB222: =AB214 -> 750 | AG222: =AG214 -> 493.5403765 | AH222: =AH213 -> 750
C223: Lambs | E223: =ROUND(AC213+AC227,0) -> 1500 | G223: ='Cleanskin Sheep Input'!F60 -> 1 | I223: ='Cleanskin Sheep Input'!G60 -> 2 | K223: ='Cleanskin Sheep Input'!H60 -> 0 | M223: ='Cleanskin Sheep Input'!I60 -> 0 | O223: 0 | AA223: Ewe lambs | AG223: =AG213 -> 0
C224: Rams | E224: =ROUND(AB244,0) -> 25 | G224: ='Cleanskin Sheep Input'!F61 -> 2 | I224: ='Cleanskin Sheep Input'!G61 -> 1 | K224: ='Cleanskin Sheep Input'!H61 -> 0 | M224: ='Cleanskin Sheep Input'!I61 -> 0 | O224: 2 | AA224: WETHERS | AB224: OPENING | AC224: NATURAL | AD224: PURCHASES | AE224: DEATHS | AF224: % sold | AG224: SALES | AH224: CLOSING
AA225: AGE | AB225: NUMBERS | AC225: INCREASE | AF225: culled | AH225: NUMBERS
AA227: 0-0.5yr | AC227: =AC202*AC205/2 -> 750 | AE227: =AB227*$AG$206 -> 0 | AF227: =IF(AG205=0.5,100%,0) -> 1 | AG227: =AC227*AF227 -> 750 | AH227: =AB227+AC227+AD227-AE227-AG227 -> 0
C228: TOTAL | E228: =SUM(E220:E227) -> 3275 | G228: =SUMPRODUCT($E$220:$E$227,G220:G227) -> 3300 | I228: =SUMPRODUCT($E$220:$E$227,I220:I227) -> 4775 | K228: =SUMPRODUCT($E$220:$E$227,K220:K227) -> 0 | M228: =SUMPRODUCT($E$220:$E$227,M220:M227) -> 0 | O228: =SUMPRODUCT($E$220:$E$227,O220:O227) -> 2750 | AA228: 0.5-1.5yr | AB228: =AH227 -> 0 | AE228: =AB228*$AG$206 -> 0 | AF228: =IF(AG205=1.5,100%,0) -> 0 | AG228: =(AB228-AE228)*AF228 -> 0 | AH228: =AB228+AC228+AD228-AE228-AG228 -> 0
C229: TOTAL VALUE | E229: =E228*G214 -> 630960.2817 | AA229: 1.5-2.5 | AB229: =AH228 -> 0 | AE229: =AB229*$AG$206 -> 0 | AF229: =IF(AG205=2.5,100%,0) -> 0 | AG229: =(AB229-AE229)*AF229 -> 0
AA230: Wth lambs | AB230: =AB227 -> 0 | AC230: =AC227 -> 750 | AD230: =AD227 -> 0 | AE230: 0 | AG230: =AG227 -> 750 | AH230: 0
AA231: Wth hgts | AB231: 0 | AC231: 0 | AD231: 0 | AE231: 0 | AG231: 0 | AH231: 0
AA232: Wethers | AB232: 0 | AC232: 0 | AD232: 0 | AE232: 0 | AG232: 0 | AH232: 0
AA233: d.s.e's | AB233: =AB231+AB232 -> 0
AA236: RAMS | AB236: OPENING | AC236: NATURAL | AD236: PURCHASES | AE236: DEATHS | AF236: % sold | AG236: SALES | AH236: CLOSING
AA237: AGE | AB237: NUMBERS | AC237: INCREASE | AF237: culled | AH237: NUMBERS
AA239: 0.5-1.5yr | AD239: =AB240/(1-AF239) -> 6.538387001 | AH239: =AB239+AC239+AD239-AE239-AG239 -> 6.538387001
AA240: 1.5-2.5yr | AB240: =IF(AG204=3,(AC202*AG202)/(1+(1-AG206)*(1-AF240)*(1+(1-AG206)*(1-AF241)*(1+(1-AG206)*(1-AF242)))),IF(AG204=4,(AC202*AG202)/(1+(1-AG206)*(1-AF240)*(1+(1-AG206)*(1-AF241)*(1+(1-AG206)*(1-AF242)*(1+(1-AG206)*(1-AF243))))),0)) -> 6.538387001 | AE240: =AB240*$AG$206 -> 0.19615161 | AF240: 0 | AG240: =(SUM(AB240:AD240)-AE240)*AF240 -> 0 | AH240: =AB240+AC240+AD240-AE240-AG240 -> 6.342235391
AA241: 2.5-3.5yr | AB241: =AH240 -> 6.342235391 | AE241: =AB241*$AG$206 -> 0.1902670617 | AF241: 0 | AG241: =(SUM(AB241:AD241)-AE241)*AF241 -> 0 | AH241: =AB241+AC241+AD241-AE241-AG241 -> 6.151968329
AA242: 3.5-4.5yr | AB242: =AH241 -> 6.151968329 | AE242: =AB242*$AG$206 -> 0.1845590499 | AF242: =IF(AG204=3,100%,0) -> 0 | AG242: =(SUM(AB242:AD242)-AE242)*AF242 -> 0 | AH242: =AB242+AC242+AD242-AE242-AG242 -> 5.967409279
AA243: 4.5-5.5yr | AB243: =AH242 -> 5.967409279 | AE243: =AB243*$AG$206 -> 0.1790222784 | AF243: =IF(AG204=4,100%,0) -> 1 | AG243: =AB243-AE243 -> 5.788387001 | AH243: =AB243+AC243+AD243-AE243-AG243 -> 0
G244: Hay Cost ($/T) | I244: Kg Fed per Week | K244: No of Weeks Feeding | M244: Total Cost ($) | AB244: =AB239+AB240+AB241+AB242+AB243 -> 25 | AD244: =AD239+AD240+AD241+AD242+AD243 -> 6.538387001 | AE244: =AE239+AE240+AE241+AE242+AE243 -> 0.75 | AG244: =AG239+AG240+AG241+AG242+AG243 -> 5.788387001 | AH244: =AH239+AH240+AH241+AH242+AH243 -> 25
C245: FEEDING | E245: Number | AA245: d.s.e's | AB245: =AB244*2 -> 50
C246: Ewes | E246: ='Cleanskin Sheep Input'!E69 -> 1000 | G246: ='Cleanskin Sheep Input'!F69 -> 260 | I246: ='Cleanskin Sheep Input'!G69 -> 2 | K246: ='Cleanskin Sheep Input'!H69 -> 10 | M246: =(E246*G246*I246*K246)/1000 -> 5200
C247: Weaner | E247: ='Cleanskin Sheep Input'!E70 -> 0 | G247: ='Cleanskin Sheep Input'!F70 -> 0 | I247: ='Cleanskin Sheep Input'!G70 -> 0 | K247: ='Cleanskin Sheep Input'!H70 -> 0 | M247: =(E247*G247*I247*K247)/1000 -> 0
C248: Ewe hoggets | E248: ='Cleanskin Sheep Input'!E71 -> 0 | G248: ='Cleanskin Sheep Input'!F71 -> 0 | I248: ='Cleanskin Sheep Input'!G71 -> 0 | K248: ='Cleanskin Sheep Input'!H71 -> 0 | M248: =(E248*G248*I248*K248)/1000 -> 0
C249: Lambs | E249: ='Cleanskin Sheep Input'!E72 -> 0 | G249: ='Cleanskin Sheep Input'!F72 -> 0 | I249: ='Cleanskin Sheep Input'!G72 -> 0 | K249: ='Cleanskin Sheep Input'!H72 -> 0 | M249: =(E249*G249*I249*K249)/1000 -> 0
C250: Rams | E250: ='Cleanskin Sheep Input'!E73 -> 0 | G250: ='Cleanskin Sheep Input'!F73 -> 0 | I250: ='Cleanskin Sheep Input'!G73 -> 0 | K250: ='Cleanskin Sheep Input'!H73 -> 0 | M250: =(E250*G250*I250*K250)/1000 -> 0
G251: Grain Cost ($/T) | I251: Kg Fed per Week | K251: No of Weeks Feeding | M251: Total Cost ($)
E252: Number
C253: Ewes | E253: ='Cleanskin Sheep Input'!E78 -> 1000 | G253: ='Cleanskin Sheep Input'!F78 -> 280 | I253: ='Cleanskin Sheep Input'!G78 -> 2.4 | K253: ='Cleanskin Sheep Input'!H78 -> 10 | M253: =(E253*G253*I253*K253)/1000 -> 6720
C254: Weaner | E254: ='Cleanskin Sheep Input'!E79 -> 750 | G254: ='Cleanskin Sheep Input'!F79 -> 450 | I254: ='Cleanskin Sheep Input'!G79 -> 1 | K254: ='Cleanskin Sheep Input'!H79 -> 10 | M254: =(E254*G254*I254*K254)/1000 -> 3375
C255: Ewe hoggets | E255: ='Cleanskin Sheep Input'!E80 -> 0 | G255: ='Cleanskin Sheep Input'!F80 -> 0 | I255: ='Cleanskin Sheep Input'!G80 -> 0 | K255: ='Cleanskin Sheep Input'!H80 -> 0 | M255: =(E255*G255*I255*K255)/1000 -> 0
C256: Lambs | E256: ='Cleanskin Sheep Input'!E81 -> 0 | G256: ='Cleanskin Sheep Input'!F81 -> 0 | I256: ='Cleanskin Sheep Input'!G81 -> 0 | K256: ='Cleanskin Sheep Input'!H81 -> 0 | M256: =(E256*G256*I256*K256)/1000 -> 0
C257: Rams | E257: ='Cleanskin Sheep Input'!E82 -> 0 | G257: ='Cleanskin Sheep Input'!F82 -> 0 | I257: ='Cleanskin Sheep Input'!G82 -> 0 | K257: ='Cleanskin Sheep Input'!H82 -> 0 | M257: =(E257*G257*I257*K257)/1000 -> 0
C258: TOTAL FEED COST | M258: =SUM(M246:M250,M253:M257) -> 15295
C263: GM SENSITIVITY | AB263: Water,Fuel,Other | AE263: =SUM(Q146:Q149) -> 11711.92056 | AF263: Lamb Costs | AG263: No: | AH263: per head
C264: Gross Margin/DSE | E264: Average Weaning % | AB264: Animal health | AE264: =((E220*G220+E224*G224+AB215*G221)*K90+(E220*I220+E224*I224+AB215*I221)*K91+(E220*K220+E224*K224+AB215*K221)*K93) -> 897.7075749
G265: 1.2 | I265: 1.35 | K265: 1.5 | M265: 1.65 | O265: 1.8 | Q265: 1.95 | AB265: Stock Purchase | AE265: =Q105 -> 12950 | AF265: Marking | AG265: =E199*G265 -> 1200 | AH265: =SUM(K76:K77) -> 1.58
E266: 165 | G266: =(($E$199*(G$265*100)*$E266/200+($E$199*(G$265*100)/200-$AB$215-$AE$214)*$G$212)*(1-$K$124)+SUM($I$210:$I$211)-$AE$273-($E$199*(G$265*100)*$AH$270/100)-($E$199*(G$265*100)/200-$AB$215-$AE$214)*$AC$285)/$E$197 -> 52.86851717 | I266: 61.85466263 | K266: 70.84080808 | M266: 79.82695354 | O266: 88.81309899 | Q266: 97.79924445 | AB266: Freight | AC266: sheep | AE266: =SUM(Q119:Q120) -> 840 | AF266: Animal health | AH266: =G223*K90+I223*K91+K223*K93 -> 0.952
E267: 170 | G267: 53.89397172 | I267: 63.00829899 | K267: 72.12262626 | M267: 81.23695354 | O267: 90.35128081 | Q267: 99.46560808 | AC267: Wool | AF267: Freight | AH267: =K122/2 -> 2
C268: Average Sheep Sale Price($/hd) | E268: 175 | G268: 54.91942626 | I268: 64.16193535 | K268: 73.40444445 | M268: 82.64695354 | O268: 91.88946263 | Q268: 101.1319717 | AB268: Commission on livestock sales | AE268: =SUM(I210:I211)*K124 -> 2250 | AF268: Yard Fees | AH268: =K125/2 -> 0.425
E269: 180 | G269: 55.94488081 | I269: 65.31557172 | K269: 74.68626263 | M269: 84.05695354 | O269: 93.42764445 | Q269: 102.7983354 | AB269: Yard fees | AE269: =SUM(E210:E211)*K125 -> 178.2858089 | AF269: Levies | AH269: =SUM(K127:K128)/2 -> 1.085
E270: 185 | G270: 56.97033535 | I270: 66.46920808 | K270: 75.96808081 | M270: 85.46695354 | O270: 94.96582626 | Q270: 104.464699 | AB270: Levies | AE270: =SUM(E210:E211)*K126 -> 41.9496021 | AF270: TOTAL | AH270: =SUM(AH265:AH269) -> 6.042
E271: 190 | G271: 57.9957899 | I271: 67.62284445 | K271: 77.24989899 | M271: 86.87695354 | O271: 96.50400808 | Q271: 106.1310626 | AB271: SASheep Industry | AE271: =SUM(E210:E211)*K128 -> 140.531167
E272: 195 | G272: 59.02124445 | I272: 68.77648081 | K272: 78.53171717 | M272: 88.28695354 | O272: 98.0421899 | Q272: 107.7974263 | AB272: Feed & other costs | AE272: =M253+M246+AB215*G254*I254*K254/1000 -> 12972.81831
E273: 200 | G273: 60.04669899 | I273: 69.93011717 | K273: 79.81353535 | M273: 89.69695354 | O273: 99.58037172 | Q273: 109.4637899 | AE273: =SUM(AE263:AE272) -> 41983.21302
E274: 205 | G274: 61.07215354 | I274: 71.08375354 | K274: 81.09535354 | M274: 91.10695354 | O274: 101.1185535 | Q274: 111.1301535
E275: 210 | G275: 62.09760808 | I275: 72.2373899 | K275: 82.37717172 | M275: 92.51695354 | O275: 102.6567354 | Q275: 112.7965172
E276: 215 | G276: 63.12306263 | I276: 73.39102626 | K276: 83.6589899 | M276: 93.92695354 | O276: 104.1949172 | Q276: 114.4628808
AC277: Sale Ewe Hog Cost
C279: FLOCK STRUCTURE | E279: This table shows the number of merino sheep in each age group at mating | AB279: Feed | AC279: =G254*K254/1000 -> 4.5
E280: Age Group | AC280: =G221*K90+I221*K91+K221*K92+M221*K93 -> 0.704
C281: Class of Sheep | E281: 0.5 y.o. | G281: 1.5 y.o. | I281: 2.5 y.o. | K281: 3.5 y.o. | M281: 4.5 y.o. | O281: 5.5 y.o. | Q281: 6.5 y.o. | AC281: =K121 -> 4
C282: Ewes | E282: =$AB214 -> 750 | G282: =$AB215 -> 233.9596235 | I282: =$AB216 -> 215.5937931 | K282: =$AB217 -> 198.6696803 | M282: =$AB218 -> 183.0741104 | O282: =$AB219 -> 168.7027927 | Q282: 0 | AC282: =K125 -> 0.85
C283: Wethers | E283: =$AB228 -> 0 | G283: =$AB229 -> 0 | I283: 0 | K283: 0 | M283: 0 | O283: 0 | Q283: 0 | AC283: =K126 -> 0.2
C284: Rams | G284: =$AB240 -> 6.538387001 | I284: =$AB241 -> 6.342235391 | K284: =$AB242 -> 6.151968329 | M284: =$AB243 -> 5.967409279 | O284: 0 | Q284: 0 | AC284: =K128 -> 0.67
AB285: Total | AC285: =SUM(AC279:AC284) -> 10.924

Sheet Beef Input (hidden)
C2: ="BEEF GROSS MARGIN - "&TEXT(m_year,"0000") -> BEEF GROSS MARGIN - 2020
C4: GENERAL INFORMATION
C5: Cells with yellow highlight can be changed. No allowance has been made for pasture expenses such as seed, fertiliser and chemicals. Refer to pasture gross margins in the “Cropping Gross Margin Plan” for annual and perennial pasture costs. Use the livestock gross margin per DSE as income for the pasture gross margin.
C7: Breeding Cow | E7: 14.5 | F7: DSE
C8: Calf Weaning | E8: 0.9
C9: Herd Deaths | E9: 0.03
C10: Cows c.f.a | E10: 10 | F10: years old
C11: Carry over calf | E11: 8 | F11: DSE
C12: Weaned @ | E12: 8 | F12: months
C13: Heifers mated @ | E13: 15 | F13: months
C14: Stocking rate | E14: 5 | F14: DSE/ha
C15: Cow breeding herd | E15: 100
C16: Bull Percentage | E16: 0.03
C17: Vealers bought for | E17: 896
C18: sold for | E18: 2000
C19: after | E19: 3 | F19: years
C20: carryover to heavier weights | E20: 0.5 | F20: including heifer replacements
C21: months extra carry over | E21: 6
C22: Drench cows | E22: 2 | F22: x
C23: Drench calves | E23: 1 | F23: x
C24: Bulls bought for | E24: 6000
C25: Supplementary Feed
C26: Hay | E26: 68 | F26: tonne
C27: Grain | E27: 0 | F27: tonne

Sheet Beef (hidden)
C1: BEEF
C2: =UPPER(Var_Animal)&" GROSS MARGIN - "&TEXT(m_year,"0000") -> BEEF GROSS MARGIN - 2020
C4: ASSUMPTIONS | E4: (Breeding young cattle for local trade, grass fattened)
C7: Breeding Cow | E7: ='Beef Input'!$E$7 -> 14.5 | G7: DSE | O7: Cow breeding herd | Q7: ='Beef Input'!E15 -> 100
C8: Calf Weaning | E8: ='Beef Input'!E8 -> 0.9 | O8: Cows replaced per year | Q8: =(Q7/E10)+(Q7*E9) -> 13
C9: Herd Deaths | E9: ='Beef Input'!E9 -> 0.03 | O9: Bull Percentage | Q9: ='Beef Input'!E16 -> 0.03
C10: Cows c.f.a | E10: ='Beef Input'!E10 -> 10 | G10: years old | O10: Bulls bought for | Q10: ='Beef Input'!E17 -> 896
C11: Uses | E11: =Q8 -> 13 | G11: heifers as replacements | O11: sold for | Q11: ='Beef Input'!E18 -> 2000
C12: Carry over calf | E12: ='Beef Input'!E11 -> 8 | G12: DSE | O12: after | Q12: ='Beef Input'!E19 -> 3 | R12: years
C13: Weaned @ | E13: ='Beef Input'!E12 -> 8 | G13: months | O13: carryover to heavier weights | Q13: ='Beef Input'!E20 -> 0.5
C14: Heifers mated @ | E14: ='Beef Input'!E13 -> 15 | G14: months | O14: months extra carry over | Q14: ='Beef Input'!E21 -> 6
C15: Stocking rate | E15: ='Beef Input'!E14 -> 5 | G15: DSE/ha | O15: Herd DSE | Q15: =(Q7*E7)+(Q7*Q9*20)+(E11*E12*((E14-E13)/12))+(E11*E7*(24-E14)/12)+(E36*E12) -> 1960.041667
C16: Area required | E16: =Q15/E15 -> 392.0083333 | G16: hectares | O16: Drench cows | Q16: ='Beef Input'!E22 -> 2
O17: Drench calves | Q17: ='Beef Input'!E23 -> 1
C32: INCOME | Q32: $
I34: kg liveweight | M34: /kg L/W
B35: Stock Sales | D35: vealers | E35: =(1-Q13)*(Q7*E8) -> 45 | G35: Reset Rate> | H35: =GM_INFO!B120 | I35: =GM_INFO!B120 -> 280 | K35: Reset Rate> | L35: =GM_INFO!D120 | M35: =GM_INFO!D120 -> 3.2 | Q35: =M35*I35*E35 -> 40320
D36: yearlings | E36: =ROUND(((Q7*E8)-E35-E11)*(1-E9),0) -> 31 | G36: Reset Rate> | H36: =GM_INFO!B121 | I36: =GM_INFO!B121 -> 400 | K36: Reset Rate> | L36: =GM_INFO!D121 | M36: =GM_INFO!D121 -> 2.95 | Q36: =M36*I36*E36 -> 36580
B37: Culls | D37: cows | E37: =Q8*(1-E9)^E10 -> 9.58651365 | G37: Reset Rate> | H37: =GM_INFO!B122 | I37: =GM_INFO!B122 -> 550 | K37: Reset Rate> | L37: =GM_INFO!D122 | M37: =GM_INFO!D122 -> 2.45 | Q37: =M37*I37*E37 -> 12917.82714
D38: bull | E38: =Q7*Q9/Q12 -> 1 | Q38: ='Beef Input'!E18*E38 -> 2000
C41: Gross Income | Q41: =SUM(Q35:Q38) -> 91817.82714
C46: VARIABLE COSTS
C75: Bull Purchases | K75: Rate
C76: No. of Bulls | E76: =E38 -> 1 | G76: bulls | I76: Reset Rate> | J76: ='Beef Input'!E24 | K76: ='Beef Input'!E24 -> 6000 | M76: total | Q76: =K76*ROUND(E76,0) -> 6000
C89: Veterinary & Medicines
C90: Drench - cows 2x calves 1x | E90: =(Q7*Q16)+Q17*(Q7*E8) -> 290 | G90: head | I90: Reset Rate> | J90: =GM_INFO!d62 | K90: =GM_INFO!D62 -> 4.375 | M90: /head | Q90: =K90*ROUND(E90,0) -> 1268.75
C91: Ear Tags | E91: =Q7*E8 -> 90 | G91: head | I91: Reset Rate> | J91: =GM_INFO!d73 | K91: =GM_INFO!D73 -> 4.75 | M91: /tag | Q91: =K91*ROUND(E91,0) -> 427.5
C92: Lice Treatments | E92: =Q7 -> 100 | G92: head | I92: Reset Rate> | J92: =GM_INFO!d62 | K92: =GM_INFO!D62 -> 4.375 | M92: /dose | Q92: =K92*ROUND(E92,0) -> 437.5
C93: Vaccine (5 in 1) | E93: =Q7*E8*2 -> 180 | G93: head | I93: Reset Rate> | J93: =GM_INFO!d64 | K93: =GM_INFO!D64 -> 0.76 | M93: /dose | Q93: =K93*ROUND(E93,0) -> 136.8
C117: Sale Costs and other
C119: Insurance | E119: =(Q7*800)+(3*2500)+(Q7*E8*350) -> 119000 | I119: Reset Rate> | J119: =GM_INFO!B107 | K119: =GM_INFO!B107 -> 2 | M119: /$1000 | Q119: =K119*ROUND(E119,0)/1000 -> 238
C120: Water | E120: =Q15 -> 1960.041667 | G120: dse's | I120: Reset Rate> | J120: =GM_INFO!i79 | K120: =GM_INFO!I79 -> 2.5 | Q120: =K120*ROUND(E120,0) -> 4900
C121: Veh Fuel, R&M | E121: =Q15 -> 1960.041667 | G121: dse's | I121: Reset Rate> | J121: =GM_INFO!i80 | K121: =GM_INFO!I80 -> 1 | Q121: =K121*ROUND(E121,0) -> 1960
C122: Other | E122: =Q15 -> 1960.041667 | G122: dse's | I122: Reset Rate> | J122: =GM_INFO!i81 | K122: =GM_INFO!I81 -> 0.5 | Q122: =K122*ROUND(E122,0) -> 980
C123: Transport: | E123: =SUM(E35:E38) -> 86.58651365 | G123: head | I123: Reset Rate> | J123: =GM_INFO!d76 | K123: =GM_INFO!D76 -> 30 | M123: /head | Q123: =K123*E123 -> 2597.595409
C125: Commission | I125: Reset Rate> | J125: =GM_INFO!C48 | K125: =GM_INFO!C48 -> 0.06 | Q125: =Q41*K125 -> 5509.069629
C126: Levies | I126: Reset Rate> | J126: =GM_INFO!d77 | K126: =GM_INFO!D77 -> 5 | M126: /head | Q126: =K126*SUM(E35:E38) -> 432.9325682
C143: Supplementary Feed
C145: Grain
C146: Hay | E146: ='Beef Input'!E26 -> 68 | G146: tonne | I146: Reset Rate> | J146: =GM_INFO!d82 | K146: =GM_INFO!D82 -> 260 | M146: /tonne | Q146: =K146*E146 -> 17680
C147: Grain | E147: ='Beef Input'!E27 -> 0 | G147: tonne | I147: Reset Rate> | J147: =GM_INFO!d83 | K147: =GM_INFO!D83 -> 320 | M147: /tonne | Q147: =K147*E147 -> 0
C148: Blocks/ Mineral Mix | E148: =Q7 -> 100 | G148: @ | I148: Reset Rate> | J148: =GM_INFO!d85 | K148: =GM_INFO!D85 -> 5 | M148: /head | Q148: =K148*E148 -> 500
C170: TOTAL VARIABLE COSTS | Q170: =SUM(Q48:Q166) -> 43068.14761
C172: GROSS MARGIN TOTAL | Q172: =Q41-Q170 -> 48749.67954
C174: GROSS MARGIN/DSE | Q174: =$Q$172/Q15 -> 24.87175674
C176: GROSS MARGIN/COW | Q176: =$Q$172/Q7 -> 487.4967954
C178: GROSS MARGIN/HA | Q178: =$Q$172/E16 -> 124.3587837
B203: =VLOOKUP(r[0]c3&"No Ops",CHOOSE({1,2},tbl_ops[Name]&tbl_ops[Category],INDIRECT("tbl_ops["&var_crop&"]")),2,0)
B204: =VLOOKUP(r[0]c3&"No Ops",CHOOSE({1,2},tbl_ops[Name]&tbl_ops[Category],INDIRECT("tbl_ops["&var_crop&"]")),2,0)
B205: =VLOOKUP(r[0]c3&"No Ops",CHOOSE({1,2},tbl_ops[Name]&tbl_ops[Category],INDIRECT("tbl_ops["&var_crop&"]")),2,0)
B206: =VLOOKUP(r[0]c3&"No Ops",CHOOSE({1,2},tbl_ops[Name]&tbl_ops[Category],INDIRECT("tbl_ops["&var_crop&"]")),2,0)
B208: =VLOOKUP(r[0]c3&var_rain,CHOOSE({1,2},tbl_ops[Name]&tbl_ops[Rainfall],INDIRECT("tbl_ops["&var_crop&"]")),2,0)
B209: =VLOOKUP(r[0]c3&var_rain,CHOOSE({1,2},tbl_ops[Name]&tbl_ops[Rainfall],INDIRECT("tbl_ops["&var_crop&"]")),2,0)
B210: =VLOOKUP(r[0]c3&var_rain,CHOOSE({1,2},tbl_ops[Name]&tbl_ops[Rainfall],INDIRECT("tbl_ops["&var_crop&"]")),2,0)
B211: =VLOOKUP(r[0]c3&var_rain,CHOOSE({1,2},tbl_ops[Name]&tbl_ops[Rainfall],INDIRECT("tbl_ops["&var_crop&"]")),2,0)
C259: GM SENSITIVITY
C260: Gross Margin per Cow | E260: ($/kg Liveweight(yearlings/steers))
G261: 2.7 | I261: 2.9 | K261: 3.1 | M261: 3.3 | O261: 3.5
E262: 0.6 | G262: =(((($Q$7*$E262*$Q$13-$E$11-1)*G$261*$I$36)+(($Q$7*$E262)*(1-$Q$13)*G$261*$I$35)+($E$37*$I$37*$M$37)+$Q$38)-$Q$170)/$Q$7 -> 118.0967954 | I262: =(((($Q$7*$E262*$Q$13-$E$11-1)*I$261*$I$36)+(($Q$7*$E262)*(1-$Q$13)*I$261*$I$35)+($E$37*$I$37*$M$37)+$Q$38)-$Q$170)/$Q$7 -> 147.6967954 | K262: =(((($Q$7*$E262*$Q$13-$E$11-1)*K$261*$I$36)+(($Q$7*$E262)*(1-$Q$13)*K$261*$I$35)+($E$37*$I$37*$M$37)+$Q$38)-$Q$170)/$Q$7 -> 177.2967954 | M262: =(((($Q$7*$E262*$Q$13-$E$11-1)*M$261*$I$36)+(($Q$7*$E262)*(1-$Q$13)*M$261*$I$35)+($E$37*$I$37*$M$37)+$Q$38)-$Q$170)/$Q$7 -> 206.8967954 | O262: =(((($Q$7*$E262*$Q$13-$E$11-1)*O$261*$I$36)+(($Q$7*$E262)*(1-$Q$13)*O$261*$I$35)+($E$37*$I$37*$M$37)+$Q$38)-$Q$170)/$Q$7 -> 236.4967954
E263: 0.65 | G263: =(((($Q$7*$E263*$Q$13-$E$11-1)*G$261*$I$36)+(($Q$7*$E263)*(1-$Q$13)*G$261*$I$35)+($E$37*$I$37*$M$37)+$Q$38)-$Q$170)/$Q$7 -> 163.9967954 | I263: =(((($Q$7*$E263*$Q$13-$E$11-1)*I$261*$I$36)+(($Q$7*$E263)*(1-$Q$13)*I$261*$I$35)+($E$37*$I$37*$M$37)+$Q$38)-$Q$170)/$Q$7 -> 196.9967954 | K263: =(((($Q$7*$E263*$Q$13-$E$11-1)*K$261*$I$36)+(($Q$7*$E263)*(1-$Q$13)*K$261*$I$35)+($E$37*$I$37*$M$37)+$Q$38)-$Q$170)/$Q$7 -> 229.9967954 | M263: =(((($Q$7*$E263*$Q$13-$E$11-1)*M$261*$I$36)+(($Q$7*$E263)*(1-$Q$13)*M$261*$I$35)+($E$37*$I$37*$M$37)+$Q$38)-$Q$170)/$Q$7 -> 262.9967954 | O263: =(((($Q$7*$E263*$Q$13-$E$11-1)*O$261*$I$36)+(($Q$7*$E263)*(1-$Q$13)*O$261*$I$35)+($E$37*$I$37*$M$37)+$Q$38)-$Q$170)/$Q$7 -> 295.9967954
C264: Weaning % | E264: 0.7 | G264: 209.8967954 | I264: 246.2967954 | K264: 282.6967954 | M264: 319.0967954 | O264: 355.4967954
E265: 0.75 | G265: 255.7967954 | I265: 295.5967954 | K265: 335.3967954 | M265: 375.1967954 | O265: 414.9967954
E266: 0.8 | G266: 301.6967954 | I266: 344.8967954 | K266: 388.0967954 | M266: 431.2967954 | O266: 474.4967954
E267: 0.85 | G267: 347.5967954 | I267: 394.1967954 | K267: 440.7967954 | M267: 487.3967954 | O267: 533.9967954
E268: 0.9 | G268: 393.4967954 | I268: 443.4967954 | K268: 493.4967954 | M268: 543.4967954 | O268: 593.4967954
E269: 0.95 | G269: 439.3967954 | I269: 492.7967954 | K269: 546.1967954 | M269: 599.5967954 | O269: 652.9967954
E270: 1 | G270: 485.2967954 | I270: 542.0967954 | K270: 598.8967954 | M270: 655.6967954 | O270: 712.4967954
C275: GM SENSITIVITY
C276: Gross Margin per DSE | E276: ($/kg Liveweight(yearlings/steers))
G277: 2.7 | I277: 2.9 | K277: 3.1 | M277: 3.3 | O277: 3.5
E278: 0.6 | G278: =(((($Q$7*$E278*$Q$13-$E$11-1)*G$277*$I$36)+(($Q$7*$E278)*(1-$Q$13)*G$277*$I$35)+($E$37*$I$37*$M$37)+$Q$38)-$Q$170)/$Q$15 -> 6.025218615 | I278: =(((($Q$7*$E278*$Q$13-$E$11-1)*I$277*$I$36)+(($Q$7*$E278)*(1-$Q$13)*I$277*$I$35)+($E$37*$I$37*$M$37)+$Q$38)-$Q$170)/$Q$15 -> 7.535390593 | K278: =(((($Q$7*$E278*$Q$13-$E$11-1)*K$277*$I$36)+(($Q$7*$E278)*(1-$Q$13)*K$277*$I$35)+($E$37*$I$37*$M$37)+$Q$38)-$Q$170)/$Q$15 -> 9.04556257 | M278: =(((($Q$7*$E278*$Q$13-$E$11-1)*M$277*$I$36)+(($Q$7*$E278)*(1-$Q$13)*M$277*$I$35)+($E$37*$I$37*$M$37)+$Q$38)-$Q$170)/$Q$15 -> 10.55573455 | O278: =(((($Q$7*$E278*$Q$13-$E$11-1)*O$277*$I$36)+(($Q$7*$E278)*(1-$Q$13)*O$277*$I$35)+($E$37*$I$37*$M$37)+$Q$38)-$Q$170)/$Q$15 -> 12.06590653
E279: 0.65 | G279: =(((($Q$7*$E279*$Q$13-$E$11-1)*G$277*$I$36)+(($Q$7*$E279)*(1-$Q$13)*G$277*$I$35)+($E$37*$I$37*$M$37)+$Q$38)-$Q$170)/$Q$15 -> 8.367005567 | I279: =(((($Q$7*$E279*$Q$13-$E$11-1)*I$277*$I$36)+(($Q$7*$E279)*(1-$Q$13)*I$277*$I$35)+($E$37*$I$37*$M$37)+$Q$38)-$Q$170)/$Q$15 -> 10.05064324 | K279: =(((($Q$7*$E279*$Q$13-$E$11-1)*K$277*$I$36)+(($Q$7*$E279)*(1-$Q$13)*K$277*$I$35)+($E$37*$I$37*$M$37)+$Q$38)-$Q$170)/$Q$15 -> 11.73428092 | M279: =(((($Q$7*$E279*$Q$13-$E$11-1)*M$277*$I$36)+(($Q$7*$E279)*(1-$Q$13)*M$277*$I$35)+($E$37*$I$37*$M$37)+$Q$38)-$Q$170)/$Q$15 -> 13.4179186 | O279: =(((($Q$7*$E279*$Q$13-$E$11-1)*O$277*$I$36)+(($Q$7*$E279)*(1-$Q$13)*O$277*$I$35)+($E$37*$I$37*$M$37)+$Q$38)-$Q$170)/$Q$15 -> 15.10155628
C280: Weaning % | E280: 0.7 | G280: 10.70879252 | I280: 12.5658959 | K280: 14.42299927 | M280: 16.28010265 | O280: 18.13720603
E281: 0.75 | G281: 13.05057947 | I281: 15.08114855 | K281: 17.11171763 | M281: 19.1422867 | O281: 21.17285578
E282: 0.8 | G282: 15.39236642 | I282: 17.5964012 | K282: 19.80043598 | M282: 22.00447076 | O282: 24.20850554
E283: 0.85 | G283: 17.73415337 | I283: 20.11165385 | K283: 22.48915433 | M283: 24.86665481 | O283: 27.24415529
E284: 0.9 | G284: 20.07594033 | I284: 22.6269065 | K284: 25.17787268 | M284: 27.72883886 | O284: 30.27980504
E285: 0.95 | G285: 22.41772728 | I285: 25.14215916 | K285: 27.86659104 | M285: 30.59102291 | O285: 33.31545479
E286: 1 | G286: 24.75951423 | I286: 27.65741181 | K286: 30.55530939 | M286: 33.45320697 | O286: 36.35110454

Sheet Beef Trading Input (hidden)
C2: ="BEEF TRADING GROSS MARGIN - "&TEXT(m_year,"0000") -> BEEF TRADING GROSS MARGIN - 2020
C4: GENERAL INFORMATION
C5: Cells with yellow highlight can be changed. No allowance has been made for pasture expenses such as seed, fertiliser and chemicals. Refer to pasture gross margins in the “Cropping Gross Margin Plan” for annual and perennial pasture costs. Use the livestock gross margin per DSE as income for the pasture gross margin.
C7: Vealers | E7: 8 | F7: DSE
C8: Yearlings | E8: 12 | F8: DSE
C9: Herd Deaths | E9: 0.02
C10: Purchases-Vealers | E10: 200
C14: Stocking rate | E14: 10 | F14: DSE/ha
C18: Stock Sales-vealers | E18: 0
C20: Feeds | E20: 35 | F20: kg/DSE hay equivalent supplement
C22: Drench vealers | E22: 1 | F22: x
C25: Supplementary Feed
C27: Grain | E27: 0 | F27: tonne

Sheet Beef Trading (hidden)
C1: BEEF TRADING
C2: =UPPER(Var_Animal)&" GROSS MARGIN - "&TEXT(m_year,"0000") -> BEEF TRADING GROSS MARGIN - 2020
C4: ASSUMPTIONS | E4: (Finishing young cattle for local trade, grass fattened)
C9: Herd Deaths | E9: ='Beef Trading Input'!E9 -> 0.02
C10: Vealers | E10: ='Beef Trading Input'!E7 -> 8 | G10: DSE
C11: Yearlings | E11: ='Beef Trading Input'!E8 -> 12 | G11: DSE
C13: Herd DSE | E13: =AVERAGE(E10:E11)*E36 -> 1960
C14: Drench vealers | E14: ='Beef Trading Input'!E22 -> 1
C15: Stocking rate | E15: ='Beef Trading Input'!E14 -> 10 | G15: DSE/ha
C16: Area required | E16: =E13/E15 -> 196 | G16: hectares
C17: Feeds | E17: ='Beef Trading Input'!E20 -> 35 | G17: kg/DSE hay equivalent supplement
C32: INCOME | Q32: $
I34: kg liveweight | M34: /kg L/W
B35: Stock Sales | D35: vealers | E35: ='Beef Trading Input'!E18 -> 0 | G35: Reset Rate> | H35: =GM_INFO!B125 | I35: =GM_INFO!B125 -> 280 | K35: Reset Rate> | L35: =GM_INFO!D120 | M35: =GM_INFO!D120 -> 3.2 | Q35: =M35*I35*E35 -> 0
D36: yearlings | E36: =ROUND(E76-(E76*E9),3)-E35 -> 196 | G36: Reset Rate> | H36: =GM_INFO!B126 | I36: =GM_INFO!B126 -> 420 | K36: Reset Rate> | L36: =GM_INFO!D121 | M36: =GM_INFO!D121 -> 2.95 | Q36: =M36*I36*E36 -> 242844
G37: Reset Rate> | H37: =GM_INFO!B122 | K37: Reset Rate> | L37: =GM_INFO!D122 | Q37: =M37*I37*E37 -> 0
Q38: ='Beef Trading Input'!E18*E38 -> 0
C41: Gross Income | Q41: =SUM(Q35:Q38) -> 242844
C46: VARIABLE COSTS
C75: Purchases | K75: Rate
C76: Vealers | E76: ='Beef Trading Input'!E10 -> 200 | I76: Reset Rate> | J76: ='Beef Input'!E17 | K76: ='Beef Input'!E17 -> 896 | M76: head | Q76: =K76*ROUND(E76,0) -> 179200
C77: Transport | E77: ='Beef Trading Input'!E10 -> 200 | I77: Reset Rate> | J77: =GM_INFO!B117 | K77: =GM_INFO!B117 -> 30 | M77: head | Q77: =K77*ROUND(E77,0) -> 6000
C89: Veterinary & Medicines
C90: Drench - vealers 1x | E90: =E76 -> 200 | G90: head | I90: Reset Rate> | J90: =GM_INFO!d62 | K90: =GM_INFO!D62 -> 4.375 | M90: /head | Q90: =K90*ROUND(E90,0) -> 875
C91: Ear Tags NLIS | E91: 0 | G91: head | I91: Reset Rate> | J91: =GM_INFO!d73 | K91: =GM_INFO!D73 -> 4.75 | M91: /tag | Q91: =K91*ROUND(E91,0) -> 0
C92: Lice Treatments | E92: =E76 -> 200 | G92: head | I92: Reset Rate> | J92: =GM_INFO!d62 | K92: =GM_INFO!D62 -> 4.375 | M92: /dose | Q92: =K92*ROUND(E92,0) -> 875
C93: Vaccine (5 in 1) | E93: =E76 -> 200 | G93: head | I93: Reset Rate> | J93: =GM_INFO!d64 | K93: =GM_INFO!D64 -> 0.76 | M93: /dose | Q93: =K93*ROUND(E93,0) -> 152
C117: Sale Costs and other
C119: Insurance | E119: =Q76 -> 179200 | I119: Reset Rate> | J119: =GM_INFO!B107 | K119: =GM_INFO!B107 -> 2 | M119: /$1000 | Q119: =K119*ROUND(E119,0)/1000 -> 358.4
C120: Water | E120: =E13 -> 1960 | G120: dse's | I120: Reset Rate> | J120: =GM_INFO!j79 | K120: =GM_INFO!J79 -> 1.5 | Q120: =K120*ROUND(E120,0) -> 2940
C121: Veh Fuel, R&M | E121: =E13 -> 1960 | G121: dse's | I121: Reset Rate> | J121: =GM_INFO!j80 | K121: =GM_INFO!J80 -> 1 | Q121: =K121*ROUND(E121,0) -> 1960
C122: Other | E122: =E13 -> 1960 | G122: dse's | I122: Reset Rate> | J122: =GM_INFO!j81 | K122: =GM_INFO!J81 -> 0.5 | Q122: =K122*ROUND(E122,0) -> 980
C123: Transport: | E123: =SUM(E35:E38) -> 196 | G123: head | I123: Reset Rate> | J123: =GM_INFO!d76 | K123: =GM_INFO!D76 -> 30 | M123: /head | Q123: =K123*E123 -> 5880
C125: Commission | I125: Reset Rate> | J125: =GM_INFO!C48 | K125: =GM_INFO!C48 -> 0.06 | Q125: =Q41*K125 -> 14570.64
C126: Levies | I126: Reset Rate> | J126: =GM_INFO!d77 | K126: =GM_INFO!D77 -> 5 | M126: /head | Q126: =K126*SUM(E35:E38) -> 980
C143: Supplementary Feed
C145: Grain
C146: Hay | E146: =(E17*E13)/1000 -> 68.6 | G146: tonne | I146: Reset Rate> | J146: =GM_INFO!d82 | K146: =GM_INFO!D82 -> 260 | M146: /tonne | Q146: =K146*E146 -> 17836
C147: Grain | E147: ='Beef Trading Input'!E27 -> 0 | G147: tonne | I147: Reset Rate> | J147: =GM_INFO!d83 | K147: =GM_INFO!D83 -> 320 | M147: /tonne | Q147: =K147*E147 -> 0
C148: Blocks/ Mineral Mix | E148: =Q7 -> 0 | G148: @ | I148: Reset Rate> | J148: =GM_INFO!d85 | K148: =GM_INFO!D85 -> 5 | M148: /head | Q148: =K148*E148 -> 0
C170: TOTAL VARIABLE COSTS | Q170: =SUM(Q48:Q166) -> 232607.04
C172: GROSS MARGIN TOTAL | Q172: =Q41-Q170 -> 10236.96
C174: GROSS MARGIN/DSE | Q174: =Q172/E13 -> 5.222938776
C178: GROSS MARGIN/HA | Q178: =Q172/E16 -> 52.22938776
B203: =VLOOKUP(r[0]c3&"No Ops",CHOOSE({1,2},tbl_ops[Name]&tbl_ops[Category],INDIRECT("tbl_ops["&var_crop&"]")),2,0)
B204: =VLOOKUP(r[0]c3&"No Ops",CHOOSE({1,2},tbl_ops[Name]&tbl_ops[Category],INDIRECT("tbl_ops["&var_crop&"]")),2,0)
B205: =VLOOKUP(r[0]c3&"No Ops",CHOOSE({1,2},tbl_ops[Name]&tbl_ops[Category],INDIRECT("tbl_ops["&var_crop&"]")),2,0)
B206: =VLOOKUP(r[0]c3&"No Ops",CHOOSE({1,2},tbl_ops[Name]&tbl_ops[Category],INDIRECT("tbl_ops["&var_crop&"]")),2,0)
B208: =VLOOKUP(r[0]c3&var_rain,CHOOSE({1,2},tbl_ops[Name]&tbl_ops[Rainfall],INDIRECT("tbl_ops["&var_crop&"]")),2,0)
B209: =VLOOKUP(r[0]c3&var_rain,CHOOSE({1,2},tbl_ops[Name]&tbl_ops[Rainfall],INDIRECT("tbl_ops["&var_crop&"]")),2,0)
B210: =VLOOKUP(r[0]c3&var_rain,CHOOSE({1,2},tbl_ops[Name]&tbl_ops[Rainfall],INDIRECT("tbl_ops["&var_crop&"]")),2,0)
B211: =VLOOKUP(r[0]c3&var_rain,CHOOSE({1,2},tbl_ops[Name]&tbl_ops[Rainfall],INDIRECT("tbl_ops["&var_crop&"]")),2,0)
C275: GM SENSITIVITY
C276: Gross Margin per DSE | E276: ($/kg Liveweight(yearlings/steers))
G277: 2.6 | I277: 2.8 | K277: 2.95 | M277: 3.2 | O277: 3.4
E278: 2.6 | G278: =(((((G$277*$I$36)*($E$36/$E$76)-($I$35*$E278))/10-(SUM($Q$77:$Q$166)/$E$13)))) -> 6.967510204 | I278: 15.1995102 | K278: 21.3735102 | M278: 31.6635102 | O278: 39.8955102
E279: 2.7 | G279: 4.167510204 | I279: 12.3995102 | K279: 18.5735102 | M279: 28.8635102 | O279: 37.0955102
C280: $/kg Liveweight Purchases (Vealers) | E280: 2.8 | G280: 1.367510204 | I280: 9.599510204 | K280: 15.7735102 | M280: 26.0635102 | O280: 34.2955102
E281: 2.9 | G281: -1.432489796 | I281: 6.799510204 | K281: 12.9735102 | M281: 23.2635102 | O281: 31.4955102
E282: 3 | G282: -4.232489796 | I282: 3.999510204 | K282: 10.1735102 | M282: 20.4635102 | O282: 28.6955102
E283: 3.1 | G283: -7.032489796 | I283: 1.199510204 | K283: 7.373510204 | M283: 17.6635102 | O283: 25.8955102
E284: 3.2 | G284: -9.832489796 | I284: -1.600489796 | K284: 4.573510204 | M284: 14.8635102 | O284: 23.0955102
E285: 3.3 | G285: -12.6324898 | I285: -4.400489796 | K285: 1.773510204 | M285: 12.0635102 | O285: 20.2955102
E286: 3.4 | G286: -15.4324898 | I286: -7.200489796 | K286: -1.026489796 | M286: 9.263510204 | O286: 17.4955102

Sheet Beef Feed Lot Input (hidden)
C2: ="BEEF FEED LOT GROSS MARGIN - "&TEXT(m_year,"0000") -> BEEF FEED LOT GROSS MARGIN - 2020
C4: GENERAL INFORMATION
C5: This sheet not used. Please enter all data in the Beef Feed Lot sheet

Sheet Beef Feed Lot (hidden)
C1: BEEF FEED LOT
C2: =UPPER(Var_Animal)&" GROSS MARGIN - "&TEXT(m_year,"0000") -> BEEF FEED LOT GROSS MARGIN - 2020
C4: ASSUMPTIONS | E4: ('Local supermarket, 210kg HSCW Carcase, AUSMEAT Fat Score 3-4)
C8: Steer Costs:
C9: Steer purchase | E9: =I9*M9 -> 744 | G9: for | I9: 240 | K9: kg@ | M9: 3.1 | O9: /kg liveweight
C10: Transport In | E10: 30 | G10: /head | M10: Average weight gain | O10: 1.8 | Q10: kg/hd/day
C11: Est. dressing % | E11: 0.55 | M11: Carcase weight specification | O11: =ROUND((E11*O12),0) -> 230 | Q11: kg HSCW
M12: Final liveweight in lot | O12: 418 | Q12: kg
M13: Avge liveweight in lot | O13: 329 | Q13: kg
M14: Est. time on feed | O14: 100 | Q14: days
C15: Feed Costs: | M15: Avge daily Feed intake | O15: =O13*0.035 -> 11.515 | Q15: kg
C16: Total feed consumed | G16: =ROUNDDOWN(O14*O15,0) -> 1151 | I16: kg | M16: (3.5% of Liveweight)
C17: Feed Wastage | E17: 0.05 | G17: =G16*E17 -> 57.55 | I17: kg | M17: Death Rate | O17: 0.01
C18: Feed cost per tonne | G18: 300 | I18: without premix / supplement
C32: INCOME | Q32: $
C35: Finished steers | E35: 0.97 | G35: % Steer @ | H35: =GM_INFO!B125 | I35: =O11 -> 230 | K35: kg carcass @ | L35: =GM_INFO!D120 | M35: 6.1 | O35: /kg HSCW | Q35: =M35*I35*E35 -> 1360.91
C36: Poor performers sold at 30 days | E36: =SUM(1,-E35,-E37) -> 0.02 | G36: % Steer @ | H36: =GM_INFO!B126 | I36: 240 | K36: kg liveweight | L36: =GM_INFO!D121 | M36: 3.2 | O36: /kg LVWT | Q36: =M36*I36*E36 -> 15.36
C37: Deaths | E37: =O17 -> 0.01 | G37: % Steer @ | H37: =GM_INFO!B122 | I37: 0 | L37: =GM_INFO!D122 | M37: 0 | Q37: 0
Q38: ='Beef Feed Lot Input'!E18*E38 -> 0
D39: TOTAL (must be 100%) | E39: =SUM(E35:E38) -> 1
C41: Gross Income | Q41: =SUM(Q35:Q38) -> 1376.27
C46: VARIABLE COSTS
C75: Purchases | K75: Rate
C76: Steer purchase | E76: 1 | G76: head | K76: 744 | M76: /head | Q76: =K76*ROUND(E76,0) -> 744
C77: Feeding Out & Feed
C78: Feed purchased | E78: =(E35*(G16+G17)+(E36*(G16+G17)*30/O14)) -> 1179.5448 | G78: kg | K78: =G18 -> 300 | M78: /tonne | Q78: =E78*K78/1000 -> 353.86344
C79: Premix cost per tonne mixed feed | E79: =E78 -> 1179.5448 | G79: kg | I79: Reset Rate> | J79: =GM_INFO!I68 | K79: =GM_INFO!I68 -> 50 | M79: /tonne | Q79: =E79*K79/1000 -> 58.97724
C80: Milling costs + Labour | E80: 1 | I80: Reset Rate> | J80: =GM_INFO!I69 | K80: =GM_INFO!I69 -> 26 | M80: /head | Q80: 26
C81: Water | E81: 1 | I81: Reset Rate> | J81: =GM_INFO!I70 | K81: =GM_INFO!I70 -> 20 | M81: /head | Q81: 20
C89: Veterinary & Medicines
C90: Drench, Dectomax | E90: 1 | G90: head | I90: Reset Rate> | J90: =GM_INFO!d62 | K90: =GM_INFO!I61 -> 4.88 | M90: /head | Q90: =K90*ROUND(E90,0) -> 4.88
C91: Ear Tags | E91: 1 | G91: head | I91: Reset Rate> | J91: =GM_INFO!d73 | K91: =GM_INFO!I62 -> 0.5 | M91: /tag | Q91: 0.5
C92: HGP implant , Synovex | E92: 0 | G92: head | I92: Reset Rate> | J92: =GM_INFO!d62 | K92: =GM_INFO!I63 -> 2.5 | M92: /dose | Q92: 0
C93: Lice Treatments | E93: 0 | G93: head | I93: Reset Rate> | J93: =GM_INFO!d64 | K93: =GM_INFO!I64 -> 0 | M93: /dose | Q93: 0
C94: Vaccine | E94: 1 | G94: head | I94: Reset Rate> | J94: =GM_INFO!d64 | K94: =GM_INFO!I65 -> 1 | M94: /dose | Q94: 1
C95: Veterinary | E95: 1 | G95: head | I95: Reset Rate> | J95: =GM_INFO!d64 | K95: =GM_INFO!I66 -> 1.25 | M95: /dose | Q95: 1.25
C96: Vitamin injection | E96: 0 | G96: head | I96: Reset Rate> | J96: =GM_INFO!d64 | K96: =GM_INFO!I67 -> 1.5 | M96: /dose | Q96: 0
C116: Losses | E116: 0.006 | G116: % | J116: =GM_INFO!d64 | K116: =(Q76+Q78)*E116 -> 6.58718064 | M116: /head | Q116: =K116 -> 6.58718064
C117: Sale Costs and other
C119: Insurance | E119: =Q76 -> 744 | I119: Reset Rate> | J119: =GM_INFO!I71 | K119: =GM_INFO!I71 -> 2 | M119: /$1000 | Q119: =K119*ROUND(E119,0)/1000 -> 1.488
C122: Transport In | E122: 1 | G122: dse's | I122: Reset Rate> | J122: =GM_INFO!I72 | K122: =GM_INFO!I72 -> 15 | Q122: =K122*ROUND(E122,0) -> 15
C123: Transport Out | E123: 1 | G123: head | I123: Reset Rate> | J123: =GM_INFO!I73 | K123: =GM_INFO!I73 -> 30 | M123: /head | Q123: =K123*E123 -> 30
C125: Commission | I125: Reset Rate> | J125: =GM_INFO!I74 | K125: =GM_INFO!I74 -> 0.06 | Q125: =Q41*K125 -> 82.5762
C126: Levies | I126: Reset Rate> | J126: =GM_INFO!I75 | K126: =GM_INFO!I75 -> 5 | M126: /head | Q126: =K126*SUM(E35:E36) -> 4.95
C143: Accreditation costs on a 600 hd/year throughput | Q143: 1
C170: TOTAL VARIABLE COSTS | Q170: =SUM(Q48:Q166) -> 1352.072061
C172: GROSS MARGIN PER HEAD | Q172: =Q41-Q170 -> 24.19793936
C174: Current interest rate | E174: 0.05
C175: Interest on cattle | K175: =K76*E174*O14/365 -> 10.19178082
C176: Interest on feed | K176: =Q78*E174*O14/365 -> 4.847444384
C178: GROSS MARGIN AFTER INTEREST | Q178: =SUM(Q172,-K175,-K176) -> 9.158714155
C180: Break even sale price :-- c/kg on purchase price, costs & interest | Q180: =((Q170+K175+K176-Q36)/(E35*I35))*100 -> 605.8947942
C182: Break even purchase price :-- c/kg on sale price & costs | Q182: =(-K176-K175+Q35-SUM(Q78:Q166))/I9*100 -> 307.4161309
B203: =VLOOKUP(r[0]c3&"No Ops",CHOOSE({1,2},tbl_ops[Name]&tbl_ops[Category],INDIRECT("tbl_ops["&var_crop&"]")),2,0)
B204: =VLOOKUP(r[0]c3&"No Ops",CHOOSE({1,2},tbl_ops[Name]&tbl_ops[Category],INDIRECT("tbl_ops["&var_crop&"]")),2,0)
B205: =VLOOKUP(r[0]c3&"No Ops",CHOOSE({1,2},tbl_ops[Name]&tbl_ops[Category],INDIRECT("tbl_ops["&var_crop&"]")),2,0)
B206: =VLOOKUP(r[0]c3&"No Ops",CHOOSE({1,2},tbl_ops[Name]&tbl_ops[Category],INDIRECT("tbl_ops["&var_crop&"]")),2,0)
B208: =VLOOKUP(r[0]c3&var_rain,CHOOSE({1,2},tbl_ops[Name]&tbl_ops[Rainfall],INDIRECT("tbl_ops["&var_crop&"]")),2,0)
B209: =VLOOKUP(r[0]c3&var_rain,CHOOSE({1,2},tbl_ops[Name]&tbl_ops[Rainfall],INDIRECT("tbl_ops["&var_crop&"]")),2,0)
B210: =VLOOKUP(r[0]c3&var_rain,CHOOSE({1,2},tbl_ops[Name]&tbl_ops[Rainfall],INDIRECT("tbl_ops["&var_crop&"]")),2,0)
B211: =VLOOKUP(r[0]c3&var_rain,CHOOSE({1,2},tbl_ops[Name]&tbl_ops[Rainfall],INDIRECT("tbl_ops["&var_crop&"]")),2,0)
C275: GM SENSITIVITY
C276: Gross Margin | E276: Per head ($/kg HSCW Carcase)
G277: 5.5 | H277: 5.5 | I277: 5.8 | J277: 6.5 | K277: 6.1 | M277: 6.4 | O277: 6.7
E278: 260 | G278: =($E$35*$I$35*G$277)+($E$36*$I$36*$M$36)-$Q$170+$Q$78-(($E$78*$E278)/1000) -> -62.48026864 | H278: -62.48026864 | I278: 4.44973136 | J278: 160.6197314 | K278: 71.37973136 | L278: -1289.530269 | M278: 138.3097314 | N278: -1289.530269 | O278: 205.2397314
E279: 270 | G279: -74.27571664 | H279: -74.27571664 | I279: -7.34571664 | J279: 148.8242834 | K279: 59.58428336 | L279: -1301.325717 | M279: 126.5142834 | N279: -1301.325717 | O279: 193.4442834
C280: Feed Cost/tonne | E280: 280 | G280: -86.07116464 | H280: -86.07116464 | I280: -19.14116464 | J280: 137.0288354 | K280: 47.78883536 | L280: -1313.121165 | M280: 114.7188354 | N280: -1313.121165 | O280: 181.6488354
E281: 290 | G281: -97.86661264 | H281: -97.86661264 | I281: -30.93661264 | J281: 125.2333874 | K281: 35.99338736 | L281: -1324.916613 | M281: 102.9233874 | N281: -1324.916613 | O281: 169.8533874
E282: 300 | G282: -109.6620606 | H282: -109.6620606 | I282: -42.73206064 | J282: 113.4379394 | K282: 24.19793936 | L282: -1336.712061 | M282: 91.12793936 | N282: -1336.712061 | O282: 158.0579394
E283: 310 | G283: -121.4575086 | H283: -121.4575086 | I283: -54.52750864 | J283: 101.6424914 | K283: 12.40249136 | L283: -1348.507509 | M283: 79.33249136 | N283: -1348.507509 | O283: 146.2624914
E284: 320 | G284: -133.2529566 | H284: -133.2529566 | I284: -66.32295664 | J284: 89.84704336 | K284: 0.60704336 | L284: -1360.302957 | M284: 67.53704336 | N284: -1360.302957 | O284: 134.4670434
E285: 330 | G285: -145.0484046 | H285: -145.0484046 | I285: -78.11840464 | J285: 78.05159536 | K285: -11.18840464 | L285: -1372.098405 | M285: 55.74159536 | N285: -1372.098405 | O285: 122.6715954
E286: 340 | G286: -156.8438526 | H286: -156.8438526 | I286: -89.91385264 | J286: 66.25614736 | K286: -22.98385264 | L286: -1383.893853 | M286: 43.94614736 | N286: -1383.893853 | O286: 110.8761474
